Workbook

Sheet Notes
A1: MABnBW.xlsm; Traders Tip spreadsheet created for the August 2021 Issue
A2: Coded beginning 2021-Jun-10 by Ronald McAllister (rpmac_xltt@sprynet.com)
A4: This Workbook demonstrates an EXCEL version of the ideas presented
A5: by Vitali Apirine in a two part series beginning with "Moving Average Bands", which originally appeared in the July 2021 issue.
A6: and wrapping up with "Moving Average Band Width", which originally appeared in the August 2021 issue of
A7: "Technical Analysis of Stocks and Commodities" magazine.
A9: * * * * * * * * * * * * * * * *
A13: New for May 2021
A14: Upgraded the data download logic to do a better job of catching the common data download errors and provide a more graceful resolution.
A15: This includes better user notification of the nature of the error and some user control over how the error should be handled.
A16: User notification comes in the form of a MSGbox display that includes the (sometimes cryptic) description of the error and offers the user three options.
A18: Abort - If I could customize the title, I would rename this button to "Debug"
A19: This choice places you in Debug mode at the failing VBA statement.
A20: Unless you are feeling good about your VBA (and Network) debugging skills, this is probably not for you.
A22: Retry
A23: Lets the code retry the failed download request.
A24: This is a reasonable option if the download request timed out (similar to video buffering) or your network connection has dropped out..
A25: Probably a good idea to make sure your internet connection is alive and well before you select Retry.
A27: Ignore
A28: Lets the code fall thru to a (hopefully) graceful error completion with the error indicated at the top of the InputPriceData tab
A30: New for August 2020
A31: Restructured my Symbol-Not-Found detection and now stop further processing in the not found case
A33: New with the May 2020 version of my T-Tips template: VBA to implement a "Perpetual" U.S. Markets Closed Holiday Calendar.
A35: Why we need one: The Yahoo Finance recently has begun having occasional filtration problems where bars for U.S. Market Closed Holidays
A36: make their way onto the Historical Data web page and into the Historical Data download.
A38: While testing this May 2020 spreadsheet with different symbols, I found that I sometimes had bars with the text "null" in the price fields.
A39: My code always translates the "null" text price values to zeros.
A40: The resulting zeros cause real problems with indicator computations and the amount of blank space below price candles on the price chart.
A42: "null" price bars can be valid for very lightly traded penny sheet symbols which may not trade every day the markets are open.
A43: But is definitely not normal for symbols on the big boards.
A45: A closer look determined that these "bars" were for holiday dates when the US markets are normally closed.
A46: I found it interesting that some times the next download for the same symbol would not contain any of these "holiday" bars. Weird!
A48: My approach here was to write code to determine if the DATE on a null price values bar falls on one of the 9 market closed U.S. Holidays.
A49: If the bar date corresponds to one of these market closed holidays, I drop the bar before it reaches the InputPriceData tab.
A50: If the date is not a holiday, I let the bar through with the resulting zero values.
A52: No messy tables to update over the years as there are good solid rules that can be used in VBA or any other programming language to determine
A53: the dates for U.S. Market Closed Holidays for any given calendar year.
A55: This workbook contains and uses VBA macros and may take advantage of user defined VBA Class structures.
A56: Input Data:
A57: The data in this workbook is sorted date-descending (most recent date at the top). All cell formulas and
A58: VBA routines are built assuming this date sequence.
A60: ERROR 9 (already fixed in this spreadsheet)
A61: On or about Jan 29, 2020 Yahoo Finance changed the format of the split factor expression used their historical data downloads.
A62: The Split expression went from using "/" as in "New Share Number/Old Share Number",
A63: to using ":" as in "New Share Number:Old Share Number".
A64: This caused the then current version of my VBA code to fail with a "Runtime Error '9': subscript out of range".
A66: Fix for this ERROR 9
A67: For T-Tip spreadsheets from September 2018 up to present:
A68: Selecting the Debug option takes one into the VBA at the code line which causes the failure:
A69: CellArray(C_A_RowNdx, C_A_ColNdx + 1) = SplitFactors(1)
A70: Two lines above the failing VBA line is a line that reads:
A71: SplitFactors = Split(CsvColumns(CsvColNdx), "/")
A72: Change the / to a :
A73: The corrected line should now read
A74: SplitFactors = Split(CsvColumns(CsvColNdx), ":")
A76: If you are fixing several spreadsheets and do not want to use the failure to find the fix location,
A77: you can use VBA’s FIND dialog (Ctrl F) to look for the substring
A78: SplitFactors =
A79: Do include one space and the equal sign in your FIND string
A80: Select the "Current Project" option
A81: There should only be one instance.
A83: T-Tip spreadsheets prior to the September 2018 spreadsheet do not hard fail.
A85: They just get weird results in the split columns of the Input Price Data tab (soft fail).
A86: These older spreadsheets used different data retrieval and formatting logic.
A88: To fix these older spreadsheets:
A89: In the VBA editor, use find (CTRL-F).
A90: Select the "Current Project" option, and search for the following:
A91: OtherChar:="/"
A92: You are looking for a hit in a line reading:
A93: Other:=True, OtherChar:="/", _
A94: This line is part of a multiline block of code starting with a line that reads:
A95: SplitRange.Offset(0, 1).Resize(SpRows, 1).TextToColumns
A96: Change the / to a : so that the line reads
A97: Other:=True, OtherChar:=":", _
A100: 2019-04-04 Finally came up with a mechanism to align the left location and overall length of the cursor scroll bar so that the left most and right most
A101: scroll bar thumb positions visually align reasonably well with the left and right ends of the price chart horizontal axis.
A102: Makes it a little easier to visually align the Thumb and thus the cursor with points of interest on the charts.
A104: Older:
B105: My sincere apologies to our Macintosh based readers: Neither MSXML nor WinHttpRequest are supported in your environment. So as it stands this version of the spreadsheet will not work for you.
B106: See "Why this approach does not work for Macintosh" below.
B107: I am investigating cURL as a non-Querytable based approach for the Macintosh environment.
A109: The new Yahoo Finance history download interface has changed rather radically. The biggest hurdle being a pseudo-security requirement of adding a
B110: crumb character string to any URL requesting any type of history download. That crumb must match up (by way of some sort of hash algorithm) with
B111: the Yahoo Finance cookie that must also be sent with any request to the new Yahoo History down load interface.
B113: A crumb value is returned, buried in the HTML for any of what I call the "entry level" Yahoo Finance web pages (no crumb security requirement for entry level pages).
B114: A crumb may come with other Yahoo Finance pages. A crumb may even accompany some of the secured pages as well. I have not checked.
B116: Entry level pages are the top level pages of the various Yahoo Finance dialogs and include: Quote Lookup, Stock Summary Quote, and any of the pages
B117: with links in the horizontal row with the "Summary" link on the quote summary page such as Options, Historical Data, and the rest.
B119: To date I have found no way to get at this crumb value using any native EXCEL capabilities.
B121: So this crumb requirement effectively shuts out any solution that attempts to exclusively use built-in facilities of EXCEL, which is to say a purely Querytables solution.
B123: The approach built for this Traders Tip spreadsheet uses WINHTTP calls to Load the InputPriceData worksheet.
B125: First I call to get the HTML text for the Yahoo Summary Quote page using the requested symbol. From this HTML text I extract the full company name,
B126: the market it trades, the market status and time stamp, and finally the associated crumb string. There is a bunch of other useful bits buried in this HTML
B127: text that do not necessarily appear on the web page your browser presents. Perhaps some day I will go after and build a worksheet with these other bits.
B129: Next I add the freshly extracted crumb string to the URLs I use in three separate WINHTTP calls to retrieve Price history, Split history, and Dividend history respectively.
B131: From there VBA code proceeds as in the past to fill in the cell formulas and formatting that make the "prettied up" InputPriceData sheet.
A133: Why this approach works for Windows:
B134: WINHTTP maintains a temporary computer memory cache where cookies are maintained for as long as the WINHTTP object is instantiated.
B135: WINHTTP updates this cache any time a "set cookie" header accompanies a web response.
B136: Subsequent WINHTTP calls automatically search this cache for cookies and add any "appropriate" cookies to the headers
B137: of any web requests that get sent out.
B138: This cookie handling automation means that even if the response to our WINHTTP call for the Summary web page includes a new version of
B139: the Yahoo Finance cookie, the imbedded Crumb value will always match the cookie newly installed in the cache!
A142: Why this approach does not work for Macintosh:
B143: For what it is worth, the Macintosh version of the MS Office suite of products do in fact maintain a special, shared amongst themselves only, cookie cache.
B144: They automate cookie handling into and from this cache JUST for the Office products and any Querytable activity they might originate.
B146: This cache is not tied to, nor shared with, any browser that might be installed on the MAC. And I have not found anything with HTTP capabilities similar to
B147: MSXML that can work with that Office product cookie cache.
B149: When working in the MAC EXCEL environment, I have not yet become conversant with a Mac based WINHTTP like capability.
B150: So l currently have no mechanism to replicate the non-Querytable data retrieval process I am using in Windows environments.
B151: A software product called CURL has been suggested as providing this capability in the MAC environment.
B152: A version of CURL is available for the Windows So some day I may explore its capabilities and how to access those capabilities from VBA.
A154: Calculation and Chart Worksheet Usage Comments:
C155: In General, Items in Bolded BLUE are items you may freely change to play what-if games.
C156: Be sure to have a backup copy of the spreadsheet before you alter anything else.
A158: Features carried forward from the June 2016 version of my T-Tips Template
A159: Added a pair of buttons near cell F12 that will allow the user to step the charting window forward or backward one bar for each click.
A160: I find this to be a good way to test my understanding of the author's ideas as I step through the evolution of the price behavior and the indicators.
B162: First: In the "Help! I would like to plot data" area.
B163: Added button to resolve #NA problems by locating the bar in the input data with a slightly more recent date than what the user actually requested.
B164: I find this particularly useful when I have a general idea of where I want to be date wise. Now I can pick a set of dates "out of the air".
B165: If either (or both) of my date specifications fall between dates that are available in the price history,
B166: this button will resolve them to the dates of the nearest, slightly more recent input bars.
B167: I can then refine my data interval search as necessary from there.
B168: Really great when working with Weekly or Monthly studies!
C169: 2016Jun11 - added logic to the "I would like to chart.." button to detect #N/A values and terminate
C170: gracefully with a message instead of blowing up in the charting logic.
B172: Second: In the "Price Chart Windowing Controls" area. (A11 and A12)
B173: When retrieving data for a new symbol or when changing from daily to weekly or monthly data, there was the possibility that the
B174: residual settings in A11 and A12 would fall outside of the number bars available on the input data tab after the new data retrieval.
B175: In certain combinations, this could create a serious error in the chart sizing logic and crash the spreadsheet.
B176: I have taken this opportunity to update the validity checking logic used in the chart sizing macros
B177: to adjust these values as necessary so that they fall within the boundaries of the newly retrieved input data.
A178: Features carried forward from the October 2015 Traders Tips Template
B179: Improved automation: changes to any of the following will automatically initiate calculations appropriate to reflect a change.
C180: Changing either of cells A11 (pan) or A12 (zoom) will automatically initiate the same chart sizing macros that the manual
C181: "Set Chart" button uses.

Sheet InputPriceData
A1: S&P 500 (^GSPC) -SNP (Daily)
M2: To retrieve data for symbols traded on non US Exchanges, | II2: 241.79
A3: Request Online Yahoo History for: | F3: Market State == > | G3: As of | H3: 12:45:00 | I3: EDT. Market open. | M3: you will need to append the dot-suffix for the exchange to the symbol.
A4: Symbol | B4: ^GSPC | D4: Valid | I4: =OFFSET(I4,-2,0,1,1) -> 0 | M4: The following links provide a description of how to use the exchange suffix
A5: From | B5: 1950-10-01 | D5: Data | M5: along with a list of suffixes for the major world exchanges. | AD5: Trailing 12 Div return (Cur Close)
A6: To | B6: =NOW() -> 2021-06-18T14:44:16.170 | D6: Types | E6: =VLOOKUP(B7,D7:E10,2,FALSE) -> d | M6: https://help.yahoo.com/kb/finance/SLN2310.html
A7: Data Type | B7: Daily | D7: Daily | E7: d | M7: And
A8: Crumb | B8: p8vTCzGZmNT | D8: Weekly | E8: w | M8: https://www.stockmarketeye.com/users-guide/ticker-symbols-and-data-providers/data-providers.html
A9: Available Data | D9: Monthly | E9: m
A10: Bar Count: | B10: 17794 | M10: You may search on “exchange suffixes” for additional discussions | AD10: =OFFSET(AC15,1,0,1,1)/OFFSET(N15,1,0,1,1) -> 0
A11: From: | B11: =IF(B10<=0,"",OFFSET(B15,B10,IF(HistReqDataType="v",1,0),1,1)) -> 1950-10-02 | W11: Trailing 12 Month Dividend Returns
A12: To: | B12: =IF(B10<=0,"",IF(HistReqDataType="v",OFFSET(B15,2,1,1,1),OFFSET(B15,1,0,1,1))) -> 2021-06-18 | W12: Raw Close price on Dividend date | X12: Div Year and Month | Y12: Looking for year ago Div Year and Month | Z12: Year ago Div Date we found | AA12: row offset to year ago div Date | AB12: Same month flag | AC12: Trailing 12 Div Total | AD12: Trailing 12 Div return
Q13: Split History | S13: 0 | T13: Running | U13: Dividend History
B14: Raw Data Values | H14: Adjusted | I14: Price Adjust | J14: Vol Adjust | K14: Adjusted Values | P14: Last | Q14: Effective | R14: Shares | T14: Vol Adjust | V14: 0
A15: RelRow | B15: Date | C15: Open | D15: High | E15: Low | F15: Close | G15: Volume | H15: Close | I15: Factor | J15: Factor | K15: Open | L15: High | M15: Low | N15: Close | O15: Volume | P15: Trade | Q15: 44366 | R15: New | S15: Old | T15: 1 | U15: Date | V15: $ / Share
A16: 1 | B16: 2021-06-18 | C16: 4204.779785 | D16: 4204.779785 | E16: 4172.109863 | F16: 4181.169922 | G16: 1341384000 | H16: 4181.169922 | I16: =IF(F16=0,1,H16/F16) -> 1 | J16: =INDEX(OFFSET($T$15,0,0,$S$13+1,1),MATCH(B16,OFFSET($Q$15,0,0,$S$13+1,1),-1)) -> 1 | K16: =ROUND($I16*C16,2) -> 4204.78 | L16: =ROUND($I16*D16,2) -> 4204.78 | M16: 4172.11 | N16: 4181.17 | O16: =G16*J16 -> 1341384000
A17: 2 | B17: 2021-06-17 | C17: 0 | D17: 0 | E17: 0 | F17: 0 | G17: 0 | H17: 0 | I17: =IF(F17=0,1,H17/F17) -> 1 | J17: =INDEX(OFFSET($T$15,0,0,$S$13+1,1),MATCH(B17,OFFSET($Q$15,0,0,$S$13+1,1),-1)) -> 1 | K17: =ROUND($I17*C17,2) -> 0 | L17: =ROUND($I17*D17,2) -> 0 | M17: =ROUND($I17*E17,2) -> 0 | N17: =ROUND($I17*F17,2) -> 0 | O17: =G17*J17 -> 0
A18: 3 | B18: 2021-06-16 | C18: 4248.870117 | D18: 4251.890137 | E18: 4202.450195 | F18: 4223.700195 | G18: 3722050000 | H18: 4223.700195 | I18: 1 | J18: 1 | K18: 4248.87 | L18: 4251.89 | M18: 4202.45 | N18: 4223.7 | O18: 3722050000
A19: 4 | B19: 2021-06-15 | C19: 4255.279785 | D19: 4257.160156 | E19: 4238.350098 | F19: 4246.589844 | G19: 3578450000 | H19: 4246.589844 | I19: 1 | J19: 1 | K19: 4255.28 | L19: 4257.16 | M19: 4238.35 | N19: 4246.59 | O19: 3578450000
A20: 5 | B20: 2021-06-14 | C20: 4248.310059 | D20: 4255.589844 | E20: 4234.069824 | F20: 4255.149902 | G20: 3612050000 | H20: 4255.149902 | I20: 1 | J20: 1 | K20: 4248.31 | L20: 4255.59 | M20: 4234.07 | N20: 4255.15 | O20: 3612050000
A21: 6 | B21: 2021-06-11 | C21: 4242.899902 | D21: 4248.379883 | E21: 4232.25 | F21: 4247.439941 | G21: 3204280000 | H21: 4247.439941 | I21: 1 | J21: 1 | K21: 4242.9 | L21: 4248.38 | M21: 4232.25 | N21: 4247.44 | O21: 3204280000
A22: 7 | B22: 2021-06-10 | C22: 4228.560059 | D22: 4249.740234 | E22: 4220.339844 | F22: 4239.180176 | G22: 3502480000 | H22: 4239.180176 | I22: 1 | J22: 1 | K22: 4228.56 | L22: 4249.74 | M22: 4220.34 | N22: 4239.18 | O22: 3502480000
A23: 8 | B23: 2021-06-09 | C23: 4232.990234 | D23: 4237.089844 | E23: 4218.740234 | F23: 4219.549805 | G23: 3902870000 | H23: 4219.549805 | I23: 1 | J23: 1 | K23: 4232.99 | L23: 4237.09 | M23: 4218.74 | N23: 4219.55 | O23: 3902870000
A24: 9 | B24: 2021-06-08 | C24: 4233.810059 | D24: 4236.740234 | E24: 4208.410156 | F24: 4227.259766 | G24: 3943870000 | H24: 4227.259766 | I24: 1 | J24: 1 | K24: 4233.81 | L24: 4236.74 | M24: 4208.41 | N24: 4227.26 | O24: 3943870000
A25: 10 | B25: 2021-06-07 | C25: 4229.339844 | D25: 4232.339844 | E25: 4215.660156 | F25: 4226.52002 | G25: 3835570000 | H25: 4226.52002 | I25: 1 | J25: 1 | K25: 4229.34 | L25: 4232.34 | M25: 4215.66 | N25: 4226.52 | O25: 3835570000
A26: 11 | B26: 2021-06-04 | C26: 4206.049805 | D26: 4233.450195 | E26: 4206.049805 | F26: 4229.890137 | G26: 3487070000 | H26: 4229.890137 | I26: 1 | J26: 1 | K26: 4206.05 | L26: 4233.45 | M26: 4206.05 | N26: 4229.89 | O26: 3487070000
A27: 12 | B27: 2021-06-03 | C27: 4191.430176 | D27: 4204.390137 | E27: 4167.930176 | F27: 4192.850098 | G27: 4579450000 | H27: 4192.850098 | I27: 1 | J27: 1 | K27: 4191.43 | L27: 4204.39 | M27: 4167.93 | N27: 4192.85 | O27: 4579450000
A28: 13 | B28: 2021-06-02 | C28: 4206.819824 | D28: 4217.370117 | E28: 4198.27002 | F28: 4208.120117 | G28: 4860930000 | H28: 4208.120117 | I28: 1 | J28: 1 | K28: 4206.82 | L28: 4217.37 | M28: 4198.27 | N28: 4208.12 | O28: 4860930000
A29: 14 | B29: 2021-06-01 | C29: 4216.52002 | D29: 4234.120117 | E29: 4197.589844 | F29: 4202.040039 | G29: 4122960000 | H29: 4202.040039 | I29: 1 | J29: 1 | K29: 4216.52 | L29: 4234.12 | M29: 4197.59 | N29: 4202.04 | O29: 4122960000
A30: 15 | B30: 2021-05-28 | C30: 4210.77002 | D30: 4218.359863 | E30: 4203.569824 | F30: 4204.109863 | G30: 4199270000 | H30: 4204.109863 | I30: 1 | J30: 1 | K30: 4210.77 | L30: 4218.36 | M30: 4203.57 | N30: 4204.11 | O30: 4199270000
A31: 16 | B31: 2021-05-27 | C31: 4201.939941 | D31: 4213.379883 | E31: 4197.779785 | F31: 4200.879883 | G31: 5201110000 | H31: 4200.879883 | I31: 1 | J31: 1 | K31: 4201.94 | L31: 4213.38 | M31: 4197.78 | N31: 4200.88 | O31: 5201110000
A32: 17 | B32: 2021-05-26 | C32: 4191.589844 | D32: 4202.609863 | E32: 4184.109863 | F32: 4195.990234 | G32: 3674490000 | H32: 4195.990234 | I32: 1 | J32: 1 | K32: 4191.59 | L32: 4202.61 | M32: 4184.11 | N32: 4195.99 | O32: 3674490000
A33: 18 | B33: 2021-05-25 | C33: 4205.939941 | D33: 4213.419922 | E33: 4182.52002 | F33: 4188.129883 | G33: 3420870000 | H33: 4188.129883 | I33: 1 | J33: 1 | K33: 4205.94 | L33: 4213.42 | M33: 4182.52 | N33: 4188.13 | O33: 3420870000
A34: 19 | B34: 2021-05-24 | C34: 4170.160156 | D34: 4209.52002 | E34: 4170.160156 | F34: 4197.049805 | G34: 2947400000 | H34: 4197.049805 | I34: 1 | J34: 1 | K34: 4170.16 | L34: 4209.52 | M34: 4170.16 | N34: 4197.05 | O34: 2947400000
A35: 20 | B35: 2021-05-21 | C35: 4168.609863 | D35: 4188.720215 | E35: 4151.720215 | F35: 4155.859863 | G35: 3344620000 | H35: 4155.859863 | I35: 1 | J35: 1 | K35: 4168.61 | L35: 4188.72 | M35: 4151.72 | N35: 4155.86 | O35: 3344620000
A36: 21 | B36: 2021-05-20 | C36: 4121.970215 | D36: 4172.799805 | E36: 4121.970215 | F36: 4159.120117 | G36: 3019060000 | H36: 4159.120117 | I36: 1 | J36: 1 | K36: 4121.97 | L36: 4172.8 | M36: 4121.97 | N36: 4159.12 | O36: 3019060000
A37: 22 | B37: 2021-05-19 | C37: 4098.450195 | D37: 4116.930176 | E37: 4061.409912 | F37: 4115.680176 | G37: 3485550000 | H37: 4115.680176 | I37: 1 | J37: 1 | K37: 4098.45 | L37: 4116.93 | M37: 4061.41 | N37: 4115.68 | O37: 3485550000
A38: 23 | B38: 2021-05-18 | C38: 4165.939941 | D38: 4169.149902 | E38: 4125.990234 | F38: 4127.830078 | G38: 3559790000 | H38: 4127.830078 | I38: 1 | J38: 1 | K38: 4165.94 | L38: 4169.15 | M38: 4125.99 | N38: 4127.83 | O38: 3559790000
A39: 24 | B39: 2021-05-17 | C39: 4169.919922 | D39: 4171.919922 | E39: 4142.689941 | F39: 4163.290039 | G39: 3307130000 | H39: 4163.290039 | I39: 1 | J39: 1 | K39: 4169.92 | L39: 4171.92 | M39: 4142.69 | N39: 4163.29 | O39: 3307130000
A40: 25 | B40: 2021-05-14 | C40: 4129.580078 | D40: 4183.129883 | E40: 4129.580078 | F40: 4173.850098 | G40: 3251920000 | H40: 4173.850098 | I40: 1 | J40: 1 | K40: 4129.58 | L40: 4183.13 | M40: 4129.58 | N40: 4173.85 | O40: 3251920000
A41: 26 | B41: 2021-05-13 | C41: 4074.98999 | D41: 4131.580078 | E41: 4074.98999 | F41: 4112.5 | G41: 3687780000 | H41: 4112.5 | I41: 1 | J41: 1 | K41: 4074.99 | L41: 4131.58 | M41: 4074.99 | N41: 4112.5 | O41: 3687780000
A42: 27 | B42: 2021-05-12 | C42: 4130.549805 | D42: 4134.72998 | E42: 4056.879883 | F42: 4063.040039 | G42: 3735080000 | H42: 4063.040039 | I42: 1 | J42: 1 | K42: 4130.55 | L42: 4134.73 | M42: 4056.88 | N42: 4063.04 | O42: 3735080000
A43: 28 | B43: 2021-05-11 | C43: 4150.339844 | D43: 4162.040039 | E43: 4111.529785 | F43: 4152.100098 | G43: 3593110000 | H43: 4152.100098 | I43: 1 | J43: 1 | K43: 4150.34 | L43: 4162.04 | M43: 4111.53 | N43: 4152.1 | O43: 3593110000
A44: 29 | B44: 2021-05-10 | C44: 4228.290039 | D44: 4236.390137 | E44: 4188.129883 | F44: 4188.430176 | G44: 3678970000 | H44: 4188.430176 | I44: 1 | J44: 1 | K44: 4228.29 | L44: 4236.39 | M44: 4188.13 | N44: 4188.43 | O44: 3678970000
A45: 30 | B45: 2021-05-07 | C45: 4210.339844 | D45: 4238.040039 | E45: 4201.640137 | F45: 4232.600098 | G45: 4013060000 | H45: 4232.600098 | I45: 1 | J45: 1 | K45: 4210.34 | L45: 4238.04 | M45: 4201.64 | N45: 4232.6 | O45: 4013060000
A46: 31 | B46: 2021-05-06 | C46: 4169.140137 | D46: 4202.700195 | E46: 4147.330078 | F46: 4201.620117 | G46: 4504860000 | H46: 4201.620117 | I46: 1 | J46: 1 | K46: 4169.14 | L46: 4202.7 | M46: 4147.33 | N46: 4201.62 | O46: 4504860000
A47: 32 | B47: 2021-05-05 | C47: 4177.060059 | D47: 4187.720215 | E47: 4160.939941 | F47: 4167.589844 | G47: 4029050000 | H47: 4167.589844 | I47: 1 | J47: 1 | K47: 4177.06 | L47: 4187.72 | M47: 4160.94 | N47: 4167.59 | O47: 4029050000
A48: 33 | B48: 2021-05-04 | C48: 4179.040039 | D48: 4179.040039 | E48: 4128.589844 | F48: 4164.660156 | G48: 4441080000 | H48: 4164.660156 | I48: 1 | J48: 1 | K48: 4179.04 | L48: 4179.04 | M48: 4128.59 | N48: 4164.66 | O48: 4441080000
A49: 34 | B49: 2021-05-03 | C49: 4191.97998 | D49: 4209.390137 | E49: 4188.029785 | F49: 4192.660156 | G49: 4061170000 | H49: 4192.660156 | I49: 1 | J49: 1 | K49: 4191.98 | L49: 4209.39 | M49: 4188.03 | N49: 4192.66 | O49: 4061170000
A50: 35 | B50: 2021-04-30 | C50: 4198.100098 | D50: 4198.100098 | E50: 4174.850098 | F50: 4181.169922 | G50: 4273680000 | H50: 4181.169922 | I50: 1 | J50: 1 | K50: 4198.1 | L50: 4198.1 | M50: 4174.85 | N50: 4181.17 | O50: 4273680000
A51: 36 | B51: 2021-04-29 | C51: 4206.140137 | D51: 4218.779785 | E51: 4176.810059 | F51: 4211.470215 | G51: 4288940000 | H51: 4211.470215 | I51: 1 | J51: 1 | K51: 4206.14 | L51: 4218.78 | M51: 4176.81 | N51: 4211.47 | O51: 4288940000
A52: 37 | B52: 2021-04-28 | C52: 4185.140137 | D52: 4201.529785 | E52: 4181.779785 | F52: 4183.180176 | G52: 3772390000 | H52: 4183.180176 | I52: 1 | J52: 1 | K52: 4185.14 | L52: 4201.53 | M52: 4181.78 | N52: 4183.18 | O52: 3772390000
A53: 38 | B53: 2021-04-27 | C53: 4188.25 | D53: 4193.350098 | E53: 4176.220215 | F53: 4186.720215 | G53: 3703240000 | H53: 4186.720215 | I53: 1 | J53: 1 | K53: 4188.25 | L53: 4193.35 | M53: 4176.22 | N53: 4186.72 | O53: 3703240000
A54: 39 | B54: 2021-04-26 | C54: 4185.029785 | D54: 4194.189941 | E54: 4182.359863 | F54: 4187.620117 | G54: 3738920000 | H54: 4187.620117 | I54: 1 | J54: 1 | K54: 4185.03 | L54: 4194.19 | M54: 4182.36 | N54: 4187.62 | O54: 3738920000
A55: 40 | B55: 2021-04-23 | C55: 4138.779785 | D55: 4194.169922 | E55: 4138.779785 | F55: 4180.169922 | G55: 3568080000 | H55: 4180.169922 | I55: 1 | J55: 1 | K55: 4138.78 | L55: 4194.17 | M55: 4138.78 | N55: 4180.17 | O55: 3568080000
A56: 41 | B56: 2021-04-22 | C56: 4170.459961 | D56: 4179.569824 | E56: 4123.689941 | F56: 4134.97998 | G56: 4235040000 | H56: 4134.97998 | I56: 1 | J56: 1 | K56: 4170.46 | L56: 4179.57 | M56: 4123.69 | N56: 4134.98 | O56: 4235040000
A57: 42 | B57: 2021-04-21 | C57: 4128.419922 | D57: 4175.02002 | E57: 4126.350098 | F57: 4173.419922 | G57: 3865820000 | H57: 4173.419922 | I57: 1 | J57: 1 | K57: 4128.42 | L57: 4175.02 | M57: 4126.35 | N57: 4173.42 | O57: 3865820000
A58: 43 | B58: 2021-04-20 | C58: 4159.180176 | D58: 4159.180176 | E58: 4118.379883 | F58: 4134.939941 | G58: 4338230000 | H58: 4134.939941 | I58: 1 | J58: 1 | K58: 4159.18 | L58: 4159.18 | M58: 4118.38 | N58: 4134.94 | O58: 4338230000
A59: 44 | B59: 2021-04-19 | C59: 4179.799805 | D59: 4180.810059 | E59: 4150.470215 | F59: 4163.259766 | G59: 3788020000 | H59: 4163.259766 | I59: 1 | J59: 1 | K59: 4179.8 | L59: 4180.81 | M59: 4150.47 | N59: 4163.26 | O59: 3788020000
A60: 45 | B60: 2021-04-16 | C60: 4174.140137 | D60: 4191.310059 | E60: 4170.75 | F60: 4185.470215 | G60: 4157430000 | H60: 4185.470215 | I60: 1 | J60: 1 | K60: 4174.14 | L60: 4191.31 | M60: 4170.75 | N60: 4185.47 | O60: 4157430000
A61: 46 | B61: 2021-04-15 | C61: 4139.759766 | D61: 4173.490234 | E61: 4139.759766 | F61: 4170.419922 | G61: 4027680000 | H61: 4170.419922 | I61: 1 | J61: 1 | K61: 4139.76 | L61: 4173.49 | M61: 4139.76 | N61: 4170.42 | O61: 4027680000
A62: 47 | B62: 2021-04-14 | C62: 4141.580078 | D62: 4151.689941 | E62: 4120.870117 | F62: 4124.660156 | G62: 3976540000 | H62: 4124.660156 | I62: 1 | J62: 1 | K62: 4141.58 | L62: 4151.69 | M62: 4120.87 | N62: 4124.66 | O62: 3976540000
A63: 48 | B63: 2021-04-13 | C63: 4130.100098 | D63: 4148 | E63: 4124.430176 | F63: 4141.589844 | G63: 3728440000 | H63: 4141.589844 | I63: 1 | J63: 1 | K63: 4130.1 | L63: 4148 | M63: 4124.43 | N63: 4141.59 | O63: 3728440000
A64: 49 | B64: 2021-04-12 | C64: 4124.709961 | D64: 4131.759766 | E64: 4114.819824 | F64: 4127.990234 | G64: 3578500000 | H64: 4127.990234 | I64: 1 | J64: 1 | K64: 4124.71 | L64: 4131.76 | M64: 4114.82 | N64: 4127.99 | O64: 3578500000
A65: 50 | B65: 2021-04-09 | C65: 4096.109863 | D65: 4129.47998 | E65: 4095.51001 | F65: 4128.799805 | G65: 3634910000 | H65: 4128.799805 | I65: 1 | J65: 1 | K65: 4096.11 | L65: 4129.48 | M65: 4095.51 | N65: 4128.8 | O65: 3634910000
A66: 51 | B66: 2021-04-08 | C66: 4089.949951 | D66: 4098.189941 | E66: 4082.540039 | F66: 4097.169922 | G66: 3901910000 | H66: 4097.169922 | I66: 1 | J66: 1 | K66: 4089.95 | L66: 4098.19 | M66: 4082.54 | N66: 4097.17 | O66: 3901910000
A67: 52 | B67: 2021-04-07 | C67: 4074.290039 | D67: 4083.129883 | E67: 4068.310059 | F67: 4079.949951 | G67: 4112640000 | H67: 4079.949951 | I67: 1 | J67: 1 | K67: 4074.29 | L67: 4083.13 | M67: 4068.31 | N67: 4079.95 | O67: 4112640000
A68: 53 | B68: 2021-04-06 | C68: 4075.570068 | D68: 4086.22998 | E68: 4068.139893 | F68: 4073.939941 | G68: 4027880000 | H68: 4073.939941 | I68: 1 | J68: 1 | K68: 4075.57 | L68: 4086.23 | M68: 4068.14 | N68: 4073.94 | O68: 4027880000
A69: 54 | B69: 2021-04-05 | C69: 4034.439941 | D69: 4083.419922 | E69: 4034.439941 | F69: 4077.909912 | G69: 3999760000 | H69: 4077.909912 | I69: 1 | J69: 1 | K69: 4034.44 | L69: 4083.42 | M69: 4034.44 | N69: 4077.91 | O69: 3999760000
A70: 55 | B70: 2021-04-01 | C70: 3992.780029 | D70: 4020.629883 | E70: 3992.780029 | F70: 4019.870117 | G70: 4151240000 | H70: 4019.870117 | I70: 1 | J70: 1 | K70: 3992.78 | L70: 4020.63 | M70: 3992.78 | N70: 4019.87 | O70: 4151240000
A71: 56 | B71: 2021-03-31 | C71: 3967.25 | D71: 3994.409912 | E71: 3966.97998 | F71: 3972.889893 | G71: 4564980000 | H71: 3972.889893 | I71: 1 | J71: 1 | K71: 3967.25 | L71: 3994.41 | M71: 3966.98 | N71: 3972.89 | O71: 4564980000
A72: 57 | B72: 2021-03-30 | C72: 3963.340088 | D72: 3968.01001 | E72: 3944.350098 | F72: 3958.550049 | G72: 4103570000 | H72: 3958.550049 | I72: 1 | J72: 1 | K72: 3963.34 | L72: 3968.01 | M72: 3944.35 | N72: 3958.55 | O72: 4103570000
A73: 58 | B73: 2021-03-29 | C73: 3969.310059 | D73: 3981.830078 | E73: 3943.25 | F73: 3971.090088 | G73: 4619840000 | H73: 3971.090088 | I73: 1 | J73: 1 | K73: 3969.31 | L73: 3981.83 | M73: 3943.25 | N73: 3971.09 | O73: 4619840000
A74: 59 | B74: 2021-03-26 | C74: 3917.120117 | D74: 3978.189941 | E74: 3917.120117 | F74: 3974.540039 | G74: 5467850000 | H74: 3974.540039 | I74: 1 | J74: 1 | K74: 3917.12 | L74: 3978.19 | M74: 3917.12 | N74: 3974.54 | O74: 5467850000
A75: 60 | B75: 2021-03-25 | C75: 3879.340088 | D75: 3919.540039 | E75: 3853.5 | F75: 3909.52002 | G75: 4940800000 | H75: 3909.52002 | I75: 1 | J75: 1 | K75: 3879.34 | L75: 3919.54 | M75: 3853.5 | N75: 3909.52 | O75: 4940800000
A76: 61 | B76: 2021-03-24 | C76: 3919.929932 | D76: 3942.080078 | E76: 3889.070068 | F76: 3889.139893 | G76: 4766990000 | H76: 3889.139893 | I76: 1 | J76: 1 | K76: 3919.93 | L76: 3942.08 | M76: 3889.07 | N76: 3889.14 | O76: 4766990000
A77: 62 | B77: 2021-03-23 | C77: 3937.600098 | D77: 3949.129883 | E77: 3901.570068 | F77: 3910.52002 | G77: 4645340000 | H77: 3910.52002 | I77: 1 | J77: 1 | K77: 3937.6 | L77: 3949.13 | M77: 3901.57 | N77: 3910.52 | O77: 4645340000
A78: 63 | B78: 2021-03-22 | C78: 3916.47998 | D78: 3955.310059 | E78: 3914.159912 | F78: 3940.590088 | G78: 4311380000 | H78: 3940.590088 | I78: 1 | J78: 1 | K78: 3916.48 | L78: 3955.31 | M78: 3914.16 | N78: 3940.59 | O78: 4311380000
A79: 64 | B79: 2021-03-19 | C79: 3913.139893 | D79: 3930.120117 | E79: 3886.75 | F79: 3913.100098 | G79: 7725050000 | H79: 3913.100098 | I79: 1 | J79: 1 | K79: 3913.14 | L79: 3930.12 | M79: 3886.75 | N79: 3913.1 | O79: 7725050000
A80: 65 | B80: 2021-03-18 | C80: 3953.5 | D80: 3969.620117 | E80: 3910.860107 | F80: 3915.459961 | G80: 4043170000 | H80: 3915.459961 | I80: 1 | J80: 1 | K80: 3953.5 | L80: 3969.62 | M80: 3910.86 | N80: 3915.46 | O80: 4043170000
A81: 66 | B81: 2021-03-17 | C81: 3949.570068 | D81: 3983.870117 | E81: 3935.73999 | F81: 3974.120117 | G81: 4541620000 | H81: 3974.120117 | I81: =IF(F81=0,1,H81/F81) -> 1 | J81: =INDEX(OFFSET($T$15,0,0,$S$13+1,1),MATCH(B81,OFFSET($Q$15,0,0,$S$13+1,1),-1)) -> 1 | K81: =ROUND($I81*C81,2) -> 3949.57 | L81: =ROUND($I81*D81,2) -> 3983.87 | M81: =ROUND($I81*E81,2) -> 3935.74 | N81: =ROUND($I81*F81,2) -> 3974.12 | O81: =G81*J81 -> 4541620000
A82: 67 | B82: 2021-03-16 | C82: 3973.590088 | D82: 3981.040039 | E82: 3953.439941 | F82: 3962.709961 | G82: 4604870000 | H82: 3962.709961 | I82: 1 | J82: 1 | K82: 3973.59 | L82: 3981.04 | M82: 3953.44 | N82: 3962.71 | O82: 4604870000
A83: 68 | B83: 2021-03-15 | C83: 3942.959961 | D83: 3970.080078 | E83: 3923.540039 | F83: 3968.939941 | G83: 4882190000 | H83: 3968.939941 | I83: 1 | J83: 1 | K83: 3942.96 | L83: 3970.08 | M83: 3923.54 | N83: 3968.94 | O83: 4882190000
A84: 69 | B84: 2021-03-12 | C84: 3924.52002 | D84: 3944.98999 | E84: 3915.209961 | F84: 3943.340088 | G84: 4469240000 | H84: 3943.340088 | I84: 1 | J84: 1 | K84: 3924.52 | L84: 3944.99 | M84: 3915.21 | N84: 3943.34 | O84: 4469240000
A85: 70 | B85: 2021-03-11 | C85: 3915.540039 | D85: 3960.27002 | E85: 3915.540039 | F85: 3939.340088 | G85: 5300010000 | H85: 3939.340088 | I85: 1 | J85: 1 | K85: 3915.54 | L85: 3960.27 | M85: 3915.54 | N85: 3939.34 | O85: 5300010000
A86: 71 | B86: 2021-03-10 | C86: 3891.98999 | D86: 3917.350098 | E86: 3885.72998 | F86: 3898.810059 | G86: 5827250000 | H86: 3898.810059 | I86: 1 | J86: 1 | K86: 3891.99 | L86: 3917.35 | M86: 3885.73 | N86: 3898.81 | O86: 5827250000
A87: 72 | B87: 2021-03-09 | C87: 3851.929932 | D87: 3903.76001 | E87: 3851.929932 | F87: 3875.439941 | G87: 5496340000 | H87: 3875.439941 | I87: 1 | J87: 1 | K87: 3851.93 | L87: 3903.76 | M87: 3851.93 | N87: 3875.44 | O87: 5496340000
A88: 73 | B88: 2021-03-08 | C88: 3844.389893 | D88: 3881.060059 | E88: 3819.25 | F88: 3821.350098 | G88: 5852240000 | H88: 3821.350098 | I88: 1 | J88: 1 | K88: 3844.39 | L88: 3881.06 | M88: 3819.25 | N88: 3821.35 | O88: 5852240000
A89: 74 | B89: 2021-03-05 | C89: 3793.580078 | D89: 3851.689941 | E89: 3730.189941 | F89: 3841.939941 | G89: 6842570000 | H89: 3841.939941 | I89: 1 | J89: 1 | K89: 3793.58 | L89: 3851.69 | M89: 3730.19 | N89: 3841.94 | O89: 6842570000
A90: 75 | B90: 2021-03-04 | C90: 3818.530029 | D90: 3843.669922 | E90: 3723.340088 | F90: 3768.469971 | G90: 7142240000 | H90: 3768.469971 | I90: 1 | J90: 1 | K90: 3818.53 | L90: 3843.67 | M90: 3723.34 | N90: 3768.47 | O90: 7142240000
A91: 76 | B91: 2021-03-03 | C91: 3863.98999 | D91: 3874.469971 | E91: 3818.860107 | F91: 3819.719971 | G91: 6150790000 | H91: 3819.719971 | I91: 1 | J91: 1 | K91: 3863.99 | L91: 3874.47 | M91: 3818.86 | N91: 3819.72 | O91: 6150790000
A92: 77 | B92: 2021-03-02 | C92: 3903.639893 | D92: 3906.409912 | E92: 3868.570068 | F92: 3870.290039 | G92: 5493690000 | H92: 3870.290039 | I92: 1 | J92: 1 | K92: 3903.64 | L92: 3906.41 | M92: 3868.57 | N92: 3870.29 | O92: 5493690000
A93: 78 | B93: 2021-03-01 | C93: 3842.51001 | D93: 3914.5 | E93: 3842.51001 | F93: 3901.820068 | G93: 5071540000 | H93: 3901.820068 | I93: 1 | J93: 1 | K93: 3842.51 | L93: 3914.5 | M93: 3842.51 | N93: 3901.82 | O93: 5071540000
A94: 79 | B94: 2021-02-26 | C94: 3839.659912 | D94: 3861.080078 | E94: 3789.540039 | F94: 3811.149902 | G94: 6512950000 | H94: 3811.149902 | I94: 1 | J94: 1 | K94: 3839.66 | L94: 3861.08 | M94: 3789.54 | N94: 3811.15 | O94: 6512950000
A95: 80 | B95: 2021-02-25 | C95: 3915.800049 | D95: 3925.02002 | E95: 3814.040039 | F95: 3829.340088 | G95: 6513060000 | H95: 3829.340088 | I95: 1 | J95: 1 | K95: 3915.8 | L95: 3925.02 | M95: 3814.04 | N95: 3829.34 | O95: 6513060000
A96: 81 | B96: 2021-02-24 | C96: 3873.709961 | D96: 3928.649902 | E96: 3859.600098 | F96: 3925.429932 | G96: 5942350000 | H96: 3925.429932 | I96: 1 | J96: 1 | K96: 3873.71 | L96: 3928.65 | M96: 3859.6 | N96: 3925.43 | O96: 5942350000
A97: 82 | B97: 2021-02-23 | C97: 3857.070068 | D97: 3895.97998 | E97: 3805.590088 | F97: 3881.370117 | G97: 6280650000 | H97: 3881.370117 | I97: 1 | J97: 1 | K97: 3857.07 | L97: 3895.98 | M97: 3805.59 | N97: 3881.37 | O97: 6280650000
A98: 83 | B98: 2021-02-22 | C98: 3885.550049 | D98: 3902.919922 | E98: 3874.709961 | F98: 3876.5 | G98: 5870190000 | H98: 3876.5 | I98: 1 | J98: 1 | K98: 3885.55 | L98: 3902.92 | M98: 3874.71 | N98: 3876.5 | O98: 5870190000
A99: 84 | B99: 2021-02-19 | C99: 3921.159912 | D99: 3930.409912 | E99: 3903.070068 | F99: 3906.709961 | G99: 4823940000 | H99: 3906.709961 | I99: 1 | J99: 1 | K99: 3921.16 | L99: 3930.41 | M99: 3903.07 | N99: 3906.71 | O99: 4823940000
A100: 85 | B100: 2021-02-18 | C100: 3915.860107 | D100: 3921.97998 | E100: 3885.030029 | F100: 3913.969971 | G100: 4773430000 | H100: 3913.969971 | I100: 1 | J100: 1 | K100: 3915.86 | L100: 3921.98 | M100: 3885.03 | N100: 3913.97 | O100: 4773430000
A101: 86 | B101: 2021-02-17 | C101: 3918.5 | D101: 3933.610107 | E101: 3900.429932 | F101: 3931.330078 | G101: 4718280000 | H101: 3931.330078 | I101: 1 | J101: 1 | K101: 3918.5 | L101: 3933.61 | M101: 3900.43 | N101: 3931.33 | O101: 4718280000
A102: 87 | B102: 2021-02-16 | C102: 3939.610107 | D102: 3950.429932 | E102: 3923.850098 | F102: 3932.590088 | G102: 5037360000 | H102: 3932.590088 | I102: 1 | J102: 1 | K102: 3939.61 | L102: 3950.43 | M102: 3923.85 | N102: 3932.59 | O102: 5037360000
A103: 88 | B103: 2021-02-12 | C103: 3911.649902 | D103: 3937.22998 | E103: 3905.780029 | F103: 3934.830078 | G103: 4119260000 | H103: 3934.830078 | I103: 1 | J103: 1 | K103: 3911.65 | L103: 3937.23 | M103: 3905.78 | N103: 3934.83 | O103: 4119260000
A104: 89 | B104: 2021-02-11 | C104: 3916.399902 | D104: 3925.98999 | E104: 3890.389893 | F104: 3916.379883 | G104: 4570080000 | H104: 3916.379883 | I104: 1 | J104: 1 | K104: 3916.4 | L104: 3925.99 | M104: 3890.39 | N104: 3916.38 | O104: 4570080000
A105: 90 | B105: 2021-02-10 | C105: 3920.780029 | D105: 3931.5 | E105: 3884.939941 | F105: 3909.879883 | G105: 4815380000 | H105: 3909.879883 | I105: 1 | J105: 1 | K105: 3920.78 | L105: 3931.5 | M105: 3884.94 | N105: 3909.88 | O105: 4815380000
A106: 91 | B106: 2021-02-09 | C106: 3910.48999 | D106: 3918.350098 | E106: 3902.639893 | F106: 3911.22998 | G106: 4554610000 | H106: 3911.22998 | I106: 1 | J106: 1 | K106: 3910.49 | L106: 3918.35 | M106: 3902.64 | N106: 3911.23 | O106: 4554610000
A107: 92 | B107: 2021-02-08 | C107: 3892.590088 | D107: 3915.77002 | E107: 3892.590088 | F107: 3915.590088 | G107: 4635030000 | H107: 3915.590088 | I107: 1 | J107: 1 | K107: 3892.59 | L107: 3915.77 | M107: 3892.59 | N107: 3915.59 | O107: 4635030000
A108: 93 | B108: 2021-02-05 | C108: 3878.300049 | D108: 3894.560059 | E108: 3874.929932 | F108: 3886.830078 | G108: 4838580000 | H108: 3886.830078 | I108: 1 | J108: 1 | K108: 3878.3 | L108: 3894.56 | M108: 3874.93 | N108: 3886.83 | O108: 4838580000
A109: 94 | B109: 2021-02-04 | C109: 3836.659912 | D109: 3872.419922 | E109: 3836.659912 | F109: 3871.73999 | G109: 4856670000 | H109: 3871.73999 | I109: 1 | J109: 1 | K109: 3836.66 | L109: 3872.42 | M109: 3836.66 | N109: 3871.74 | O109: 4856670000
A110: 95 | B110: 2021-02-03 | C110: 3840.27002 | D110: 3847.51001 | E110: 3816.679932 | F110: 3830.169922 | G110: 4846900000 | H110: 3830.169922 | I110: 1 | J110: 1 | K110: 3840.27 | L110: 3847.51 | M110: 3816.68 | N110: 3830.17 | O110: 4846900000
A111: 96 | B111: 2021-02-02 | C111: 3791.840088 | D111: 3843.090088 | E111: 3791.840088 | F111: 3826.310059 | G111: 5495370000 | H111: 3826.310059 | I111: 1 | J111: 1 | K111: 3791.84 | L111: 3843.09 | M111: 3791.84 | N111: 3826.31 | O111: 5495370000
A112: 97 | B112: 2021-02-01 | C112: 3731.169922 | D112: 3784.320068 | E112: 3725.620117 | F112: 3773.860107 | G112: 5392870000 | H112: 3773.860107 | I112: 1 | J112: 1 | K112: 3731.17 | L112: 3784.32 | M112: 3725.62 | N112: 3773.86 | O112: 5392870000
A113: 98 | B113: 2021-01-29 | C113: 3778.050049 | D113: 3778.050049 | E113: 3694.120117 | F113: 3714.23999 | G113: 6612570000 | H113: 3714.23999 | I113: 1 | J113: 1 | K113: 3778.05 | L113: 3778.05 | M113: 3694.12 | N113: 3714.24 | O113: 6612570000
A114: 99 | B114: 2021-01-28 | C114: 3755.75 | D114: 3830.5 | E114: 3755.75 | F114: 3787.379883 | G114: 6937960000 | H114: 3787.379883 | I114: 1 | J114: 1 | K114: 3755.75 | L114: 3830.5 | M114: 3755.75 | N114: 3787.38 | O114: 6937960000
A115: 100 | B115: 2021-01-27 | C115: 3836.830078 | D115: 3836.830078 | E115: 3732.47998 | F115: 3750.77002 | G115: 9878040000 | H115: 3750.77002 | I115: 1 | J115: 1 | K115: 3836.83 | L115: 3836.83 | M115: 3732.48 | N115: 3750.77 | O115: 9878040000
A116: 101 | B116: 2021-01-26 | C116: 3862.959961 | D116: 3870.899902 | E116: 3847.780029 | F116: 3849.620117 | G116: 6029090000 | H116: 3849.620117 | I116: 1 | J116: 1 | K116: 3862.96 | L116: 3870.9 | M116: 3847.78 | N116: 3849.62 | O116: 6029090000
A117: 102 | B117: 2021-01-25 | C117: 3851.679932 | D117: 3859.22998 | E117: 3797.159912 | F117: 3855.360107 | G117: 6955860000 | H117: 3855.360107 | I117: 1 | J117: 1 | K117: 3851.68 | L117: 3859.23 | M117: 3797.16 | N117: 3855.36 | O117: 6955860000
A118: 103 | B118: 2021-01-22 | C118: 3844.23999 | D118: 3852.310059 | E118: 3830.409912 | F118: 3841.469971 | G118: 5080430000 | H118: 3841.469971 | I118: 1 | J118: 1 | K118: 3844.24 | L118: 3852.31 | M118: 3830.41 | N118: 3841.47 | O118: 5080430000
A119: 104 | B119: 2021-01-21 | C119: 3857.459961 | D119: 3861.449951 | E119: 3845.050049 | F119: 3853.070068 | G119: 4484460000 | H119: 3853.070068 | I119: 1 | J119: 1 | K119: 3857.46 | L119: 3861.45 | M119: 3845.05 | N119: 3853.07 | O119: 4484460000
A120: 105 | B120: 2021-01-20 | C120: 3816.219971 | D120: 3859.75 | E120: 3816.219971 | F120: 3851.850098 | G120: 4551790000 | H120: 3851.850098 | I120: 1 | J120: 1 | K120: 3816.22 | L120: 3859.75 | M120: 3816.22 | N120: 3851.85 | O120: 4551790000
A121: 106 | B121: 2021-01-19 | C121: 3781.879883 | D121: 3804.530029 | E121: 3780.370117 | F121: 3798.909912 | G121: 4982940000 | H121: 3798.909912 | I121: 1 | J121: 1 | K121: 3781.88 | L121: 3804.53 | M121: 3780.37 | N121: 3798.91 | O121: 4982940000
A122: 107 | B122: 2021-01-15 | C122: 3788.72998 | D122: 3788.72998 | E122: 3749.620117 | F122: 3768.25 | G122: 5353060000 | H122: 3768.25 | I122: 1 | J122: 1 | K122: 3788.73 | L122: 3788.73 | M122: 3749.62 | N122: 3768.25 | O122: 5353060000
A123: 108 | B123: 2021-01-14 | C123: 3814.97998 | D123: 3823.600098 | E123: 3792.860107 | F123: 3795.540039 | G123: 5180140000 | H123: 3795.540039 | I123: 1 | J123: 1 | K123: 3814.98 | L123: 3823.6 | M123: 3792.86 | N123: 3795.54 | O123: 5180140000
A124: 109 | B124: 2021-01-13 | C124: 3802.22998 | D124: 3820.959961 | E124: 3791.5 | F124: 3809.840088 | G124: 4590420000 | H124: 3809.840088 | I124: 1 | J124: 1 | K124: 3802.23 | L124: 3820.96 | M124: 3791.5 | N124: 3809.84 | O124: 4590420000
A125: 110 | B125: 2021-01-12 | C125: 3801.620117 | D125: 3810.780029 | E125: 3776.51001 | F125: 3801.189941 | G125: 4977210000 | H125: 3801.189941 | I125: 1 | J125: 1 | K125: 3801.62 | L125: 3810.78 | M125: 3776.51 | N125: 3801.19 | O125: 4977210000
A126: 111 | B126: 2021-01-11 | C126: 3803.139893 | D126: 3817.860107 | E126: 3789.02002 | F126: 3799.610107 | G126: 4450500000 | H126: 3799.610107 | I126: 1 | J126: 1 | K126: 3803.14 | L126: 3817.86 | M126: 3789.02 | N126: 3799.61 | O126: 4450500000
A127: 112 | B127: 2021-01-08 | C127: 3815.050049 | D127: 3826.689941 | E127: 3783.600098 | F127: 3824.679932 | G127: 4764180000 | H127: 3824.679932 | I127: 1 | J127: 1 | K127: 3815.05 | L127: 3826.69 | M127: 3783.6 | N127: 3824.68 | O127: 4764180000
A128: 113 | B128: 2021-01-07 | C128: 3764.709961 | D128: 3811.550049 | E128: 3764.709961 | F128: 3803.790039 | G128: 5080870000 | H128: 3803.790039 | I128: 1 | J128: 1 | K128: 3764.71 | L128: 3811.55 | M128: 3764.71 | N128: 3803.79 | O128: 5080870000
A129: 114 | B129: 2021-01-06 | C129: 3712.199951 | D129: 3783.040039 | E129: 3705.340088 | F129: 3748.139893 | G129: 6049970000 | H129: 3748.139893 | I129: 1 | J129: 1 | K129: 3712.2 | L129: 3783.04 | M129: 3705.34 | N129: 3748.14 | O129: 6049970000
A130: 115 | B130: 2021-01-05 | C130: 3698.02002 | D130: 3737.830078 | E130: 3695.070068 | F130: 3726.860107 | G130: 4582620000 | H130: 3726.860107 | I130: 1 | J130: 1 | K130: 3698.02 | L130: 3737.83 | M130: 3695.07 | N130: 3726.86 | O130: 4582620000
A131: 116 | B131: 2021-01-04 | C131: 3764.610107 | D131: 3769.98999 | E131: 3662.709961 | F131: 3700.649902 | G131: 5006680000 | H131: 3700.649902 | I131: 1 | J131: 1 | K131: 3764.61 | L131: 3769.99 | M131: 3662.71 | N131: 3700.65 | O131: 5006680000
A132: 117 | B132: 2020-12-31 | C132: 3733.27002 | D132: 3760.199951 | E132: 3726.879883 | F132: 3756.070068 | G132: 3172510000 | H132: 3756.070068 | I132: 1 | J132: 1 | K132: 3733.27 | L132: 3760.2 | M132: 3726.88 | N132: 3756.07 | O132: 3172510000
A133: 118 | B133: 2020-12-30 | C133: 3736.189941 | D133: 3744.629883 | E133: 3730.209961 | F133: 3732.040039 | G133: 3145200000 | H133: 3732.040039 | I133: 1 | J133: 1 | K133: 3736.19 | L133: 3744.63 | M133: 3730.21 | N133: 3732.04 | O133: 3145200000
A134: 119 | B134: 2020-12-29 | C134: 3750.01001 | D134: 3756.120117 | E134: 3723.310059 | F134: 3727.040039 | G134: 3387030000 | H134: 3727.040039 | I134: 1 | J134: 1 | K134: 3750.01 | L134: 3756.12 | M134: 3723.31 | N134: 3727.04 | O134: 3387030000
A135: 120 | B135: 2020-12-28 | C135: 3723.030029 | D135: 3740.51001 | E135: 3723.030029 | F135: 3735.360107 | G135: 3527460000 | H135: 3735.360107 | I135: 1 | J135: 1 | K135: 3723.03 | L135: 3740.51 | M135: 3723.03 | N135: 3735.36 | O135: 3527460000
A136: 121 | B136: 2020-12-24 | C136: 3694.030029 | D136: 3703.820068 | E136: 3689.320068 | F136: 3703.060059 | G136: 1885090000 | H136: 3703.060059 | I136: 1 | J136: 1 | K136: 3694.03 | L136: 3703.82 | M136: 3689.32 | N136: 3703.06 | O136: 1885090000
A137: 122 | B137: 2020-12-23 | C137: 3693.419922 | D137: 3711.23999 | E137: 3689.280029 | F137: 3690.01001 | G137: 3772630000 | H137: 3690.01001 | I137: 1 | J137: 1 | K137: 3693.42 | L137: 3711.24 | M137: 3689.28 | N137: 3690.01 | O137: 3772630000
A138: 123 | B138: 2020-12-22 | C138: 3698.080078 | D138: 3698.26001 | E138: 3676.159912 | F138: 3687.26001 | G138: 4023940000 | H138: 3687.26001 | I138: 1 | J138: 1 | K138: 3698.08 | L138: 3698.26 | M138: 3676.16 | N138: 3687.26 | O138: 4023940000
A139: 124 | B139: 2020-12-21 | C139: 3684.280029 | D139: 3702.899902 | E139: 3636.47998 | F139: 3694.919922 | G139: 4732160000 | H139: 3694.919922 | I139: 1 | J139: 1 | K139: 3684.28 | L139: 3702.9 | M139: 3636.48 | N139: 3694.92 | O139: 4732160000
A140: 125 | B140: 2020-12-18 | C140: 3722.389893 | D140: 3726.699951 | E140: 3685.840088 | F140: 3709.409912 | G140: 7068340000 | H140: 3709.409912 | I140: 1 | J140: 1 | K140: 3722.39 | L140: 3726.7 | M140: 3685.84 | N140: 3709.41 | O140: 7068340000
A141: 126 | B141: 2020-12-17 | C141: 3713.649902 | D141: 3725.120117 | E141: 3710.870117 | F141: 3722.47998 | G141: 4184930000 | H141: 3722.47998 | I141: 1 | J141: 1 | K141: 3713.65 | L141: 3725.12 | M141: 3710.87 | N141: 3722.48 | O141: 4184930000
A142: 127 | B142: 2020-12-16 | C142: 3696.25 | D142: 3711.27002 | E142: 3688.570068 | F142: 3701.169922 | G142: 4056950000 | H142: 3701.169922 | I142: 1 | J142: 1 | K142: 3696.25 | L142: 3711.27 | M142: 3688.57 | N142: 3701.17 | O142: 4056950000
A143: 128 | B143: 2020-12-15 | C143: 3666.409912 | D143: 3695.290039 | E143: 3659.620117 | F143: 3694.620117 | G143: 4360280000 | H143: 3694.620117 | I143: 1 | J143: 1 | K143: 3666.41 | L143: 3695.29 | M143: 3659.62 | N143: 3694.62 | O143: 4360280000
A144: 129 | B144: 2020-12-14 | C144: 3675.27002 | D144: 3697.610107 | E144: 3645.840088 | F144: 3647.48999 | G144: 4594920000 | H144: 3647.48999 | I144: 1 | J144: 1 | K144: 3675.27 | L144: 3697.61 | M144: 3645.84 | N144: 3647.49 | O144: 4594920000
A145: 130 | B145: 2020-12-11 | C145: 3656.080078 | D145: 3665.909912 | E145: 3633.399902 | F145: 3663.459961 | G145: 4367150000 | H145: 3663.459961 | I145: =IF(F145=0,1,H145/F145) -> 1 | J145: =INDEX(OFFSET($T$15,0,0,$S$13+1,1),MATCH(B145,OFFSET($Q$15,0,0,$S$13+1,1),-1)) -> 1 | K145: =ROUND($I145*C145,2) -> 3656.08 | L145: =ROUND($I145*D145,2) -> 3665.91 | M145: =ROUND($I145*E145,2) -> 3633.4 | N145: =ROUND($I145*F145,2) -> 3663.46 | O145: =G145*J145 -> 4367150000
A146: 131 | B146: 2020-12-10 | C146: 3659.129883 | D146: 3678.48999 | E146: 3645.179932 | F146: 3668.100098 | G146: 4618240000 | H146: 3668.100098 | I146: 1 | J146: 1 | K146: 3659.13 | L146: 3678.49 | M146: 3645.18 | N146: 3668.1 | O146: 4618240000
A147: 132 | B147: 2020-12-09 | C147: 3705.97998 | D147: 3712.389893 | E147: 3660.540039 | F147: 3672.820068 | G147: 5209940000 | H147: 3672.820068 | I147: 1 | J147: 1 | K147: 3705.98 | L147: 3712.39 | M147: 3660.54 | N147: 3672.82 | O147: 5209940000
A148: 133 | B148: 2020-12-08 | C148: 3683.050049 | D148: 3708.449951 | E148: 3678.830078 | F148: 3702.25 | G148: 4549670000 | H148: 3702.25 | I148: 1 | J148: 1 | K148: 3683.05 | L148: 3708.45 | M148: 3678.83 | N148: 3702.25 | O148: 4549670000
A149: 134 | B149: 2020-12-07 | C149: 3694.72998 | D149: 3697.409912 | E149: 3678.879883 | F149: 3691.959961 | G149: 4788560000 | H149: 3691.959961 | I149: 1 | J149: 1 | K149: 3694.73 | L149: 3697.41 | M149: 3678.88 | N149: 3691.96 | O149: 4788560000
A150: 135 | B150: 2020-12-04 | C150: 3670.939941 | D150: 3699.199951 | E150: 3670.939941 | F150: 3699.120117 | G150: 5086370000 | H150: 3699.120117 | I150: 1 | J150: 1 | K150: 3670.94 | L150: 3699.2 | M150: 3670.94 | N150: 3699.12 | O150: 5086370000
A151: 136 | B151: 2020-12-03 | C151: 3668.280029 | D151: 3682.72998 | E151: 3657.169922 | F151: 3666.719971 | G151: 5091760000 | H151: 3666.719971 | I151: 1 | J151: 1 | K151: 3668.28 | L151: 3682.73 | M151: 3657.17 | N151: 3666.72 | O151: 5091760000
A152: 137 | B152: 2020-12-02 | C152: 3653.780029 | D152: 3670.959961 | E152: 3644.840088 | F152: 3669.01001 | G152: 5029620000 | H152: 3669.01001 | I152: 1 | J152: 1 | K152: 3653.78 | L152: 3670.96 | M152: 3644.84 | N152: 3669.01 | O152: 5029620000
A153: 138 | B153: 2020-12-01 | C153: 3645.870117 | D153: 3678.449951 | E153: 3645.870117 | F153: 3662.449951 | G153: 5403660000 | H153: 3662.449951 | I153: 1 | J153: 1 | K153: 3645.87 | L153: 3678.45 | M153: 3645.87 | N153: 3662.45 | O153: 5403660000
A154: 139 | B154: 2020-11-30 | C154: 3634.179932 | D154: 3634.179932 | E154: 3594.389893 | F154: 3621.629883 | G154: 6291400000 | H154: 3621.629883 | I154: 1 | J154: 1 | K154: 3634.18 | L154: 3634.18 | M154: 3594.39 | N154: 3621.63 | O154: 6291400000
A155: 140 | B155: 2020-11-27 | C155: 3638.550049 | D155: 3644.310059 | E155: 3629.330078 | F155: 3638.350098 | G155: 2778450000 | H155: 3638.350098 | I155: 1 | J155: 1 | K155: 3638.55 | L155: 3644.31 | M155: 3629.33 | N155: 3638.35 | O155: 2778450000
A156: 141 | B156: 2020-11-25 | C156: 3635.5 | D156: 3635.5 | E156: 3617.76001 | F156: 3629.649902 | G156: 4902560000 | H156: 3629.649902 | I156: 1 | J156: 1 | K156: 3635.5 | L156: 3635.5 | M156: 3617.76 | N156: 3629.65 | O156: 4902560000
A157: 142 | B157: 2020-11-24 | C157: 3594.52002 | D157: 3642.310059 | E157: 3594.52002 | F157: 3635.409912 | G157: 6267570000 | H157: 3635.409912 | I157: 1 | J157: 1 | K157: 3594.52 | L157: 3642.31 | M157: 3594.52 | N157: 3635.41 | O157: 6267570000
A158: 143 | B158: 2020-11-23 | C158: 3566.820068 | D158: 3589.810059 | E158: 3552.77002 | F158: 3577.590088 | G158: 5036290000 | H158: 3577.590088 | I158: 1 | J158: 1 | K158: 3566.82 | L158: 3589.81 | M158: 3552.77 | N158: 3577.59 | O158: 5036290000
A159: 144 | B159: 2020-11-20 | C159: 3579.310059 | D159: 3581.22998 | E159: 3556.850098 | F159: 3557.540039 | G159: 4218970000 | H159: 3557.540039 | I159: 1 | J159: 1 | K159: 3579.31 | L159: 3581.23 | M159: 3556.85 | N159: 3557.54 | O159: 4218970000
A160: 145 | B160: 2020-11-19 | C160: 3559.409912 | D160: 3585.219971 | E160: 3543.840088 | F160: 3581.870117 | G160: 4347200000 | H160: 3581.870117 | I160: 1 | J160: 1 | K160: 3559.41 | L160: 3585.22 | M160: 3543.84 | N160: 3581.87 | O160: 4347200000
A161: 146 | B161: 2020-11-18 | C161: 3612.090088 | D161: 3619.090088 | E161: 3567.330078 | F161: 3567.790039 | G161: 5274450000 | H161: 3567.790039 | I161: 1 | J161: 1 | K161: 3612.09 | L161: 3619.09 | M161: 3567.33 | N161: 3567.79 | O161: 5274450000
A162: 147 | B162: 2020-11-17 | C162: 3610.310059 | D162: 3623.110107 | E162: 3588.679932 | F162: 3609.530029 | G162: 4799570000 | H162: 3609.530029 | I162: 1 | J162: 1 | K162: 3610.31 | L162: 3623.11 | M162: 3588.68 | N162: 3609.53 | O162: 4799570000
A163: 148 | B163: 2020-11-16 | C163: 3600.159912 | D163: 3628.51001 | E163: 3600.159912 | F163: 3626.909912 | G163: 5281980000 | H163: 3626.909912 | I163: 1 | J163: 1 | K163: 3600.16 | L163: 3628.51 | M163: 3600.16 | N163: 3626.91 | O163: 5281980000
A164: 149 | B164: 2020-11-13 | C164: 3552.570068 | D164: 3593.659912 | E164: 3552.570068 | F164: 3585.149902 | G164: 4709670000 | H164: 3585.149902 | I164: 1 | J164: 1 | K164: 3552.57 | L164: 3593.66 | M164: 3552.57 | N164: 3585.15 | O164: 4709670000
A165: 150 | B165: 2020-11-12 | C165: 3562.669922 | D165: 3569.02002 | E165: 3518.580078 | F165: 3537.01001 | G165: 4890120000 | H165: 3537.01001 | I165: 1 | J165: 1 | K165: 3562.67 | L165: 3569.02 | M165: 3518.58 | N165: 3537.01 | O165: 4890120000
A166: 151 | B166: 2020-11-11 | C166: 3563.219971 | D166: 3581.159912 | E166: 3557 | F166: 3572.659912 | G166: 4609970000 | H166: 3572.659912 | I166: 1 | J166: 1 | K166: 3563.22 | L166: 3581.16 | M166: 3557 | N166: 3572.66 | O166: 4609970000
A167: 152 | B167: 2020-11-10 | C167: 3543.26001 | D167: 3557.219971 | E167: 3511.909912 | F167: 3545.530029 | G167: 6024230000 | H167: 3545.530029 | I167: 1 | J167: 1 | K167: 3543.26 | L167: 3557.22 | M167: 3511.91 | N167: 3545.53 | O167: 6024230000
A168: 153 | B168: 2020-11-09 | C168: 3583.040039 | D168: 3645.98999 | E168: 3547.47998 | F168: 3550.5 | G168: 8556610000 | H168: 3550.5 | I168: 1 | J168: 1 | K168: 3583.04 | L168: 3645.99 | M168: 3547.48 | N168: 3550.5 | O168: 8556610000
A169: 154 | B169: 2020-11-06 | C169: 3508.340088 | D169: 3521.580078 | E169: 3484.340088 | F169: 3509.439941 | G169: 4833950000 | H169: 3509.439941 | I169: 1 | J169: 1 | K169: 3508.34 | L169: 3521.58 | M169: 3484.34 | N169: 3509.44 | O169: 4833950000
A170: 155 | B170: 2020-11-05 | C170: 3485.73999 | D170: 3529.050049 | E170: 3485.73999 | F170: 3510.449951 | G170: 4841190000 | H170: 3510.449951 | I170: 1 | J170: 1 | K170: 3485.74 | L170: 3529.05 | M170: 3485.74 | N170: 3510.45 | O170: 4841190000
A171: 156 | B171: 2020-11-04 | C171: 3406.459961 | D171: 3486.25 | E171: 3405.169922 | F171: 3443.439941 | G171: 4783040000 | H171: 3443.439941 | I171: 1 | J171: 1 | K171: 3406.46 | L171: 3486.25 | M171: 3405.17 | N171: 3443.44 | O171: 4783040000
A172: 157 | B172: 2020-11-03 | C172: 3336.25 | D172: 3389.48999 | E172: 3336.25 | F172: 3369.159912 | G172: 4220070000 | H172: 3369.159912 | I172: 1 | J172: 1 | K172: 3336.25 | L172: 3389.49 | M172: 3336.25 | N172: 3369.16 | O172: 4220070000
A173: 158 | B173: 2020-11-02 | C173: 3296.199951 | D173: 3330.139893 | E173: 3279.73999 | F173: 3310.23999 | G173: 4310590000 | H173: 3310.23999 | I173: 1 | J173: 1 | K173: 3296.2 | L173: 3330.14 | M173: 3279.74 | N173: 3310.24 | O173: 4310590000
A174: 159 | B174: 2020-10-30 | C174: 3293.590088 | D174: 3304.929932 | E174: 3233.939941 | F174: 3269.959961 | G174: 4840450000 | H174: 3269.959961 | I174: 1 | J174: 1 | K174: 3293.59 | L174: 3304.93 | M174: 3233.94 | N174: 3269.96 | O174: 4840450000
A175: 160 | B175: 2020-10-29 | C175: 3277.169922 | D175: 3341.050049 | E175: 3259.820068 | F175: 3310.110107 | G175: 4903070000 | H175: 3310.110107 | I175: 1 | J175: 1 | K175: 3277.17 | L175: 3341.05 | M175: 3259.82 | N175: 3310.11 | O175: 4903070000
A176: 161 | B176: 2020-10-28 | C176: 3342.47998 | D176: 3342.47998 | E176: 3268.889893 | F176: 3271.030029 | G176: 5129860000 | H176: 3271.030029 | I176: 1 | J176: 1 | K176: 3342.48 | L176: 3342.48 | M176: 3268.89 | N176: 3271.03 | O176: 5129860000
A177: 162 | B177: 2020-10-27 | C177: 3403.149902 | D177: 3409.51001 | E177: 3388.709961 | F177: 3390.679932 | G177: 3946990000 | H177: 3390.679932 | I177: 1 | J177: 1 | K177: 3403.15 | L177: 3409.51 | M177: 3388.71 | N177: 3390.68 | O177: 3946990000
A178: 163 | B178: 2020-10-26 | C178: 3441.419922 | D178: 3441.419922 | E178: 3364.860107 | F178: 3400.969971 | G178: 3988080000 | H178: 3400.969971 | I178: 1 | J178: 1 | K178: 3441.42 | L178: 3441.42 | M178: 3364.86 | N178: 3400.97 | O178: 3988080000
A179: 164 | B179: 2020-10-23 | C179: 3464.899902 | D179: 3466.459961 | E179: 3440.449951 | F179: 3465.389893 | G179: 3646570000 | H179: 3465.389893 | I179: 1 | J179: 1 | K179: 3464.9 | L179: 3466.46 | M179: 3440.45 | N179: 3465.39 | O179: 3646570000
A180: 165 | B180: 2020-10-22 | C180: 3438.5 | D180: 3460.530029 | E180: 3415.340088 | F180: 3453.48999 | G180: 4163630000 | H180: 3453.48999 | I180: 1 | J180: 1 | K180: 3438.5 | L180: 3460.53 | M180: 3415.34 | N180: 3453.49 | O180: 4163630000
A181: 166 | B181: 2020-10-21 | C181: 3439.909912 | D181: 3464.860107 | E181: 3433.060059 | F181: 3435.560059 | G181: 4097750000 | H181: 3435.560059 | I181: 1 | J181: 1 | K181: 3439.91 | L181: 3464.86 | M181: 3433.06 | N181: 3435.56 | O181: 4097750000
A182: 167 | B182: 2020-10-20 | C182: 3439.379883 | D182: 3476.929932 | E182: 3435.649902 | F182: 3443.120117 | G182: 3901260000 | H182: 3443.120117 | I182: 1 | J182: 1 | K182: 3439.38 | L182: 3476.93 | M182: 3435.65 | N182: 3443.12 | O182: 3901260000
A183: 168 | B183: 2020-10-19 | C183: 3493.659912 | D183: 3502.419922 | E183: 3419.929932 | F183: 3426.919922 | G183: 4086200000 | H183: 3426.919922 | I183: 1 | J183: 1 | K183: 3493.66 | L183: 3502.42 | M183: 3419.93 | N183: 3426.92 | O183: 4086200000
A184: 169 | B184: 2020-10-16 | C184: 3493.5 | D184: 3515.76001 | E184: 3480.449951 | F184: 3483.810059 | G184: 4675890000 | H184: 3483.810059 | I184: 1 | J184: 1 | K184: 3493.5 | L184: 3515.76 | M184: 3480.45 | N184: 3483.81 | O184: 4675890000
A185: 170 | B185: 2020-10-15 | C185: 3453.719971 | D185: 3489.080078 | E185: 3440.889893 | F185: 3483.340088 | G185: 3717640000 | H185: 3483.340088 | I185: 1 | J185: 1 | K185: 3453.72 | L185: 3489.08 | M185: 3440.89 | N185: 3483.34 | O185: 3717640000
A186: 171 | B186: 2020-10-14 | C186: 3515.469971 | D186: 3527.939941 | E186: 3480.550049 | F186: 3488.669922 | G186: 3840630000 | H186: 3488.669922 | I186: 1 | J186: 1 | K186: 3515.47 | L186: 3527.94 | M186: 3480.55 | N186: 3488.67 | O186: 3840630000
A187: 172 | B187: 2020-10-13 | C187: 3534.01001 | D187: 3534.01001 | E187: 3500.860107 | F187: 3511.929932 | G187: 3605150000 | H187: 3511.929932 | I187: 1 | J187: 1 | K187: 3534.01 | L187: 3534.01 | M187: 3500.86 | N187: 3511.93 | O187: 3605150000
A188: 173 | B188: 2020-10-12 | C188: 3500.02002 | D188: 3549.850098 | E188: 3499.610107 | F188: 3534.219971 | G188: 3428970000 | H188: 3534.219971 | I188: 1 | J188: 1 | K188: 3500.02 | L188: 3549.85 | M188: 3499.61 | N188: 3534.22 | O188: 3428970000
A189: 174 | B189: 2020-10-09 | C189: 3459.669922 | D189: 3482.340088 | E189: 3458.070068 | F189: 3477.139893 | G189: 3939060000 | H189: 3477.139893 | I189: 1 | J189: 1 | K189: 3459.67 | L189: 3482.34 | M189: 3458.07 | N189: 3477.14 | O189: 3939060000
A190: 175 | B190: 2020-10-08 | C190: 3434.280029 | D190: 3447.280029 | E190: 3428.149902 | F190: 3446.830078 | G190: 3856190000 | H190: 3446.830078 | I190: 1 | J190: 1 | K190: 3434.28 | L190: 3447.28 | M190: 3428.15 | N190: 3446.83 | O190: 3856190000
A191: 176 | B191: 2020-10-07 | C191: 3384.560059 | D191: 3426.26001 | E191: 3384.560059 | F191: 3419.439941 | G191: 3807830000 | H191: 3419.439941 | I191: 1 | J191: 1 | K191: 3384.56 | L191: 3426.26 | M191: 3384.56 | N191: 3419.44 | O191: 3807830000
A192: 177 | B192: 2020-10-06 | C192: 3408.73999 | D192: 3431.560059 | E192: 3354.540039 | F192: 3360.969971 | G192: 4443380000 | H192: 3360.969971 | I192: 1 | J192: 1 | K192: 3408.74 | L192: 3431.56 | M192: 3354.54 | N192: 3360.97 | O192: 4443380000
A193: 178 | B193: 2020-10-05 | C193: 3367.27002 | D193: 3409.570068 | E193: 3367.27002 | F193: 3408.600098 | G193: 3686920000 | H193: 3408.600098 | I193: 1 | J193: 1 | K193: 3367.27 | L193: 3409.57 | M193: 3367.27 | N193: 3408.6 | O193: 3686920000
A194: 179 | B194: 2020-10-02 | C194: 3338.939941 | D194: 3369.100098 | E194: 3323.689941 | F194: 3348.419922 | G194: 3961550000 | H194: 3348.419922 | I194: 1 | J194: 1 | K194: 3338.94 | L194: 3369.1 | M194: 3323.69 | N194: 3348.42 | O194: 3961550000
A195: 180 | B195: 2020-10-01 | C195: 3385.870117 | D195: 3397.179932 | E195: 3361.389893 | F195: 3380.800049 | G195: 4070530000 | H195: 3380.800049 | I195: 1 | J195: 1 | K195: 3385.87 | L195: 3397.18 | M195: 3361.39 | N195: 3380.8 | O195: 4070530000
A196: 181 | B196: 2020-09-30 | C196: 3341.209961 | D196: 3393.560059 | E196: 3340.469971 | F196: 3363 | G196: 4722530000 | H196: 3363 | I196: 1 | J196: 1 | K196: 3341.21 | L196: 3393.56 | M196: 3340.47 | N196: 3363 | O196: 4722530000
A197: 182 | B197: 2020-09-29 | C197: 3350.919922 | D197: 3357.919922 | E197: 3327.540039 | F197: 3335.469971 | G197: 3651880000 | H197: 3335.469971 | I197: 1 | J197: 1 | K197: 3350.92 | L197: 3357.92 | M197: 3327.54 | N197: 3335.47 | O197: 3651880000
A198: 183 | B198: 2020-09-28 | C198: 3333.899902 | D198: 3360.73999 | E198: 3332.909912 | F198: 3351.600098 | G198: 3946060000 | H198: 3351.600098 | I198: 1 | J198: 1 | K198: 3333.9 | L198: 3360.74 | M198: 3332.91 | N198: 3351.6 | O198: 3946060000
A199: 184 | B199: 2020-09-25 | C199: 3236.659912 | D199: 3306.879883 | E199: 3228.439941 | F199: 3298.459961 | G199: 3792220000 | H199: 3298.459961 | I199: 1 | J199: 1 | K199: 3236.66 | L199: 3306.88 | M199: 3228.44 | N199: 3298.46 | O199: 3792220000
A200: 185 | B200: 2020-09-24 | C200: 3226.139893 | D200: 3278.699951 | E200: 3209.449951 | F200: 3246.590088 | G200: 4599470000 | H200: 3246.590088 | I200: 1 | J200: 1 | K200: 3226.14 | L200: 3278.7 | M200: 3209.45 | N200: 3246.59 | O200: 4599470000
... 4300 more rows

Sheet CalculationsAndCharts
A1: MABnBW.xlsm
A2: =InputPriceData!A1 -> S&P 500 (^GSPC) -SNP (Daily)
A4: User Charting Controls | E4: Click to Shift Chart One Bar:
A5: Data Control | C5: TRUE
A6: =InputPriceData!$B$10 -> 17794 | B6: Available Input Data Rows | E6: Earliest: | F6: =OFFSET(InputPriceData!B15,CalculationsAndCharts!A6,0,1,1) -> 1950-10-02
A7: =MAX(A33:A56896) -> 2500 | B7: Available Calculation Rows | E7: Latest: | F7: =OFFSET(InputPriceData!B15,1,0,1,1) -> 2021-06-18
A8: =MIN(AvailableInputRows-DataPanRows,A7) -> 2500 | B8: Logically Available for Calc / Plot | E8: $ Change: | F8: =G33-G34 -> 8.76
A10: Historical Price Windowing Specifications | F10: Click to Shift
A11: 4331 | B11: Input Data Offset (Pan) | F11: Points to Plot
A12: 1804 | B12: Data Points to Plot (Zoom)
B13: First: | C13: =OFFSET(B32,A12,0,1,1) -> 1997-02-03
B14: ="Last: " & IF(OFFSET(InputPriceData!P15,1+A11,0,1,1)="","",TEXT(OFFSET(InputPriceData!P15,1+A11,0,1,1),"H:MM AM/PM")) -> Last: | C14: =B33 -> 2004-04-05
A15: User Controls | C15: EMA Coefficients
A16: MABnBW | C16: alpha | D16: 1-alpha
A17: 200 | B17: Periods1 | C17: =2/(A17+1) -> 0.009950248756 | D17: =1-C17 -> 0.9900497512
A18: 50 | B18: Periods2 | C18: =2/(A18+1) -> 0.03921568627 | D18: =1-C18 -> 0.9607843137
A19: 1 | B19: Mltp | N19: ="MA BandWidth("&A17&","&A18&","&A19&")" -> MA BandWidth(200,50,1)
N20: ="Moving Average Bands("&A17&","&A18&","&A19&")" -> Moving Average Bands(200,50,1)
A25: Help! I would like to plot data
A26: From | B26: 1997-02-03 | C26: =OFFSET(InputPriceData!$A$15,MATCH(B26,OFFSET(InputPriceData!B15,1,0,InputPriceData!$B$10,1),0),0,1,1)-C27 -> 1804 | E26: 919
A27: To | B27: 2004-04-05 | C27: =OFFSET(InputPriceData!$A$15,MATCH(B27,OFFSET(InputPriceData!$B$15,1,0,InputPriceData!$B$10,1),0),0,1,1)-1 -> 4331 | E27: =$A$12-$E$26+1 -> 886
H28: Value @ Cursor => | I28: =OFFSET(A32,$E$27,0,1,1)&"(RR)" -> 886(RR) | J28: =OFFSET($B$32,E27,0,1,1) -> 2000-09-22 | K28: =TEXT(OFFSET(D32,$E$27,0,1,1),"#,##0.00")&"(o)" -> 1,449.05(o) | L28: =TEXT(OFFSET(E32,$E$27,0,1,1),"#,##0.00")&"(h)" -> 1,449.05(h) | M28: =TEXT(OFFSET(F32,$E$27,0,1,1),"#,##0.00")&"(l)" -> 1,421.88(l) | N28: =TEXT(OFFSET(G32,$E$27,0,1,1),"#,##0.00")&"(c)" -> 1,448.72(c) | O28: =TEXT(OFFSET(C32,$E$27,0,1,1),"#,##0.00,,""M""")&"(v)" -> 1,185.50M(v)
E29: Cursor ==> | AY29: Work Area For Chart Cursors
B30: =LogicallyAvailableRows -> 2500 | C30: <== Calculation Rel Row Limits ==> | H30: =$A$8-$A$17+1 -> 2301 | I30: =$A$8-$A$18+1 -> 2451 | J30: =MIN(H30:I30) -> 2301 | K30: =J30-A18+1 -> 2252 | P30: =K30-A17+1 -> 2053
A31: Rel Row | AW31: Used To Color Vol Bars
B32: Date | C32: Volume | D32: Open | E32: High | F32: Low | G32: Close | H32: ="EMA1(" & A17 & ")" -> EMA1(200) | I32: ="EMA2(" & A18 & ")" -> EMA2(50) | J32: DST | K32: ="DV("&$A$18&")" -> DV(50) | L32: ="DEV("&$A$18&")" -> DEV(50) | M32: UPBND | N32: DWNBND | O32: BNDW | P32: ="LlvBNDW("&$A$17&")" -> LlvBNDW(200) | AW32: Up Vol | AX32: Dn Vol | AY32: Volume Cursor | AZ32: =MAX(OFFSET(C33,0,0,A12,1)) -> 2775560000 | BA32: Price Chart Cursor | BC32: Indicator 01 Cursor | BE32: Indicator 02 Cursor | BG32: Indicator 03 Cursor | BI32: Indicator 04 Cursor
A33: 1 | B33: =IF(A33>$B$30,NA(),IF($A33>$A$8,"",OFFSET(InputPriceData!$B$15,$A33+$A$11,0,1,1))) -> 2004-04-05 | C33: =IF(A33>$B$30,NA(),IF($A33>$A$8,"",OFFSET(InputPriceData!$G$15,CalculationsAndCharts!$A33+$A$11,IF($C$5,8,0),1,1))) -> 1413700000 | D33: =IF(A33>$B$30,NA(),IF(A33>$A$8,"",OFFSET(InputPriceData!$C$15,CalculationsAndCharts!$A33+$A$11,IF($C$5,8,0),1,1))) -> 1141.81 | E33: =IF(A33>$B$30,NA(),IF(A33>$A$8,"",OFFSET(InputPriceData!$D$15,CalculationsAndCharts!$A33+$A$11,IF($C$5,8,0),1,1))) -> 1150.57 | F33: =IF(A33>$B$30,NA(),IF(A33>$A$8,"",OFFSET(InputPriceData!$E$15,CalculationsAndCharts!$A33+$A$11,IF($C$5,8,0),1,1))) -> 1141.64 | G33: =IF(A33>$B$30,NA(),IF(A33>$A$8,"",OFFSET(InputPriceData!$F$15,CalculationsAndCharts!$A33+$A$11,IF($C$5,8,0),1,1))) -> 1150.57 | H33: =IF($A33>$H$30,NA(),IF($A33=$H$30,AVERAGE(OFFSET($G33,0,0,$A$17,1)),$G33*$C$17+H34*$D$17)) -> 1067.599427 | I33: =IF($A33>$I$30,NA(),IF($A33=$I$30,AVERAGE(OFFSET($G33,0,0,$A$18,1)),$G33*$C$18+I34*$D$18)) -> 1124.515323 | J33: =IF($A33>J$30,NA(),H33-I33) -> -56.91589588 | K33: =IF($A33>K$30,NA(),SUMSQ(OFFSET(J33,0,0,$A$18,1))/$A$18) -> 4895.833401 | L33: =IF($A33>K$30,NA(),SQRT(K33)*$A$19) -> 69.97023225 | M33: =IF($A33>K$30,NA(),H33+L33) -> 1137.569659 | N33: =IF($A33>K$30,NA(),H33-L33) -> 997.6291946 | O33: =IF($A33>K$30,NA(),(M33-N33)/H33*100) -> 13.10795613 | P33: =IF($A33>P$30,NA(),MIN(OFFSET(O33,0,0,$A$17,1))) -> 4.363115905 | AW33: =IF(G33>=D33,C33,NA()) -> 1413700000 | AX33: =IF(G33<D33,C33,NA()) ->  | AY33: =$E$27 -> 886 | AZ33: 0 | BA33: =$E$27 -> 886 | BB33: 715.2015 | BC33: =$E$27 -> 886 | BD33: 628.1693966 | BE33: =$E$27 -> 886 | BF33: 1.369329644 | BG33: =$E$27 -> 886 | BH33: -1 | BI33: =$E$27 -> 886 | BJ33: -1
A34: 2 | B34: =IF(A34>$B$30,NA(),IF($A34>$A$8,"",OFFSET(InputPriceData!$B$15,$A34+$A$11,0,1,1))) -> 2004-04-02 | C34: =IF(A34>$B$30,NA(),IF($A34>$A$8,"",OFFSET(InputPriceData!$G$15,CalculationsAndCharts!$A34+$A$11,IF($C$5,8,0),1,1))) -> 1629200000 | D34: =IF(A34>$B$30,NA(),IF(A34>$A$8,"",OFFSET(InputPriceData!$C$15,CalculationsAndCharts!$A34+$A$11,IF($C$5,8,0),1,1))) -> 1132.17 | E34: =IF(A34>$B$30,NA(),IF(A34>$A$8,"",OFFSET(InputPriceData!$D$15,CalculationsAndCharts!$A34+$A$11,IF($C$5,8,0),1,1))) -> 1144.81 | F34: =IF(A34>$B$30,NA(),IF(A34>$A$8,"",OFFSET(InputPriceData!$E$15,CalculationsAndCharts!$A34+$A$11,IF($C$5,8,0),1,1))) -> 1132.17 | G34: =IF(A34>$B$30,NA(),IF(A34>$A$8,"",OFFSET(InputPriceData!$F$15,CalculationsAndCharts!$A34+$A$11,IF($C$5,8,0),1,1))) -> 1141.81 | H34: =IF(A34>$H$30,NA(),IF(A34=$H$30,AVERAGE(OFFSET(G34,0,0,$A$17,1)),G34*$C$17+H35*$D$17)) -> 1066.765552 | I34: =IF($A34>$I$30,NA(),IF($A34=$I$30,AVERAGE(OFFSET($G34,0,0,$A$18,1)),$G34*$C$18+I35*$D$18)) -> 1123.451867 | J34: =IF($A34>$J$30,NA(),H34-I34) -> -56.68631477 | K34: =IF($A34>K$30,NA(),SUMSQ(OFFSET(J34,0,0,$A$18,1))/$A$18) -> 4929.099321 | L34: =IF($A34>K$30,NA(),SQRT(K34)*$A$19) -> 70.20754462 | M34: =IF($A34>K$30,NA(),H34+L34) -> 1136.973096 | N34: =IF($A34>K$30,NA(),H34-L34) -> 996.5580071 | O34: =IF($A34>K$30,NA(),(M34-N34)/H34*100) -> 13.16269437 | P34: =IF($A34>P$30,NA(),MIN(OFFSET(O34,0,0,$A$17,1))) -> 4.363115905 | AW34: 1629200000 | AY34: =$E$27 -> 886 | AZ34: =CEILING(AZ32,10^INT(LOG10(AZ32))/8) -> 2875000000 | BA34: =$E$27 -> 886 | BB34: 1591.69175 | BC34: =$E$27 -> 886 | BD34: 1508.927105 | BE34: =$E$27 -> 886 | BF34: 23.63001952 | BG34: =$E$27 -> 886 | BH34: 1 | BI34: =$E$27 -> 886 | BJ34: 1
A35: 3 | B35: =IF(A35>$B$30,NA(),IF($A35>$A$8,"",OFFSET(InputPriceData!$B$15,$A35+$A$11,0,1,1))) -> 2004-04-01 | C35: =IF(A35>$B$30,NA(),IF($A35>$A$8,"",OFFSET(InputPriceData!$G$15,CalculationsAndCharts!$A35+$A$11,IF($C$5,8,0),1,1))) -> 1560700000 | D35: =IF(A35>$B$30,NA(),IF(A35>$A$8,"",OFFSET(InputPriceData!$C$15,CalculationsAndCharts!$A35+$A$11,IF($C$5,8,0),1,1))) -> 1126.21 | E35: =IF(A35>$B$30,NA(),IF(A35>$A$8,"",OFFSET(InputPriceData!$D$15,CalculationsAndCharts!$A35+$A$11,IF($C$5,8,0),1,1))) -> 1135.67 | F35: =IF(A35>$B$30,NA(),IF(A35>$A$8,"",OFFSET(InputPriceData!$E$15,CalculationsAndCharts!$A35+$A$11,IF($C$5,8,0),1,1))) -> 1126.2 | G35: =IF(A35>$B$30,NA(),IF(A35>$A$8,"",OFFSET(InputPriceData!$F$15,CalculationsAndCharts!$A35+$A$11,IF($C$5,8,0),1,1))) -> 1132.17 | H35: 1066.011336 | I35: 1122.702555 | J35: -56.69121876 | K35: 4960.894965 | L35: 70.43362098 | M35: 1136.444957 | N35: 995.5777152 | O35: 13.21442251 | P35: 4.363115905 | AW35: 1560700000
A36: 4 | B36: =IF(A36>$B$30,NA(),IF($A36>$A$8,"",OFFSET(InputPriceData!$B$15,$A36+$A$11,0,1,1))) -> 2004-03-31 | C36: =IF(A36>$B$30,NA(),IF($A36>$A$8,"",OFFSET(InputPriceData!$G$15,CalculationsAndCharts!$A36+$A$11,IF($C$5,8,0),1,1))) -> 1560700000 | D36: =IF(A36>$B$30,NA(),IF(A36>$A$8,"",OFFSET(InputPriceData!$C$15,CalculationsAndCharts!$A36+$A$11,IF($C$5,8,0),1,1))) -> 1127 | E36: =IF(A36>$B$30,NA(),IF(A36>$A$8,"",OFFSET(InputPriceData!$D$15,CalculationsAndCharts!$A36+$A$11,IF($C$5,8,0),1,1))) -> 1130.83 | F36: =IF(A36>$B$30,NA(),IF(A36>$A$8,"",OFFSET(InputPriceData!$E$15,CalculationsAndCharts!$A36+$A$11,IF($C$5,8,0),1,1))) -> 1121.46 | G36: =IF(A36>$B$30,NA(),IF(A36>$A$8,"",OFFSET(InputPriceData!$F$15,CalculationsAndCharts!$A36+$A$11,IF($C$5,8,0),1,1))) -> 1126.21 | H36: 1065.346425 | I36: 1122.316129 | J36: -56.96970363 | K36: 4990.328114 | L36: 70.64225445 | M36: 1135.988679 | N36: 994.7041706 | O36: 13.26183724 | P36: 4.363115905 | AX36: 1560700000
A37: 5 | B37: =IF(A37>$B$30,NA(),IF($A37>$A$8,"",OFFSET(InputPriceData!$B$15,$A37+$A$11,0,1,1))) -> 2004-03-30 | C37: =IF(A37>$B$30,NA(),IF($A37>$A$8,"",OFFSET(InputPriceData!$G$15,CalculationsAndCharts!$A37+$A$11,IF($C$5,8,0),1,1))) -> 1332400000 | D37: =IF(A37>$B$30,NA(),IF(A37>$A$8,"",OFFSET(InputPriceData!$C$15,CalculationsAndCharts!$A37+$A$11,IF($C$5,8,0),1,1))) -> 1122.47 | E37: =IF(A37>$B$30,NA(),IF(A37>$A$8,"",OFFSET(InputPriceData!$D$15,CalculationsAndCharts!$A37+$A$11,IF($C$5,8,0),1,1))) -> 1127.6 | F37: =IF(A37>$B$30,NA(),IF(A37>$A$8,"",OFFSET(InputPriceData!$E$15,CalculationsAndCharts!$A37+$A$11,IF($C$5,8,0),1,1))) -> 1119.66 | G37: =IF(A37>$B$30,NA(),IF(A37>$A$8,"",OFFSET(InputPriceData!$F$15,CalculationsAndCharts!$A37+$A$11,IF($C$5,8,0),1,1))) -> 1127 | H37: 1064.734731 | I37: 1122.157195 | J37: -57.42246432 | K37: 5016.306264 | L37: 70.82588696 | M37: 1135.560618 | N37: 993.9088438 | O37: 13.30394978 | P37: 4.363115905 | AW37: 1332400000
A38: 6 | B38: =IF(A38>$B$30,NA(),IF($A38>$A$8,"",OFFSET(InputPriceData!$B$15,$A38+$A$11,0,1,1))) -> 2004-03-29 | C38: =IF(A38>$B$30,NA(),IF($A38>$A$8,"",OFFSET(InputPriceData!$G$15,CalculationsAndCharts!$A38+$A$11,IF($C$5,8,0),1,1))) -> 1405500000 | D38: =IF(A38>$B$30,NA(),IF(A38>$A$8,"",OFFSET(InputPriceData!$C$15,CalculationsAndCharts!$A38+$A$11,IF($C$5,8,0),1,1))) -> 1108.06 | E38: =IF(A38>$B$30,NA(),IF(A38>$A$8,"",OFFSET(InputPriceData!$D$15,CalculationsAndCharts!$A38+$A$11,IF($C$5,8,0),1,1))) -> 1124.37 | F38: =IF(A38>$B$30,NA(),IF(A38>$A$8,"",OFFSET(InputPriceData!$E$15,CalculationsAndCharts!$A38+$A$11,IF($C$5,8,0),1,1))) -> 1108.06 | G38: =IF(A38>$B$30,NA(),IF(A38>$A$8,"",OFFSET(InputPriceData!$F$15,CalculationsAndCharts!$A38+$A$11,IF($C$5,8,0),1,1))) -> 1122.47 | H38: 1064.108949 | I38: 1121.95953 | J38: -57.85058042 | K38: 5038.978591 | L38: 70.9857633 | M38: 1135.094712 | N38: 993.1231859 | O38: 13.34182244 | P38: 4.363115905 | AW38: 1405500000
A39: 7 | B39: =IF(A39>$B$30,NA(),IF($A39>$A$8,"",OFFSET(InputPriceData!$B$15,$A39+$A$11,0,1,1))) -> 2004-03-26 | C39: =IF(A39>$B$30,NA(),IF($A39>$A$8,"",OFFSET(InputPriceData!$G$15,CalculationsAndCharts!$A39+$A$11,IF($C$5,8,0),1,1))) -> 1319100000 | D39: =IF(A39>$B$30,NA(),IF(A39>$A$8,"",OFFSET(InputPriceData!$C$15,CalculationsAndCharts!$A39+$A$11,IF($C$5,8,0),1,1))) -> 1109.19 | E39: =IF(A39>$B$30,NA(),IF(A39>$A$8,"",OFFSET(InputPriceData!$D$15,CalculationsAndCharts!$A39+$A$11,IF($C$5,8,0),1,1))) -> 1115.27 | F39: =IF(A39>$B$30,NA(),IF(A39>$A$8,"",OFFSET(InputPriceData!$E$15,CalculationsAndCharts!$A39+$A$11,IF($C$5,8,0),1,1))) -> 1106.13 | G39: =IF(A39>$B$30,NA(),IF(A39>$A$8,"",OFFSET(InputPriceData!$F$15,CalculationsAndCharts!$A39+$A$11,IF($C$5,8,0),1,1))) -> 1108.06 | H39: 1063.522406 | I39: 1121.938694 | J39: -58.41628812 | K39: 5058.151157 | L39: 71.12068023 | M39: 1134.643086 | N39: 992.4017257 | O39: 13.37455231 | P39: 4.363115905 | AX39: 1319100000
A40: 8 | B40: =IF(A40>$B$30,NA(),IF($A40>$A$8,"",OFFSET(InputPriceData!$B$15,$A40+$A$11,0,1,1))) -> 2004-03-25 | C40: =IF(A40>$B$30,NA(),IF($A40>$A$8,"",OFFSET(InputPriceData!$G$15,CalculationsAndCharts!$A40+$A$11,IF($C$5,8,0),1,1))) -> 1471700000 | D40: =IF(A40>$B$30,NA(),IF(A40>$A$8,"",OFFSET(InputPriceData!$C$15,CalculationsAndCharts!$A40+$A$11,IF($C$5,8,0),1,1))) -> 1091.33 | E40: =IF(A40>$B$30,NA(),IF(A40>$A$8,"",OFFSET(InputPriceData!$D$15,CalculationsAndCharts!$A40+$A$11,IF($C$5,8,0),1,1))) -> 1110.38 | F40: =IF(A40>$B$30,NA(),IF(A40>$A$8,"",OFFSET(InputPriceData!$E$15,CalculationsAndCharts!$A40+$A$11,IF($C$5,8,0),1,1))) -> 1091.33 | G40: =IF(A40>$B$30,NA(),IF(A40>$A$8,"",OFFSET(InputPriceData!$F$15,CalculationsAndCharts!$A40+$A$11,IF($C$5,8,0),1,1))) -> 1109.19 | H40: 1063.074792 | I40: 1122.505171 | J40: -59.43037944 | K40: 5073.955616 | L40: 71.23170373 | M40: 1134.306496 | N40: 991.8430882 | O40: 13.40107098 | P40: 4.363115905 | AW40: 1471700000
A41: 9 | B41: =IF(A41>$B$30,NA(),IF($A41>$A$8,"",OFFSET(InputPriceData!$B$15,$A41+$A$11,0,1,1))) -> 2004-03-24 | C41: =IF(A41>$B$30,NA(),IF($A41>$A$8,"",OFFSET(InputPriceData!$G$15,CalculationsAndCharts!$A41+$A$11,IF($C$5,8,0),1,1))) -> 1527800000 | D41: =IF(A41>$B$30,NA(),IF(A41>$A$8,"",OFFSET(InputPriceData!$C$15,CalculationsAndCharts!$A41+$A$11,IF($C$5,8,0),1,1))) -> 1093.95 | E41: =IF(A41>$B$30,NA(),IF(A41>$A$8,"",OFFSET(InputPriceData!$D$15,CalculationsAndCharts!$A41+$A$11,IF($C$5,8,0),1,1))) -> 1098.32 | F41: =IF(A41>$B$30,NA(),IF(A41>$A$8,"",OFFSET(InputPriceData!$E$15,CalculationsAndCharts!$A41+$A$11,IF($C$5,8,0),1,1))) -> 1087.16 | G41: =IF(A41>$B$30,NA(),IF(A41>$A$8,"",OFFSET(InputPriceData!$F$15,CalculationsAndCharts!$A41+$A$11,IF($C$5,8,0),1,1))) -> 1091.33 | H41: 1062.611323 | I41: 1123.048648 | J41: -60.43732525 | K41: 5085.291165 | L41: 71.31122748 | M41: 1133.92255 | N41: 991.300095 | O41: 13.42188361 | P41: 4.363115905 | AX41: 1527800000
A42: 10 | B42: =IF(A42>$B$30,NA(),IF($A42>$A$8,"",OFFSET(InputPriceData!$B$15,$A42+$A$11,0,1,1))) -> 2004-03-23 | C42: =IF(A42>$B$30,NA(),IF($A42>$A$8,"",OFFSET(InputPriceData!$G$15,CalculationsAndCharts!$A42+$A$11,IF($C$5,8,0),1,1))) -> 1458200000 | D42: =IF(A42>$B$30,NA(),IF(A42>$A$8,"",OFFSET(InputPriceData!$C$15,CalculationsAndCharts!$A42+$A$11,IF($C$5,8,0),1,1))) -> 1095.4 | E42: =IF(A42>$B$30,NA(),IF(A42>$A$8,"",OFFSET(InputPriceData!$D$15,CalculationsAndCharts!$A42+$A$11,IF($C$5,8,0),1,1))) -> 1101.52 | F42: =IF(A42>$B$30,NA(),IF(A42>$A$8,"",OFFSET(InputPriceData!$E$15,CalculationsAndCharts!$A42+$A$11,IF($C$5,8,0),1,1))) -> 1091.57 | G42: =IF(A42>$B$30,NA(),IF(A42>$A$8,"",OFFSET(InputPriceData!$F$15,CalculationsAndCharts!$A42+$A$11,IF($C$5,8,0),1,1))) -> 1093.95 | H42: 1062.322693 | I42: 1124.343286 | J42: -62.02059386 | K42: 5092.713421 | L42: 71.36324979 | M42: 1133.685942 | N42: 990.9594428 | O42: 13.43532437 | P42: 4.363115905 | AX42: 1458200000
A43: 11 | B43: =IF(A43>$B$30,NA(),IF($A43>$A$8,"",OFFSET(InputPriceData!$B$15,$A43+$A$11,0,1,1))) -> 2004-03-22 | C43: =IF(A43>$B$30,NA(),IF($A43>$A$8,"",OFFSET(InputPriceData!$G$15,CalculationsAndCharts!$A43+$A$11,IF($C$5,8,0),1,1))) -> 1452300000 | D43: =IF(A43>$B$30,NA(),IF(A43>$A$8,"",OFFSET(InputPriceData!$C$15,CalculationsAndCharts!$A43+$A$11,IF($C$5,8,0),1,1))) -> 1109.78 | E43: =IF(A43>$B$30,NA(),IF(A43>$A$8,"",OFFSET(InputPriceData!$D$15,CalculationsAndCharts!$A43+$A$11,IF($C$5,8,0),1,1))) -> 1109.78 | F43: =IF(A43>$B$30,NA(),IF(A43>$A$8,"",OFFSET(InputPriceData!$E$15,CalculationsAndCharts!$A43+$A$11,IF($C$5,8,0),1,1))) -> 1089.54 | G43: =IF(A43>$B$30,NA(),IF(A43>$A$8,"",OFFSET(InputPriceData!$F$15,CalculationsAndCharts!$A43+$A$11,IF($C$5,8,0),1,1))) -> 1095.4 | H43: 1062.00483 | I43: 1125.583829 | J43: -63.57899855 | K43: 5094.167674 | L43: 71.37343816 | M43: 1133.378268 | N43: 990.6313921 | O43: 13.44126432 | P43: 4.363115905 | AX43: 1452300000
A44: 12 | B44: =IF(A44>$B$30,NA(),IF($A44>$A$8,"",OFFSET(InputPriceData!$B$15,$A44+$A$11,0,1,1))) -> 2004-03-19 | C44: =IF(A44>$B$30,NA(),IF($A44>$A$8,"",OFFSET(InputPriceData!$G$15,CalculationsAndCharts!$A44+$A$11,IF($C$5,8,0),1,1))) -> 1457400000 | D44: =IF(A44>$B$30,NA(),IF(A44>$A$8,"",OFFSET(InputPriceData!$C$15,CalculationsAndCharts!$A44+$A$11,IF($C$5,8,0),1,1))) -> 1122.32 | E44: =IF(A44>$B$30,NA(),IF(A44>$A$8,"",OFFSET(InputPriceData!$D$15,CalculationsAndCharts!$A44+$A$11,IF($C$5,8,0),1,1))) -> 1122.72 | F44: =IF(A44>$B$30,NA(),IF(A44>$A$8,"",OFFSET(InputPriceData!$E$15,CalculationsAndCharts!$A44+$A$11,IF($C$5,8,0),1,1))) -> 1109.69 | G44: =IF(A44>$B$30,NA(),IF(A44>$A$8,"",OFFSET(InputPriceData!$F$15,CalculationsAndCharts!$A44+$A$11,IF($C$5,8,0),1,1))) -> 1109.78 | H44: 1061.6692 | I44: 1126.815822 | J44: -65.14662141 | K44: 5089.88431 | L44: 71.34342513 | M44: 1133.012626 | N44: 990.3257752 | O44: 13.43985963 | P44: 4.363115905 | AX44: 1457400000
A45: 13 | B45: =IF(A45>$B$30,NA(),IF($A45>$A$8,"",OFFSET(InputPriceData!$B$15,$A45+$A$11,0,1,1))) -> 2004-03-18 | C45: =IF(A45>$B$30,NA(),IF($A45>$A$8,"",OFFSET(InputPriceData!$G$15,CalculationsAndCharts!$A45+$A$11,IF($C$5,8,0),1,1))) -> 1369200000 | D45: =IF(A45>$B$30,NA(),IF(A45>$A$8,"",OFFSET(InputPriceData!$C$15,CalculationsAndCharts!$A45+$A$11,IF($C$5,8,0),1,1))) -> 1123.75 | E45: =IF(A45>$B$30,NA(),IF(A45>$A$8,"",OFFSET(InputPriceData!$D$15,CalculationsAndCharts!$A45+$A$11,IF($C$5,8,0),1,1))) -> 1125.5 | F45: =IF(A45>$B$30,NA(),IF(A45>$A$8,"",OFFSET(InputPriceData!$E$15,CalculationsAndCharts!$A45+$A$11,IF($C$5,8,0),1,1))) -> 1113.25 | G45: =IF(A45>$B$30,NA(),IF(A45>$A$8,"",OFFSET(InputPriceData!$F$15,CalculationsAndCharts!$A45+$A$11,IF($C$5,8,0),1,1))) -> 1122.32 | H45: 1061.185675 | I45: 1127.511161 | J45: -66.32548669 | K45: 5078.855565 | L45: 71.26608987 | M45: 1132.451765 | N45: 989.9195849 | O45: 13.4314082 | P45: 4.363115905 | AX45: 1369200000
A46: 14 | B46: =IF(A46>$B$30,NA(),IF($A46>$A$8,"",OFFSET(InputPriceData!$B$15,$A46+$A$11,0,1,1))) -> 2004-03-17 | C46: =IF(A46>$B$30,NA(),IF($A46>$A$8,"",OFFSET(InputPriceData!$G$15,CalculationsAndCharts!$A46+$A$11,IF($C$5,8,0),1,1))) -> 1490100000 | D46: =IF(A46>$B$30,NA(),IF(A46>$A$8,"",OFFSET(InputPriceData!$C$15,CalculationsAndCharts!$A46+$A$11,IF($C$5,8,0),1,1))) -> 1110.7 | E46: =IF(A46>$B$30,NA(),IF(A46>$A$8,"",OFFSET(InputPriceData!$D$15,CalculationsAndCharts!$A46+$A$11,IF($C$5,8,0),1,1))) -> 1125.76 | F46: =IF(A46>$B$30,NA(),IF(A46>$A$8,"",OFFSET(InputPriceData!$E$15,CalculationsAndCharts!$A46+$A$11,IF($C$5,8,0),1,1))) -> 1110.7 | G46: =IF(A46>$B$30,NA(),IF(A46>$A$8,"",OFFSET(InputPriceData!$F$15,CalculationsAndCharts!$A46+$A$11,IF($C$5,8,0),1,1))) -> 1123.75 | H46: 1060.571259 | I46: 1127.723046 | J46: -67.15178616 | K46: 5062.282287 | L46: 71.14971741 | M46: 1131.720977 | N46: 989.421542 | O46: 13.41724411 | P46: 4.363115905 | AW46: 1490100000
A47: 15 | B47: =IF(A47>$B$30,NA(),IF($A47>$A$8,"",OFFSET(InputPriceData!$B$15,$A47+$A$11,0,1,1))) -> 2004-03-16 | C47: =IF(A47>$B$30,NA(),IF($A47>$A$8,"",OFFSET(InputPriceData!$G$15,CalculationsAndCharts!$A47+$A$11,IF($C$5,8,0),1,1))) -> 1500700000 | D47: =IF(A47>$B$30,NA(),IF(A47>$A$8,"",OFFSET(InputPriceData!$C$15,CalculationsAndCharts!$A47+$A$11,IF($C$5,8,0),1,1))) -> 1104.49 | E47: =IF(A47>$B$30,NA(),IF(A47>$A$8,"",OFFSET(InputPriceData!$D$15,CalculationsAndCharts!$A47+$A$11,IF($C$5,8,0),1,1))) -> 1113.76 | F47: =IF(A47>$B$30,NA(),IF(A47>$A$8,"",OFFSET(InputPriceData!$E$15,CalculationsAndCharts!$A47+$A$11,IF($C$5,8,0),1,1))) -> 1102.61 | G47: =IF(A47>$B$30,NA(),IF(A47>$A$8,"",OFFSET(InputPriceData!$F$15,CalculationsAndCharts!$A47+$A$11,IF($C$5,8,0),1,1))) -> 1110.7 | H47: 1059.936297 | I47: 1127.885211 | J47: -67.94891351 | K47: 5041.112035 | L47: 71.00078897 | M47: 1130.937086 | N47: 988.9355082 | O47: 13.39718041 | P47: 4.363115905 | AW47: 1500700000
A48: 16 | B48: =IF(A48>$B$30,NA(),IF($A48>$A$8,"",OFFSET(InputPriceData!$B$15,$A48+$A$11,0,1,1))) -> 2004-03-15 | C48: =IF(A48>$B$30,NA(),IF($A48>$A$8,"",OFFSET(InputPriceData!$G$15,CalculationsAndCharts!$A48+$A$11,IF($C$5,8,0),1,1))) -> 1600600000 | D48: =IF(A48>$B$30,NA(),IF(A48>$A$8,"",OFFSET(InputPriceData!$C$15,CalculationsAndCharts!$A48+$A$11,IF($C$5,8,0),1,1))) -> 1120.57 | E48: =IF(A48>$B$30,NA(),IF(A48>$A$8,"",OFFSET(InputPriceData!$D$15,CalculationsAndCharts!$A48+$A$11,IF($C$5,8,0),1,1))) -> 1120.57 | F48: =IF(A48>$B$30,NA(),IF(A48>$A$8,"",OFFSET(InputPriceData!$E$15,CalculationsAndCharts!$A48+$A$11,IF($C$5,8,0),1,1))) -> 1103.36 | G48: =IF(A48>$B$30,NA(),IF(A48>$A$8,"",OFFSET(InputPriceData!$F$15,CalculationsAndCharts!$A48+$A$11,IF($C$5,8,0),1,1))) -> 1104.49 | H48: 1059.426109 | I48: 1128.586648 | J48: -69.16053865 | K48: 5015.365437 | L48: 70.81924482 | M48: 1130.245354 | N48: 988.6068644 | O48: 13.36935992 | P48: 4.363115905 | AX48: 1600600000
A49: 17 | B49: =IF(A49>$B$30,NA(),IF($A49>$A$8,"",OFFSET(InputPriceData!$B$15,$A49+$A$11,0,1,1))) -> 2004-03-12 | C49: =IF(A49>$B$30,NA(),IF($A49>$A$8,"",OFFSET(InputPriceData!$G$15,CalculationsAndCharts!$A49+$A$11,IF($C$5,8,0),1,1))) -> 1388500000 | D49: =IF(A49>$B$30,NA(),IF(A49>$A$8,"",OFFSET(InputPriceData!$C$15,CalculationsAndCharts!$A49+$A$11,IF($C$5,8,0),1,1))) -> 1106.78 | E49: =IF(A49>$B$30,NA(),IF(A49>$A$8,"",OFFSET(InputPriceData!$D$15,CalculationsAndCharts!$A49+$A$11,IF($C$5,8,0),1,1))) -> 1120.63 | F49: =IF(A49>$B$30,NA(),IF(A49>$A$8,"",OFFSET(InputPriceData!$E$15,CalculationsAndCharts!$A49+$A$11,IF($C$5,8,0),1,1))) -> 1106.78 | G49: =IF(A49>$B$30,NA(),IF(A49>$A$8,"",OFFSET(InputPriceData!$F$15,CalculationsAndCharts!$A49+$A$11,IF($C$5,8,0),1,1))) -> 1120.57 | H49: 1058.973206 | I49: 1129.570185 | J49: -70.59697872 | K49: 4984.703093 | L49: 70.6024298 | M49: 1129.575636 | N49: 988.370776 | O49: 13.33412959 | P49: 4.363115905 | AW49: 1388500000
A50: 18 | B50: =IF(A50>$B$30,NA(),IF($A50>$A$8,"",OFFSET(InputPriceData!$B$15,$A50+$A$11,0,1,1))) -> 2004-03-11 | C50: =IF(A50>$B$30,NA(),IF($A50>$A$8,"",OFFSET(InputPriceData!$G$15,CalculationsAndCharts!$A50+$A$11,IF($C$5,8,0),1,1))) -> 1889900000 | D50: =IF(A50>$B$30,NA(),IF(A50>$A$8,"",OFFSET(InputPriceData!$C$15,CalculationsAndCharts!$A50+$A$11,IF($C$5,8,0),1,1))) -> 1123.89 | E50: =IF(A50>$B$30,NA(),IF(A50>$A$8,"",OFFSET(InputPriceData!$D$15,CalculationsAndCharts!$A50+$A$11,IF($C$5,8,0),1,1))) -> 1125.96 | F50: =IF(A50>$B$30,NA(),IF(A50>$A$8,"",OFFSET(InputPriceData!$E$15,CalculationsAndCharts!$A50+$A$11,IF($C$5,8,0),1,1))) -> 1105.87 | G50: =IF(A50>$B$30,NA(),IF(A50>$A$8,"",OFFSET(InputPriceData!$F$15,CalculationsAndCharts!$A50+$A$11,IF($C$5,8,0),1,1))) -> 1106.78 | H50: 1058.354143 | I50: 1129.937539 | J50: -71.58339645 | K50: 4948.080979 | L50: 70.34259719 | M50: 1128.69674 | N50: 988.0115454 | O50: 13.29282787 | P50: 4.363115905 | AX50: 1889900000
A51: 19 | B51: =IF(A51>$B$30,NA(),IF($A51>$A$8,"",OFFSET(InputPriceData!$B$15,$A51+$A$11,0,1,1))) -> 2004-03-10 | C51: =IF(A51>$B$30,NA(),IF($A51>$A$8,"",OFFSET(InputPriceData!$G$15,CalculationsAndCharts!$A51+$A$11,IF($C$5,8,0),1,1))) -> 1648400000 | D51: =IF(A51>$B$30,NA(),IF(A51>$A$8,"",OFFSET(InputPriceData!$C$15,CalculationsAndCharts!$A51+$A$11,IF($C$5,8,0),1,1))) -> 1140.58 | E51: =IF(A51>$B$30,NA(),IF(A51>$A$8,"",OFFSET(InputPriceData!$D$15,CalculationsAndCharts!$A51+$A$11,IF($C$5,8,0),1,1))) -> 1141.45 | F51: =IF(A51>$B$30,NA(),IF(A51>$A$8,"",OFFSET(InputPriceData!$E$15,CalculationsAndCharts!$A51+$A$11,IF($C$5,8,0),1,1))) -> 1122.53 | G51: =IF(A51>$B$30,NA(),IF(A51>$A$8,"",OFFSET(InputPriceData!$F$15,CalculationsAndCharts!$A51+$A$11,IF($C$5,8,0),1,1))) -> 1123.89 | H51: 1057.867451 | I51: 1130.882745 | J51: -73.01529416 | K51: 4906.745461 | L51: 70.04816529 | M51: 1127.915616 | N51: 987.8192852 | O51: 13.24327831 | P51: 4.363115905 | AX51: 1648400000
A52: 20 | B52: =IF(A52>$B$30,NA(),IF($A52>$A$8,"",OFFSET(InputPriceData!$B$15,$A52+$A$11,0,1,1))) -> 2004-03-09 | C52: =IF(A52>$B$30,NA(),IF($A52>$A$8,"",OFFSET(InputPriceData!$G$15,CalculationsAndCharts!$A52+$A$11,IF($C$5,8,0),1,1))) -> 1499400000 | D52: =IF(A52>$B$30,NA(),IF(A52>$A$8,"",OFFSET(InputPriceData!$C$15,CalculationsAndCharts!$A52+$A$11,IF($C$5,8,0),1,1))) -> 1147.2 | E52: =IF(A52>$B$30,NA(),IF(A52>$A$8,"",OFFSET(InputPriceData!$D$15,CalculationsAndCharts!$A52+$A$11,IF($C$5,8,0),1,1))) -> 1147.32 | F52: =IF(A52>$B$30,NA(),IF(A52>$A$8,"",OFFSET(InputPriceData!$E$15,CalculationsAndCharts!$A52+$A$11,IF($C$5,8,0),1,1))) -> 1136.84 | G52: =IF(A52>$B$30,NA(),IF(A52>$A$8,"",OFFSET(InputPriceData!$F$15,CalculationsAndCharts!$A52+$A$11,IF($C$5,8,0),1,1))) -> 1140.58 | H52: 1057.203907 | I52: 1131.168163 | J52: -73.96425552 | K52: 4859.25564 | L52: 69.70836133 | M52: 1126.912269 | N52: 987.495546 | O52: 13.18730679 | P52: 4.363115905 | AX52: 1499400000
A53: 21 | B53: =IF(A53>$B$30,NA(),IF($A53>$A$8,"",OFFSET(InputPriceData!$B$15,$A53+$A$11,0,1,1))) -> 2004-03-08 | C53: =IF(A53>$B$30,NA(),IF($A53>$A$8,"",OFFSET(InputPriceData!$G$15,CalculationsAndCharts!$A53+$A$11,IF($C$5,8,0),1,1))) -> 1254400000 | D53: =IF(A53>$B$30,NA(),IF(A53>$A$8,"",OFFSET(InputPriceData!$C$15,CalculationsAndCharts!$A53+$A$11,IF($C$5,8,0),1,1))) -> 1156.86 | E53: =IF(A53>$B$30,NA(),IF(A53>$A$8,"",OFFSET(InputPriceData!$D$15,CalculationsAndCharts!$A53+$A$11,IF($C$5,8,0),1,1))) -> 1159.94 | F53: =IF(A53>$B$30,NA(),IF(A53>$A$8,"",OFFSET(InputPriceData!$E$15,CalculationsAndCharts!$A53+$A$11,IF($C$5,8,0),1,1))) -> 1146.97 | G53: =IF(A53>$B$30,NA(),IF(A53>$A$8,"",OFFSET(InputPriceData!$F$15,CalculationsAndCharts!$A53+$A$11,IF($C$5,8,0),1,1))) -> 1147.2 | H53: 1056.365957 | I53: 1130.784006 | J53: -74.41804958 | K53: 4807.744816 | L53: 69.33790317 | M53: 1125.70386 | N53: 987.0280534 | O53: 13.12762925 | P53: 4.363115905 | AX53: 1254400000
A54: 22 | B54: =IF(A54>$B$30,NA(),IF($A54>$A$8,"",OFFSET(InputPriceData!$B$15,$A54+$A$11,0,1,1))) -> 2004-03-05 | C54: =IF(A54>$B$30,NA(),IF($A54>$A$8,"",OFFSET(InputPriceData!$G$15,CalculationsAndCharts!$A54+$A$11,IF($C$5,8,0),1,1))) -> 1398200000 | D54: =IF(A54>$B$30,NA(),IF(A54>$A$8,"",OFFSET(InputPriceData!$C$15,CalculationsAndCharts!$A54+$A$11,IF($C$5,8,0),1,1))) -> 1154.87 | E54: =IF(A54>$B$30,NA(),IF(A54>$A$8,"",OFFSET(InputPriceData!$D$15,CalculationsAndCharts!$A54+$A$11,IF($C$5,8,0),1,1))) -> 1163.23 | F54: =IF(A54>$B$30,NA(),IF(A54>$A$8,"",OFFSET(InputPriceData!$E$15,CalculationsAndCharts!$A54+$A$11,IF($C$5,8,0),1,1))) -> 1148.77 | G54: =IF(A54>$B$30,NA(),IF(A54>$A$8,"",OFFSET(InputPriceData!$F$15,CalculationsAndCharts!$A54+$A$11,IF($C$5,8,0),1,1))) -> 1156.86 | H54: 1055.453052 | I54: 1130.113966 | J54: -74.66091397 | K54: 4753.680862 | L54: 68.94694237 | M54: 1124.399994 | N54: 986.5061093 | O54: 13.0648999 | P54: 4.363115905 | AW54: 1398200000
A55: 23 | B55: =IF(A55>$B$30,NA(),IF($A55>$A$8,"",OFFSET(InputPriceData!$B$15,$A55+$A$11,0,1,1))) -> 2004-03-04 | C55: =IF(A55>$B$30,NA(),IF($A55>$A$8,"",OFFSET(InputPriceData!$G$15,CalculationsAndCharts!$A55+$A$11,IF($C$5,8,0),1,1))) -> 1265800000 | D55: =IF(A55>$B$30,NA(),IF(A55>$A$8,"",OFFSET(InputPriceData!$C$15,CalculationsAndCharts!$A55+$A$11,IF($C$5,8,0),1,1))) -> 1151.03 | E55: =IF(A55>$B$30,NA(),IF(A55>$A$8,"",OFFSET(InputPriceData!$D$15,CalculationsAndCharts!$A55+$A$11,IF($C$5,8,0),1,1))) -> 1154.97 | F55: =IF(A55>$B$30,NA(),IF(A55>$A$8,"",OFFSET(InputPriceData!$E$15,CalculationsAndCharts!$A55+$A$11,IF($C$5,8,0),1,1))) -> 1149.81 | G55: =IF(A55>$B$30,NA(),IF(A55>$A$8,"",OFFSET(InputPriceData!$F$15,CalculationsAndCharts!$A55+$A$11,IF($C$5,8,0),1,1))) -> 1154.87 | H55: 1054.433886 | I55: 1129.022291 | J55: -74.58840441 | K55: 4697.464035 | L55: 68.53804809 | M55: 1122.971934 | N55: 985.8958383 | O55: 12.99997069 | P55: 4.363115905 | AW55: 1265800000
A56: 24 | B56: =IF(A56>$B$30,NA(),IF($A56>$A$8,"",OFFSET(InputPriceData!$B$15,$A56+$A$11,0,1,1))) -> 2004-03-03 | C56: =IF(A56>$B$30,NA(),IF($A56>$A$8,"",OFFSET(InputPriceData!$G$15,CalculationsAndCharts!$A56+$A$11,IF($C$5,8,0),1,1))) -> 1334500000 | D56: =IF(A56>$B$30,NA(),IF(A56>$A$8,"",OFFSET(InputPriceData!$C$15,CalculationsAndCharts!$A56+$A$11,IF($C$5,8,0),1,1))) -> 1149.1 | E56: =IF(A56>$B$30,NA(),IF(A56>$A$8,"",OFFSET(InputPriceData!$D$15,CalculationsAndCharts!$A56+$A$11,IF($C$5,8,0),1,1))) -> 1152.44 | F56: =IF(A56>$B$30,NA(),IF(A56>$A$8,"",OFFSET(InputPriceData!$E$15,CalculationsAndCharts!$A56+$A$11,IF($C$5,8,0),1,1))) -> 1143.78 | G56: =IF(A56>$B$30,NA(),IF(A56>$A$8,"",OFFSET(InputPriceData!$F$15,CalculationsAndCharts!$A56+$A$11,IF($C$5,8,0),1,1))) -> 1151.03 | H56: 1053.424478 | I56: 1127.967282 | J56: -74.54280405 | K56: 4640.133232 | L56: 68.11852341 | M56: 1121.543002 | N56: 985.3059548 | O56: 12.93277778 | P56: 4.363115905 | AW56: 1334500000
A57: 25 | B57: =IF(A57>$B$30,NA(),IF($A57>$A$8,"",OFFSET(InputPriceData!$B$15,$A57+$A$11,0,1,1))) -> 2004-03-02 | C57: =IF(A57>$B$30,NA(),IF($A57>$A$8,"",OFFSET(InputPriceData!$G$15,CalculationsAndCharts!$A57+$A$11,IF($C$5,8,0),1,1))) -> 1476000000 | D57: =IF(A57>$B$30,NA(),IF(A57>$A$8,"",OFFSET(InputPriceData!$C$15,CalculationsAndCharts!$A57+$A$11,IF($C$5,8,0),1,1))) -> 1155.97 | E57: =IF(A57>$B$30,NA(),IF(A57>$A$8,"",OFFSET(InputPriceData!$D$15,CalculationsAndCharts!$A57+$A$11,IF($C$5,8,0),1,1))) -> 1156.54 | F57: =IF(A57>$B$30,NA(),IF(A57>$A$8,"",OFFSET(InputPriceData!$E$15,CalculationsAndCharts!$A57+$A$11,IF($C$5,8,0),1,1))) -> 1147.31 | G57: =IF(A57>$B$30,NA(),IF(A57>$A$8,"",OFFSET(InputPriceData!$F$15,CalculationsAndCharts!$A57+$A$11,IF($C$5,8,0),1,1))) -> 1149.1 | H57: 1052.443518 | I57: 1127.025947 | J57: -74.58242865 | K57: 4581.783845 | L57: 67.68887534 | M57: 1120.132394 | N57: 984.7546428 | O57: 12.86318442 | P57: 4.363115905 | AX57: 1476000000
A58: 26 | B58: =IF(A58>$B$30,NA(),IF($A58>$A$8,"",OFFSET(InputPriceData!$B$15,$A58+$A$11,0,1,1))) -> 2004-03-01 | C58: =IF(A58>$B$30,NA(),IF($A58>$A$8,"",OFFSET(InputPriceData!$G$15,CalculationsAndCharts!$A58+$A$11,IF($C$5,8,0),1,1))) -> 1497100000 | D58: =IF(A58>$B$30,NA(),IF(A58>$A$8,"",OFFSET(InputPriceData!$C$15,CalculationsAndCharts!$A58+$A$11,IF($C$5,8,0),1,1))) -> 1144.94 | E58: =IF(A58>$B$30,NA(),IF(A58>$A$8,"",OFFSET(InputPriceData!$D$15,CalculationsAndCharts!$A58+$A$11,IF($C$5,8,0),1,1))) -> 1157.45 | F58: =IF(A58>$B$30,NA(),IF(A58>$A$8,"",OFFSET(InputPriceData!$E$15,CalculationsAndCharts!$A58+$A$11,IF($C$5,8,0),1,1))) -> 1144.94 | G58: =IF(A58>$B$30,NA(),IF(A58>$A$8,"",OFFSET(InputPriceData!$F$15,CalculationsAndCharts!$A58+$A$11,IF($C$5,8,0),1,1))) -> 1155.97 | H58: 1051.472096 | I58: 1126.124965 | J58: -74.65286881 | K58: 4522.040671 | L58: 67.24612012 | M58: 1118.718216 | N58: 984.2259761 | O58: 12.79085206 | P58: 4.363115905 | AW58: 1497100000
A59: 27 | B59: =IF(A59>$B$30,NA(),IF($A59>$A$8,"",OFFSET(InputPriceData!$B$15,$A59+$A$11,0,1,1))) -> 2004-02-27 | C59: =IF(A59>$B$30,NA(),IF($A59>$A$8,"",OFFSET(InputPriceData!$G$15,CalculationsAndCharts!$A59+$A$11,IF($C$5,8,0),1,1))) -> 1540400000 | D59: =IF(A59>$B$30,NA(),IF(A59>$A$8,"",OFFSET(InputPriceData!$C$15,CalculationsAndCharts!$A59+$A$11,IF($C$5,8,0),1,1))) -> 1145.8 | E59: =IF(A59>$B$30,NA(),IF(A59>$A$8,"",OFFSET(InputPriceData!$D$15,CalculationsAndCharts!$A59+$A$11,IF($C$5,8,0),1,1))) -> 1151.68 | F59: =IF(A59>$B$30,NA(),IF(A59>$A$8,"",OFFSET(InputPriceData!$E$15,CalculationsAndCharts!$A59+$A$11,IF($C$5,8,0),1,1))) -> 1141.8 | G59: =IF(A59>$B$30,NA(),IF(A59>$A$8,"",OFFSET(InputPriceData!$F$15,CalculationsAndCharts!$A59+$A$11,IF($C$5,8,0),1,1))) -> 1144.94 | H59: 1050.421866 | I59: 1124.9068 | J59: -74.48493431 | K59: 4461.506975 | L59: 66.79451306 | M59: 1117.216379 | N59: 983.627353 | O59: 12.71765473 | P59: 4.363115905 | AX59: 1540400000
A60: 28 | B60: =IF(A60>$B$30,NA(),IF($A60>$A$8,"",OFFSET(InputPriceData!$B$15,$A60+$A$11,0,1,1))) -> 2004-02-26 | C60: =IF(A60>$B$30,NA(),IF($A60>$A$8,"",OFFSET(InputPriceData!$G$15,CalculationsAndCharts!$A60+$A$11,IF($C$5,8,0),1,1))) -> 1383900000 | D60: =IF(A60>$B$30,NA(),IF(A60>$A$8,"",OFFSET(InputPriceData!$C$15,CalculationsAndCharts!$A60+$A$11,IF($C$5,8,0),1,1))) -> 1143.67 | E60: =IF(A60>$B$30,NA(),IF(A60>$A$8,"",OFFSET(InputPriceData!$D$15,CalculationsAndCharts!$A60+$A$11,IF($C$5,8,0),1,1))) -> 1147.23 | F60: =IF(A60>$B$30,NA(),IF(A60>$A$8,"",OFFSET(InputPriceData!$E$15,CalculationsAndCharts!$A60+$A$11,IF($C$5,8,0),1,1))) -> 1138.62 | G60: =IF(A60>$B$30,NA(),IF(A60>$A$8,"",OFFSET(InputPriceData!$F$15,CalculationsAndCharts!$A60+$A$11,IF($C$5,8,0),1,1))) -> 1144.91 | H60: 1049.471935 | I60: 1124.089119 | J60: -74.61718368 | K60: 4400.909509 | L60: 66.33935113 | M60: 1115.811286 | N60: 983.1325839 | O60: 12.642425 | P60: 4.363115905 | AW60: 1383900000
A61: 29 | B61: =IF(A61>$B$30,NA(),IF($A61>$A$8,"",OFFSET(InputPriceData!$B$15,$A61+$A$11,0,1,1))) -> 2004-02-25 | C61: =IF(A61>$B$30,NA(),IF($A61>$A$8,"",OFFSET(InputPriceData!$G$15,CalculationsAndCharts!$A61+$A$11,IF($C$5,8,0),1,1))) -> 1360700000 | D61: =IF(A61>$B$30,NA(),IF(A61>$A$8,"",OFFSET(InputPriceData!$C$15,CalculationsAndCharts!$A61+$A$11,IF($C$5,8,0),1,1))) -> 1139.09 | E61: =IF(A61>$B$30,NA(),IF(A61>$A$8,"",OFFSET(InputPriceData!$D$15,CalculationsAndCharts!$A61+$A$11,IF($C$5,8,0),1,1))) -> 1145.24 | F61: =IF(A61>$B$30,NA(),IF(A61>$A$8,"",OFFSET(InputPriceData!$E$15,CalculationsAndCharts!$A61+$A$11,IF($C$5,8,0),1,1))) -> 1138.96 | G61: =IF(A61>$B$30,NA(),IF(A61>$A$8,"",OFFSET(InputPriceData!$F$15,CalculationsAndCharts!$A61+$A$11,IF($C$5,8,0),1,1))) -> 1143.67 | H61: 1048.512759 | I61: 1123.239287 | J61: -74.72652833 | K61: 4339.722404 | L61: 65.87656946 | M61: 1114.389328 | N61: 982.636189 | O61: 12.56571633 | P61: 4.363115905 | AW61: 1360700000
A62: 30 | B62: =IF(A62>$B$30,NA(),IF($A62>$A$8,"",OFFSET(InputPriceData!$B$15,$A62+$A$11,0,1,1))) -> 2004-02-24 | C62: =IF(A62>$B$30,NA(),IF($A62>$A$8,"",OFFSET(InputPriceData!$G$15,CalculationsAndCharts!$A62+$A$11,IF($C$5,8,0),1,1))) -> 1543600000 | D62: =IF(A62>$B$30,NA(),IF(A62>$A$8,"",OFFSET(InputPriceData!$C$15,CalculationsAndCharts!$A62+$A$11,IF($C$5,8,0),1,1))) -> 1140.99 | E62: =IF(A62>$B$30,NA(),IF(A62>$A$8,"",OFFSET(InputPriceData!$D$15,CalculationsAndCharts!$A62+$A$11,IF($C$5,8,0),1,1))) -> 1144.54 | F62: =IF(A62>$B$30,NA(),IF(A62>$A$8,"",OFFSET(InputPriceData!$E$15,CalculationsAndCharts!$A62+$A$11,IF($C$5,8,0),1,1))) -> 1134.43 | G62: =IF(A62>$B$30,NA(),IF(A62>$A$8,"",OFFSET(InputPriceData!$F$15,CalculationsAndCharts!$A62+$A$11,IF($C$5,8,0),1,1))) -> 1139.09 | H62: 1047.556404 | I62: 1122.40538 | J62: -74.84897585 | K62: 4277.58842 | L62: 65.4032753 | M62: 1112.95968 | N62: 982.153129 | O62: 12.48682649 | P62: 4.363115905 | AX62: 1543600000
A63: 31 | B63: =IF(A63>$B$30,NA(),IF($A63>$A$8,"",OFFSET(InputPriceData!$B$15,$A63+$A$11,0,1,1))) -> 2004-02-23 | C63: =IF(A63>$B$30,NA(),IF($A63>$A$8,"",OFFSET(InputPriceData!$G$15,CalculationsAndCharts!$A63+$A$11,IF($C$5,8,0),1,1))) -> 1380400000 | D63: =IF(A63>$B$30,NA(),IF(A63>$A$8,"",OFFSET(InputPriceData!$C$15,CalculationsAndCharts!$A63+$A$11,IF($C$5,8,0),1,1))) -> 1144.11 | E63: =IF(A63>$B$30,NA(),IF(A63>$A$8,"",OFFSET(InputPriceData!$D$15,CalculationsAndCharts!$A63+$A$11,IF($C$5,8,0),1,1))) -> 1146.69 | F63: =IF(A63>$B$30,NA(),IF(A63>$A$8,"",OFFSET(InputPriceData!$E$15,CalculationsAndCharts!$A63+$A$11,IF($C$5,8,0),1,1))) -> 1136.98 | G63: =IF(A63>$B$30,NA(),IF(A63>$A$8,"",OFFSET(InputPriceData!$F$15,CalculationsAndCharts!$A63+$A$11,IF($C$5,8,0),1,1))) -> 1140.99 | H63: 1046.636469 | I63: 1121.724375 | J63: -75.0879066 | K63: 4214.578212 | L63: 64.9197829 | M63: 1111.556252 | N63: 981.7166858 | O63: 12.40541197 | P63: 4.363115905 | AX63: 1380400000
A64: 32 | B64: =IF(A64>$B$30,NA(),IF($A64>$A$8,"",OFFSET(InputPriceData!$B$15,$A64+$A$11,0,1,1))) -> 2004-02-20 | C64: =IF(A64>$B$30,NA(),IF($A64>$A$8,"",OFFSET(InputPriceData!$G$15,CalculationsAndCharts!$A64+$A$11,IF($C$5,8,0),1,1))) -> 1479600000 | D64: =IF(A64>$B$30,NA(),IF(A64>$A$8,"",OFFSET(InputPriceData!$C$15,CalculationsAndCharts!$A64+$A$11,IF($C$5,8,0),1,1))) -> 1147.06 | E64: =IF(A64>$B$30,NA(),IF(A64>$A$8,"",OFFSET(InputPriceData!$D$15,CalculationsAndCharts!$A64+$A$11,IF($C$5,8,0),1,1))) -> 1149.81 | F64: =IF(A64>$B$30,NA(),IF(A64>$A$8,"",OFFSET(InputPriceData!$E$15,CalculationsAndCharts!$A64+$A$11,IF($C$5,8,0),1,1))) -> 1139 | G64: =IF(A64>$B$30,NA(),IF(A64>$A$8,"",OFFSET(InputPriceData!$F$15,CalculationsAndCharts!$A64+$A$11,IF($C$5,8,0),1,1))) -> 1144.11 | H64: 1045.688192 | I64: 1120.938023 | J64: -75.24983127 | K64: 4151.017734 | L64: 64.42839229 | M64: 1110.116584 | N64: 981.2597997 | O64: 12.3226776 | P64: 4.363115905 | AX64: 1479600000
A65: 33 | B65: =IF(A65>$B$30,NA(),IF($A65>$A$8,"",OFFSET(InputPriceData!$B$15,$A65+$A$11,0,1,1))) -> 2004-02-19 | C65: =IF(A65>$B$30,NA(),IF($A65>$A$8,"",OFFSET(InputPriceData!$G$15,CalculationsAndCharts!$A65+$A$11,IF($C$5,8,0),1,1))) -> 1562800000 | D65: =IF(A65>$B$30,NA(),IF(A65>$A$8,"",OFFSET(InputPriceData!$C$15,CalculationsAndCharts!$A65+$A$11,IF($C$5,8,0),1,1))) -> 1151.82 | E65: =IF(A65>$B$30,NA(),IF(A65>$A$8,"",OFFSET(InputPriceData!$D$15,CalculationsAndCharts!$A65+$A$11,IF($C$5,8,0),1,1))) -> 1158.57 | F65: =IF(A65>$B$30,NA(),IF(A65>$A$8,"",OFFSET(InputPriceData!$E$15,CalculationsAndCharts!$A65+$A$11,IF($C$5,8,0),1,1))) -> 1146.85 | G65: =IF(A65>$B$30,NA(),IF(A65>$A$8,"",OFFSET(InputPriceData!$F$15,CalculationsAndCharts!$A65+$A$11,IF($C$5,8,0),1,1))) -> 1147.06 | H65: 1044.699028 | I65: 1119.992228 | J65: -75.2932002 | K65: 4087.035958 | L65: 63.92993006 | M65: 1108.628958 | N65: 980.769098 | O65: 12.23891826 | P65: 4.363115905 | AX65: 1562800000
A66: 34 | B66: =IF(A66>$B$30,NA(),IF($A66>$A$8,"",OFFSET(InputPriceData!$B$15,$A66+$A$11,0,1,1))) -> 2004-02-18 | C66: =IF(A66>$B$30,NA(),IF($A66>$A$8,"",OFFSET(InputPriceData!$G$15,CalculationsAndCharts!$A66+$A$11,IF($C$5,8,0),1,1))) -> 1382400000 | D66: =IF(A66>$B$30,NA(),IF(A66>$A$8,"",OFFSET(InputPriceData!$C$15,CalculationsAndCharts!$A66+$A$11,IF($C$5,8,0),1,1))) -> 1156.99 | E66: =IF(A66>$B$30,NA(),IF(A66>$A$8,"",OFFSET(InputPriceData!$D$15,CalculationsAndCharts!$A66+$A$11,IF($C$5,8,0),1,1))) -> 1157.4 | F66: =IF(A66>$B$30,NA(),IF(A66>$A$8,"",OFFSET(InputPriceData!$E$15,CalculationsAndCharts!$A66+$A$11,IF($C$5,8,0),1,1))) -> 1149.54 | G66: =IF(A66>$B$30,NA(),IF(A66>$A$8,"",OFFSET(InputPriceData!$F$15,CalculationsAndCharts!$A66+$A$11,IF($C$5,8,0),1,1))) -> 1151.82 | H66: 1043.670275 | I66: 1118.887421 | J66: -75.21714667 | K66: 4022.3965 | L66: 63.42236593 | M66: 1107.092641 | N66: 980.2479087 | O66: 12.15371703 | P66: 4.363115905 | AX66: 1382400000
A67: 35 | B67: =IF(A67>$B$30,NA(),IF($A67>$A$8,"",OFFSET(InputPriceData!$B$15,$A67+$A$11,0,1,1))) -> 2004-02-17 | C67: =IF(A67>$B$30,NA(),IF($A67>$A$8,"",OFFSET(InputPriceData!$G$15,CalculationsAndCharts!$A67+$A$11,IF($C$5,8,0),1,1))) -> 1396500000 | D67: =IF(A67>$B$30,NA(),IF(A67>$A$8,"",OFFSET(InputPriceData!$C$15,CalculationsAndCharts!$A67+$A$11,IF($C$5,8,0),1,1))) -> 1145.81 | E67: =IF(A67>$B$30,NA(),IF(A67>$A$8,"",OFFSET(InputPriceData!$D$15,CalculationsAndCharts!$A67+$A$11,IF($C$5,8,0),1,1))) -> 1158.98 | F67: =IF(A67>$B$30,NA(),IF(A67>$A$8,"",OFFSET(InputPriceData!$E$15,CalculationsAndCharts!$A67+$A$11,IF($C$5,8,0),1,1))) -> 1145.81 | G67: =IF(A67>$B$30,NA(),IF(A67>$A$8,"",OFFSET(InputPriceData!$F$15,CalculationsAndCharts!$A67+$A$11,IF($C$5,8,0),1,1))) -> 1156.99 | H67: 1042.583343 | I67: 1117.543234 | J67: -74.9598917 | K67: 3957.867293 | L67: 62.91158314 | M67: 1105.494926 | N67: 979.6717596 | O67: 12.06840366 | P67: 4.363115905 | AW67: 1396500000
A68: 36 | B68: =IF(A68>$B$30,NA(),IF($A68>$A$8,"",OFFSET(InputPriceData!$B$15,$A68+$A$11,0,1,1))) -> 2004-02-13 | C68: =IF(A68>$B$30,NA(),IF($A68>$A$8,"",OFFSET(InputPriceData!$G$15,CalculationsAndCharts!$A68+$A$11,IF($C$5,8,0),1,1))) -> 1329200000 | D68: =IF(A68>$B$30,NA(),IF(A68>$A$8,"",OFFSET(InputPriceData!$C$15,CalculationsAndCharts!$A68+$A$11,IF($C$5,8,0),1,1))) -> 1152.11 | E68: =IF(A68>$B$30,NA(),IF(A68>$A$8,"",OFFSET(InputPriceData!$D$15,CalculationsAndCharts!$A68+$A$11,IF($C$5,8,0),1,1))) -> 1156.88 | F68: =IF(A68>$B$30,NA(),IF(A68>$A$8,"",OFFSET(InputPriceData!$E$15,CalculationsAndCharts!$A68+$A$11,IF($C$5,8,0),1,1))) -> 1143.24 | G68: =IF(A68>$B$30,NA(),IF(A68>$A$8,"",OFFSET(InputPriceData!$F$15,CalculationsAndCharts!$A68+$A$11,IF($C$5,8,0),1,1))) -> 1145.81 | H68: 1041.433527 | I68: 1115.933162 | J68: -74.49963529 | K68: 3893.449655 | L68: 62.39751321 | M68: 1103.83104 | N68: 979.0360138 | O68: 11.9830045 | P68: 4.363115905 | AX68: 1329200000
A69: 37 | B69: =IF(A69>$B$30,NA(),IF($A69>$A$8,"",OFFSET(InputPriceData!$B$15,$A69+$A$11,0,1,1))) -> 2004-02-12 | C69: =IF(A69>$B$30,NA(),IF($A69>$A$8,"",OFFSET(InputPriceData!$G$15,CalculationsAndCharts!$A69+$A$11,IF($C$5,8,0),1,1))) -> 1464300000 | D69: =IF(A69>$B$30,NA(),IF(A69>$A$8,"",OFFSET(InputPriceData!$C$15,CalculationsAndCharts!$A69+$A$11,IF($C$5,8,0),1,1))) -> 1157.76 | E69: =IF(A69>$B$30,NA(),IF(A69>$A$8,"",OFFSET(InputPriceData!$D$15,CalculationsAndCharts!$A69+$A$11,IF($C$5,8,0),1,1))) -> 1157.76 | F69: =IF(A69>$B$30,NA(),IF(A69>$A$8,"",OFFSET(InputPriceData!$E$15,CalculationsAndCharts!$A69+$A$11,IF($C$5,8,0),1,1))) -> 1151.44 | G69: =IF(A69>$B$30,NA(),IF(A69>$A$8,"",OFFSET(InputPriceData!$F$15,CalculationsAndCharts!$A69+$A$11,IF($C$5,8,0),1,1))) -> 1152.11 | H69: 1040.384517 | I69: 1114.7137 | J69: -74.3291823 | K69: 3829.977526 | L69: 61.88681222 | M69: 1102.271329 | N69: 978.4977051 | O69: 11.89691142 | P69: 4.363115905 | AX69: 1464300000
A70: 38 | B70: =IF(A70>$B$30,NA(),IF($A70>$A$8,"",OFFSET(InputPriceData!$B$15,$A70+$A$11,0,1,1))) -> 2004-02-11 | C70: =IF(A70>$B$30,NA(),IF($A70>$A$8,"",OFFSET(InputPriceData!$G$15,CalculationsAndCharts!$A70+$A$11,IF($C$5,8,0),1,1))) -> 1699300000 | D70: =IF(A70>$B$30,NA(),IF(A70>$A$8,"",OFFSET(InputPriceData!$C$15,CalculationsAndCharts!$A70+$A$11,IF($C$5,8,0),1,1))) -> 1145.54 | E70: =IF(A70>$B$30,NA(),IF(A70>$A$8,"",OFFSET(InputPriceData!$D$15,CalculationsAndCharts!$A70+$A$11,IF($C$5,8,0),1,1))) -> 1158.89 | F70: =IF(A70>$B$30,NA(),IF(A70>$A$8,"",OFFSET(InputPriceData!$E$15,CalculationsAndCharts!$A70+$A$11,IF($C$5,8,0),1,1))) -> 1142.33 | G70: =IF(A70>$B$30,NA(),IF(A70>$A$8,"",OFFSET(InputPriceData!$F$15,CalculationsAndCharts!$A70+$A$11,IF($C$5,8,0),1,1))) -> 1157.76 | H70: 1039.261648 | I70: 1113.18732 | J70: -73.92567187 | K70: 3766.410967 | L70: 61.37109227 | M70: 1100.63274 | N70: 977.8905558 | O70: 11.81051805 | P70: 4.363115905 | AW70: 1699300000
A71: 39 | B71: =IF(A71>$B$30,NA(),IF($A71>$A$8,"",OFFSET(InputPriceData!$B$15,$A71+$A$11,0,1,1))) -> 2004-02-10 | C71: =IF(A71>$B$30,NA(),IF($A71>$A$8,"",OFFSET(InputPriceData!$G$15,CalculationsAndCharts!$A71+$A$11,IF($C$5,8,0),1,1))) -> 1403900000 | D71: =IF(A71>$B$30,NA(),IF(A71>$A$8,"",OFFSET(InputPriceData!$C$15,CalculationsAndCharts!$A71+$A$11,IF($C$5,8,0),1,1))) -> 1139.81 | E71: =IF(A71>$B$30,NA(),IF(A71>$A$8,"",OFFSET(InputPriceData!$D$15,CalculationsAndCharts!$A71+$A$11,IF($C$5,8,0),1,1))) -> 1147.02 | F71: =IF(A71>$B$30,NA(),IF(A71>$A$8,"",OFFSET(InputPriceData!$E$15,CalculationsAndCharts!$A71+$A$11,IF($C$5,8,0),1,1))) -> 1138.7 | G71: =IF(A71>$B$30,NA(),IF(A71>$A$8,"",OFFSET(InputPriceData!$F$15,CalculationsAndCharts!$A71+$A$11,IF($C$5,8,0),1,1))) -> 1145.54 | H71: 1038.07071 | I71: 1111.368027 | J71: -73.29731701 | K71: 3703.16717 | L71: 60.85365371 | M71: 1098.924364 | N71: 977.2170562 | O71: 11.72437545 | P71: 4.363115905 | AW71: 1403900000
A72: 40 | B72: =IF(A72>$B$30,NA(),IF($A72>$A$8,"",OFFSET(InputPriceData!$B$15,$A72+$A$11,0,1,1))) -> 2004-02-09 | C72: =IF(A72>$B$30,NA(),IF($A72>$A$8,"",OFFSET(InputPriceData!$G$15,CalculationsAndCharts!$A72+$A$11,IF($C$5,8,0),1,1))) -> 1303500000 | D72: =IF(A72>$B$30,NA(),IF(A72>$A$8,"",OFFSET(InputPriceData!$C$15,CalculationsAndCharts!$A72+$A$11,IF($C$5,8,0),1,1))) -> 1142.76 | E72: =IF(A72>$B$30,NA(),IF(A72>$A$8,"",OFFSET(InputPriceData!$D$15,CalculationsAndCharts!$A72+$A$11,IF($C$5,8,0),1,1))) -> 1144.46 | F72: =IF(A72>$B$30,NA(),IF(A72>$A$8,"",OFFSET(InputPriceData!$E$15,CalculationsAndCharts!$A72+$A$11,IF($C$5,8,0),1,1))) -> 1139.21 | G72: =IF(A72>$B$30,NA(),IF(A72>$A$8,"",OFFSET(InputPriceData!$F$15,CalculationsAndCharts!$A72+$A$11,IF($C$5,8,0),1,1))) -> 1139.81 | H72: 1036.990617 | I72: 1109.973252 | J72: -72.98263597 | K72: 3641.525861 | L72: 60.34505664 | M72: 1097.335673 | N72: 976.6455599 | O72: 11.63849618 | P72: 4.363115905 | AX72: 1303500000
A73: 41 | B73: =IF(A73>$B$30,NA(),IF($A73>$A$8,"",OFFSET(InputPriceData!$B$15,$A73+$A$11,0,1,1))) -> 2004-02-06 | C73: =IF(A73>$B$30,NA(),IF($A73>$A$8,"",OFFSET(InputPriceData!$G$15,CalculationsAndCharts!$A73+$A$11,IF($C$5,8,0),1,1))) -> 1477600000 | D73: =IF(A73>$B$30,NA(),IF(A73>$A$8,"",OFFSET(InputPriceData!$C$15,CalculationsAndCharts!$A73+$A$11,IF($C$5,8,0),1,1))) -> 1128.59 | E73: =IF(A73>$B$30,NA(),IF(A73>$A$8,"",OFFSET(InputPriceData!$D$15,CalculationsAndCharts!$A73+$A$11,IF($C$5,8,0),1,1))) -> 1142.79 | F73: =IF(A73>$B$30,NA(),IF(A73>$A$8,"",OFFSET(InputPriceData!$E$15,CalculationsAndCharts!$A73+$A$11,IF($C$5,8,0),1,1))) -> 1128.39 | G73: =IF(A73>$B$30,NA(),IF(A73>$A$8,"",OFFSET(InputPriceData!$F$15,CalculationsAndCharts!$A73+$A$11,IF($C$5,8,0),1,1))) -> 1142.76 | H73: 1035.957256 | I73: 1108.755426 | J73: -72.79817018 | K73: 3580.493382 | L73: 59.83722405 | M73: 1095.79448 | N73: 976.1200318 | O73: 11.55206428 | P73: 4.363115905 | AW73: 1477600000
A74: 42 | B74: =IF(A74>$B$30,NA(),IF($A74>$A$8,"",OFFSET(InputPriceData!$B$15,$A74+$A$11,0,1,1))) -> 2004-02-05 | C74: =IF(A74>$B$30,NA(),IF($A74>$A$8,"",OFFSET(InputPriceData!$G$15,CalculationsAndCharts!$A74+$A$11,IF($C$5,8,0),1,1))) -> 1566600000 | D74: =IF(A74>$B$30,NA(),IF(A74>$A$8,"",OFFSET(InputPriceData!$C$15,CalculationsAndCharts!$A74+$A$11,IF($C$5,8,0),1,1))) -> 1126.52 | E74: =IF(A74>$B$30,NA(),IF(A74>$A$8,"",OFFSET(InputPriceData!$D$15,CalculationsAndCharts!$A74+$A$11,IF($C$5,8,0),1,1))) -> 1131.17 | F74: =IF(A74>$B$30,NA(),IF(A74>$A$8,"",OFFSET(InputPriceData!$E$15,CalculationsAndCharts!$A74+$A$11,IF($C$5,8,0),1,1))) -> 1124.44 | G74: =IF(A74>$B$30,NA(),IF(A74>$A$8,"",OFFSET(InputPriceData!$F$15,CalculationsAndCharts!$A74+$A$11,IF($C$5,8,0),1,1))) -> 1128.59 | H74: 1034.883861 | I74: 1107.367484 | J74: -72.4836228 | K74: 3519.901882 | L74: 59.328761 | M74: 1094.212622 | N74: 975.5551005 | O74: 11.46578147 | P74: 4.363115905 | AW74: 1566600000
A75: 43 | B75: =IF(A75>$B$30,NA(),IF($A75>$A$8,"",OFFSET(InputPriceData!$B$15,$A75+$A$11,0,1,1))) -> 2004-02-04 | C75: =IF(A75>$B$30,NA(),IF($A75>$A$8,"",OFFSET(InputPriceData!$G$15,CalculationsAndCharts!$A75+$A$11,IF($C$5,8,0),1,1))) -> 1634800000 | D75: =IF(A75>$B$30,NA(),IF(A75>$A$8,"",OFFSET(InputPriceData!$C$15,CalculationsAndCharts!$A75+$A$11,IF($C$5,8,0),1,1))) -> 1136.03 | E75: =IF(A75>$B$30,NA(),IF(A75>$A$8,"",OFFSET(InputPriceData!$D$15,CalculationsAndCharts!$A75+$A$11,IF($C$5,8,0),1,1))) -> 1136.03 | F75: =IF(A75>$B$30,NA(),IF(A75>$A$8,"",OFFSET(InputPriceData!$E$15,CalculationsAndCharts!$A75+$A$11,IF($C$5,8,0),1,1))) -> 1124.74 | G75: =IF(A75>$B$30,NA(),IF(A75>$A$8,"",OFFSET(InputPriceData!$F$15,CalculationsAndCharts!$A75+$A$11,IF($C$5,8,0),1,1))) -> 1126.52 | H75: 1033.942091 | I75: 1106.501259 | J75: -72.5591679 | K75: 3460.191462 | L75: 58.82339214 | M75: 1092.765483 | N75: 975.1186991 | O75: 11.37846938 | P75: 4.363115905 | AX75: 1634800000
A76: 44 | B76: =IF(A76>$B$30,NA(),IF($A76>$A$8,"",OFFSET(InputPriceData!$B$15,$A76+$A$11,0,1,1))) -> 2004-02-03 | C76: =IF(A76>$B$30,NA(),IF($A76>$A$8,"",OFFSET(InputPriceData!$G$15,CalculationsAndCharts!$A76+$A$11,IF($C$5,8,0),1,1))) -> 1476900000 | D76: =IF(A76>$B$30,NA(),IF(A76>$A$8,"",OFFSET(InputPriceData!$C$15,CalculationsAndCharts!$A76+$A$11,IF($C$5,8,0),1,1))) -> 1135.26 | E76: =IF(A76>$B$30,NA(),IF(A76>$A$8,"",OFFSET(InputPriceData!$D$15,CalculationsAndCharts!$A76+$A$11,IF($C$5,8,0),1,1))) -> 1137.44 | F76: =IF(A76>$B$30,NA(),IF(A76>$A$8,"",OFFSET(InputPriceData!$E$15,CalculationsAndCharts!$A76+$A$11,IF($C$5,8,0),1,1))) -> 1131.33 | G76: =IF(A76>$B$30,NA(),IF(A76>$A$8,"",OFFSET(InputPriceData!$F$15,CalculationsAndCharts!$A76+$A$11,IF($C$5,8,0),1,1))) -> 1136.03 | H76: 1033.01166 | I76: 1105.684168 | J76: -72.67250768 | K76: 3401.179395 | L76: 58.3196313 | M76: 1091.331291 | N76: 974.6920287 | O76: 11.29118548 | P76: 4.363115905 | AW76: 1476900000
A77: 45 | B77: =IF(A77>$B$30,NA(),IF($A77>$A$8,"",OFFSET(InputPriceData!$B$15,$A77+$A$11,0,1,1))) -> 2004-02-02 | C77: =IF(A77>$B$30,NA(),IF($A77>$A$8,"",OFFSET(InputPriceData!$G$15,CalculationsAndCharts!$A77+$A$11,IF($C$5,8,0),1,1))) -> 1599200000 | D77: =IF(A77>$B$30,NA(),IF(A77>$A$8,"",OFFSET(InputPriceData!$C$15,CalculationsAndCharts!$A77+$A$11,IF($C$5,8,0),1,1))) -> 1131.13 | E77: =IF(A77>$B$30,NA(),IF(A77>$A$8,"",OFFSET(InputPriceData!$D$15,CalculationsAndCharts!$A77+$A$11,IF($C$5,8,0),1,1))) -> 1142.45 | F77: =IF(A77>$B$30,NA(),IF(A77>$A$8,"",OFFSET(InputPriceData!$E$15,CalculationsAndCharts!$A77+$A$11,IF($C$5,8,0),1,1))) -> 1127.87 | G77: =IF(A77>$B$30,NA(),IF(A77>$A$8,"",OFFSET(InputPriceData!$F$15,CalculationsAndCharts!$A77+$A$11,IF($C$5,8,0),1,1))) -> 1135.26 | H77: 1031.9763 | I77: 1104.445562 | J77: -72.46926248 | K77: 3342.871722 | L77: 57.81757278 | M77: 1089.793873 | N77: 974.158727 | O77: 11.2052133 | P77: 4.363115905 | AW77: 1599200000
A78: 46 | B78: =IF(A78>$B$30,NA(),IF($A78>$A$8,"",OFFSET(InputPriceData!$B$15,$A78+$A$11,0,1,1))) -> 2004-01-30 | C78: =IF(A78>$B$30,NA(),IF($A78>$A$8,"",OFFSET(InputPriceData!$G$15,CalculationsAndCharts!$A78+$A$11,IF($C$5,8,0),1,1))) -> 1635000000 | D78: =IF(A78>$B$30,NA(),IF(A78>$A$8,"",OFFSET(InputPriceData!$C$15,CalculationsAndCharts!$A78+$A$11,IF($C$5,8,0),1,1))) -> 1134.11 | E78: =IF(A78>$B$30,NA(),IF(A78>$A$8,"",OFFSET(InputPriceData!$D$15,CalculationsAndCharts!$A78+$A$11,IF($C$5,8,0),1,1))) -> 1134.17 | F78: =IF(A78>$B$30,NA(),IF(A78>$A$8,"",OFFSET(InputPriceData!$E$15,CalculationsAndCharts!$A78+$A$11,IF($C$5,8,0),1,1))) -> 1127.73 | G78: =IF(A78>$B$30,NA(),IF(A78>$A$8,"",OFFSET(InputPriceData!$F$15,CalculationsAndCharts!$A78+$A$11,IF($C$5,8,0),1,1))) -> 1131.13 | H78: 1030.938273 | I78: 1103.18783 | J78: -72.24955747 | K78: 3285.683126 | L78: 57.32087862 | M78: 1088.259151 | N78: 973.617394 | O78: 11.12013787 | P78: 4.363115905 | AX78: 1635000000
A79: 47 | B79: =IF(A79>$B$30,NA(),IF($A79>$A$8,"",OFFSET(InputPriceData!$B$15,$A79+$A$11,0,1,1))) -> 2004-01-29 | C79: =IF(A79>$B$30,NA(),IF($A79>$A$8,"",OFFSET(InputPriceData!$G$15,CalculationsAndCharts!$A79+$A$11,IF($C$5,8,0),1,1))) -> 1921900000 | D79: =IF(A79>$B$30,NA(),IF(A79>$A$8,"",OFFSET(InputPriceData!$C$15,CalculationsAndCharts!$A79+$A$11,IF($C$5,8,0),1,1))) -> 1128.48 | E79: =IF(A79>$B$30,NA(),IF(A79>$A$8,"",OFFSET(InputPriceData!$D$15,CalculationsAndCharts!$A79+$A$11,IF($C$5,8,0),1,1))) -> 1134.39 | F79: =IF(A79>$B$30,NA(),IF(A79>$A$8,"",OFFSET(InputPriceData!$E$15,CalculationsAndCharts!$A79+$A$11,IF($C$5,8,0),1,1))) -> 1122.38 | G79: =IF(A79>$B$30,NA(),IF(A79>$A$8,"",OFFSET(InputPriceData!$F$15,CalculationsAndCharts!$A79+$A$11,IF($C$5,8,0),1,1))) -> 1134.11 | H79: 1029.931321 | I79: 1102.047333 | J79: -72.11601277 | K79: 3230.153361 | L79: 56.83443816 | M79: 1086.765759 | N79: 973.0968825 | O79: 11.03654914 | P79: 4.363115905 | AW79: 1921900000
A80: 48 | B80: =IF(A80>$B$30,NA(),IF($A80>$A$8,"",OFFSET(InputPriceData!$B$15,$A80+$A$11,0,1,1))) -> 2004-01-28 | C80: =IF(A80>$B$30,NA(),IF($A80>$A$8,"",OFFSET(InputPriceData!$G$15,CalculationsAndCharts!$A80+$A$11,IF($C$5,8,0),1,1))) -> 1842000000 | D80: =IF(A80>$B$30,NA(),IF(A80>$A$8,"",OFFSET(InputPriceData!$C$15,CalculationsAndCharts!$A80+$A$11,IF($C$5,8,0),1,1))) -> 1144.05 | E80: =IF(A80>$B$30,NA(),IF(A80>$A$8,"",OFFSET(InputPriceData!$D$15,CalculationsAndCharts!$A80+$A$11,IF($C$5,8,0),1,1))) -> 1149.14 | F80: =IF(A80>$B$30,NA(),IF(A80>$A$8,"",OFFSET(InputPriceData!$E$15,CalculationsAndCharts!$A80+$A$11,IF($C$5,8,0),1,1))) -> 1126.5 | G80: =IF(A80>$B$30,NA(),IF(A80>$A$8,"",OFFSET(InputPriceData!$F$15,CalculationsAndCharts!$A80+$A$11,IF($C$5,8,0),1,1))) -> 1128.48 | H80: 1028.884299 | I80: 1100.738653 | J80: -71.85435441 | K80: 3175.474552 | L80: 56.35134916 | M80: 1085.235648 | N80: 972.5329496 | O80: 10.95387484 | P80: 4.363115905 | AX80: 1842000000
A81: 49 | B81: =IF(A81>$B$30,NA(),IF($A81>$A$8,"",OFFSET(InputPriceData!$B$15,$A81+$A$11,0,1,1))) -> 2004-01-27 | C81: =IF(A81>$B$30,NA(),IF($A81>$A$8,"",OFFSET(InputPriceData!$G$15,CalculationsAndCharts!$A81+$A$11,IF($C$5,8,0),1,1))) -> 1673100000 | D81: =IF(A81>$B$30,NA(),IF(A81>$A$8,"",OFFSET(InputPriceData!$C$15,CalculationsAndCharts!$A81+$A$11,IF($C$5,8,0),1,1))) -> 1155.37 | E81: =IF(A81>$B$30,NA(),IF(A81>$A$8,"",OFFSET(InputPriceData!$D$15,CalculationsAndCharts!$A81+$A$11,IF($C$5,8,0),1,1))) -> 1155.37 | F81: =IF(A81>$B$30,NA(),IF(A81>$A$8,"",OFFSET(InputPriceData!$E$15,CalculationsAndCharts!$A81+$A$11,IF($C$5,8,0),1,1))) -> 1144.05 | G81: =IF(A81>$B$30,NA(),IF(A81>$A$8,"",OFFSET(InputPriceData!$F$15,CalculationsAndCharts!$A81+$A$11,IF($C$5,8,0),1,1))) -> 1144.05 | H81: 1027.883337 | I81: 1099.606353 | J81: -71.72301636 | K81: 3121.588349 | L81: 55.87117637 | M81: 1083.754513 | N81: 972.0121605 | O81: 10.87111239 | P81: 4.363115905 | AX81: 1673100000
A82: 50 | B82: =IF(A82>$B$30,NA(),IF($A82>$A$8,"",OFFSET(InputPriceData!$B$15,$A82+$A$11,0,1,1))) -> 2004-01-26 | C82: =IF(A82>$B$30,NA(),IF($A82>$A$8,"",OFFSET(InputPriceData!$G$15,CalculationsAndCharts!$A82+$A$11,IF($C$5,8,0),1,1))) -> 1480600000 | D82: =IF(A82>$B$30,NA(),IF(A82>$A$8,"",OFFSET(InputPriceData!$C$15,CalculationsAndCharts!$A82+$A$11,IF($C$5,8,0),1,1))) -> 1141.55 | E82: =IF(A82>$B$30,NA(),IF(A82>$A$8,"",OFFSET(InputPriceData!$D$15,CalculationsAndCharts!$A82+$A$11,IF($C$5,8,0),1,1))) -> 1155.38 | F82: =IF(A82>$B$30,NA(),IF(A82>$A$8,"",OFFSET(InputPriceData!$E$15,CalculationsAndCharts!$A82+$A$11,IF($C$5,8,0),1,1))) -> 1141 | G82: =IF(A82>$B$30,NA(),IF(A82>$A$8,"",OFFSET(InputPriceData!$F$15,CalculationsAndCharts!$A82+$A$11,IF($C$5,8,0),1,1))) -> 1155.37 | H82: 1026.715833 | I82: 1097.792327 | J82: -71.07649411 | K82: 3067.588372 | L82: 55.38581382 | M82: 1082.101647 | N82: 971.3300189 | O82: 10.78892758 | P82: 4.363115905 | AW82: 1480600000
A83: 51 | B83: =IF(A83>$B$30,NA(),IF($A83>$A$8,"",OFFSET(InputPriceData!$B$15,$A83+$A$11,0,1,1))) -> 2004-01-23 | C83: =IF(A83>$B$30,NA(),IF($A83>$A$8,"",OFFSET(InputPriceData!$G$15,CalculationsAndCharts!$A83+$A$11,IF($C$5,8,0),1,1))) -> 1561200000 | D83: =IF(A83>$B$30,NA(),IF(A83>$A$8,"",OFFSET(InputPriceData!$C$15,CalculationsAndCharts!$A83+$A$11,IF($C$5,8,0),1,1))) -> 1143.94 | E83: =IF(A83>$B$30,NA(),IF(A83>$A$8,"",OFFSET(InputPriceData!$D$15,CalculationsAndCharts!$A83+$A$11,IF($C$5,8,0),1,1))) -> 1150.31 | F83: =IF(A83>$B$30,NA(),IF(A83>$A$8,"",OFFSET(InputPriceData!$E$15,CalculationsAndCharts!$A83+$A$11,IF($C$5,8,0),1,1))) -> 1136.85 | G83: =IF(A83>$B$30,NA(),IF(A83>$A$8,"",OFFSET(InputPriceData!$F$15,CalculationsAndCharts!$A83+$A$11,IF($C$5,8,0),1,1))) -> 1141.55 | H83: 1025.422826 | I83: 1095.442218 | J83: -70.01939171 | K83: 3014.874265 | L83: 54.9078707 | M83: 1080.330697 | N83: 970.5149553 | O83: 10.70931313 | P83: 4.363115905 | AX83: 1561200000
A84: 52 | B84: =IF(A84>$B$30,NA(),IF($A84>$A$8,"",OFFSET(InputPriceData!$B$15,$A84+$A$11,0,1,1))) -> 2004-01-22 | C84: =IF(A84>$B$30,NA(),IF($A84>$A$8,"",OFFSET(InputPriceData!$G$15,CalculationsAndCharts!$A84+$A$11,IF($C$5,8,0),1,1))) -> 1693700000 | D84: =IF(A84>$B$30,NA(),IF(A84>$A$8,"",OFFSET(InputPriceData!$C$15,CalculationsAndCharts!$A84+$A$11,IF($C$5,8,0),1,1))) -> 1147.62 | E84: =IF(A84>$B$30,NA(),IF(A84>$A$8,"",OFFSET(InputPriceData!$D$15,CalculationsAndCharts!$A84+$A$11,IF($C$5,8,0),1,1))) -> 1150.51 | F84: =IF(A84>$B$30,NA(),IF(A84>$A$8,"",OFFSET(InputPriceData!$E$15,CalculationsAndCharts!$A84+$A$11,IF($C$5,8,0),1,1))) -> 1143.01 | G84: =IF(A84>$B$30,NA(),IF(A84>$A$8,"",OFFSET(InputPriceData!$F$15,CalculationsAndCharts!$A84+$A$11,IF($C$5,8,0),1,1))) -> 1143.94 | H84: 1024.255719 | I84: 1093.560267 | J84: -69.30454869 | K84: 2965.239457 | L84: 54.45401232 | M84: 1078.709731 | N84: 969.8017064 | O84: 10.63289398 | P84: 4.363115905 | AX84: 1693700000
A85: 53 | B85: =IF(A85>$B$30,NA(),IF($A85>$A$8,"",OFFSET(InputPriceData!$B$15,$A85+$A$11,0,1,1))) -> 2004-01-21 | C85: =IF(A85>$B$30,NA(),IF($A85>$A$8,"",OFFSET(InputPriceData!$G$15,CalculationsAndCharts!$A85+$A$11,IF($C$5,8,0),1,1))) -> 1757600000 | D85: =IF(A85>$B$30,NA(),IF(A85>$A$8,"",OFFSET(InputPriceData!$C$15,CalculationsAndCharts!$A85+$A$11,IF($C$5,8,0),1,1))) -> 1138.77 | E85: =IF(A85>$B$30,NA(),IF(A85>$A$8,"",OFFSET(InputPriceData!$D$15,CalculationsAndCharts!$A85+$A$11,IF($C$5,8,0),1,1))) -> 1149.21 | F85: =IF(A85>$B$30,NA(),IF(A85>$A$8,"",OFFSET(InputPriceData!$E$15,CalculationsAndCharts!$A85+$A$11,IF($C$5,8,0),1,1))) -> 1134.62 | G85: =IF(A85>$B$30,NA(),IF(A85>$A$8,"",OFFSET(InputPriceData!$F$15,CalculationsAndCharts!$A85+$A$11,IF($C$5,8,0),1,1))) -> 1147.62 | H85: 1023.052862 | I85: 1091.503952 | J85: -68.45109017 | K85: 2917.625356 | L85: 54.0150475 | M85: 1077.067909 | N85: 969.0378142 | O85: 10.55958094 | P85: 4.363115905 | AW85: 1757600000
A86: 54 | B86: =IF(A86>$B$30,NA(),IF($A86>$A$8,"",OFFSET(InputPriceData!$B$15,$A86+$A$11,0,1,1))) -> 2004-01-20 | C86: =IF(A86>$B$30,NA(),IF($A86>$A$8,"",OFFSET(InputPriceData!$G$15,CalculationsAndCharts!$A86+$A$11,IF($C$5,8,0),1,1))) -> 1698200000 | D86: =IF(A86>$B$30,NA(),IF(A86>$A$8,"",OFFSET(InputPriceData!$C$15,CalculationsAndCharts!$A86+$A$11,IF($C$5,8,0),1,1))) -> 1139.83 | E86: =IF(A86>$B$30,NA(),IF(A86>$A$8,"",OFFSET(InputPriceData!$D$15,CalculationsAndCharts!$A86+$A$11,IF($C$5,8,0),1,1))) -> 1142.93 | F86: =IF(A86>$B$30,NA(),IF(A86>$A$8,"",OFFSET(InputPriceData!$E$15,CalculationsAndCharts!$A86+$A$11,IF($C$5,8,0),1,1))) -> 1135.4 | G86: =IF(A86>$B$30,NA(),IF(A86>$A$8,"",OFFSET(InputPriceData!$F$15,CalculationsAndCharts!$A86+$A$11,IF($C$5,8,0),1,1))) -> 1138.77 | H86: 1021.800931 | I86: 1089.213501 | J86: -67.41257026 | K86: 2871.984439 | L86: 53.59089885 | M86: 1075.391829 | N86: 968.2100318 | O86: 10.48949893 | P86: 4.363115905 | AX86: 1698200000
A87: 55 | B87: =IF(A87>$B$30,NA(),IF($A87>$A$8,"",OFFSET(InputPriceData!$B$15,$A87+$A$11,0,1,1))) -> 2004-01-16 | C87: =IF(A87>$B$30,NA(),IF($A87>$A$8,"",OFFSET(InputPriceData!$G$15,CalculationsAndCharts!$A87+$A$11,IF($C$5,8,0),1,1))) -> 1721100000 | D87: =IF(A87>$B$30,NA(),IF(A87>$A$8,"",OFFSET(InputPriceData!$C$15,CalculationsAndCharts!$A87+$A$11,IF($C$5,8,0),1,1))) -> 1132.05 | E87: =IF(A87>$B$30,NA(),IF(A87>$A$8,"",OFFSET(InputPriceData!$D$15,CalculationsAndCharts!$A87+$A$11,IF($C$5,8,0),1,1))) -> 1139.83 | F87: =IF(A87>$B$30,NA(),IF(A87>$A$8,"",OFFSET(InputPriceData!$E$15,CalculationsAndCharts!$A87+$A$11,IF($C$5,8,0),1,1))) -> 1132.05 | G87: =IF(A87>$B$30,NA(),IF(A87>$A$8,"",OFFSET(InputPriceData!$F$15,CalculationsAndCharts!$A87+$A$11,IF($C$5,8,0),1,1))) -> 1139.83 | H87: 1020.625362 | I87: 1087.190787 | J87: -66.56542455 | K87: 2828.439969 | L87: 53.18307973 | M87: 1073.808442 | N87: 967.4422824 | O87: 10.42166533 | P87: 4.363115905 | AW87: 1721100000
A88: 56 | B88: =IF(A88>$B$30,NA(),IF($A88>$A$8,"",OFFSET(InputPriceData!$B$15,$A88+$A$11,0,1,1))) -> 2004-01-15 | C88: =IF(A88>$B$30,NA(),IF($A88>$A$8,"",OFFSET(InputPriceData!$G$15,CalculationsAndCharts!$A88+$A$11,IF($C$5,8,0),1,1))) -> 1695000000 | D88: =IF(A88>$B$30,NA(),IF(A88>$A$8,"",OFFSET(InputPriceData!$C$15,CalculationsAndCharts!$A88+$A$11,IF($C$5,8,0),1,1))) -> 1130.52 | E88: =IF(A88>$B$30,NA(),IF(A88>$A$8,"",OFFSET(InputPriceData!$D$15,CalculationsAndCharts!$A88+$A$11,IF($C$5,8,0),1,1))) -> 1137.11 | F88: =IF(A88>$B$30,NA(),IF(A88>$A$8,"",OFFSET(InputPriceData!$E$15,CalculationsAndCharts!$A88+$A$11,IF($C$5,8,0),1,1))) -> 1124.54 | G88: =IF(A88>$B$30,NA(),IF(A88>$A$8,"",OFFSET(InputPriceData!$F$15,CalculationsAndCharts!$A88+$A$11,IF($C$5,8,0),1,1))) -> 1132.05 | H88: 1019.427326 | I88: 1085.042247 | J88: -65.61492179 | K88: 2786.741418 | L88: 52.78959573 | M88: 1072.216921 | N88: 966.6377298 | O88: 10.35671586 | P88: 4.363115905 | AW88: 1695000000
A89: 57 | B89: =IF(A89>$B$30,NA(),IF($A89>$A$8,"",OFFSET(InputPriceData!$B$15,$A89+$A$11,0,1,1))) -> 2004-01-14 | C89: =IF(A89>$B$30,NA(),IF($A89>$A$8,"",OFFSET(InputPriceData!$G$15,CalculationsAndCharts!$A89+$A$11,IF($C$5,8,0),1,1))) -> 1514600000 | D89: =IF(A89>$B$30,NA(),IF(A89>$A$8,"",OFFSET(InputPriceData!$C$15,CalculationsAndCharts!$A89+$A$11,IF($C$5,8,0),1,1))) -> 1121.22 | E89: =IF(A89>$B$30,NA(),IF(A89>$A$8,"",OFFSET(InputPriceData!$D$15,CalculationsAndCharts!$A89+$A$11,IF($C$5,8,0),1,1))) -> 1130.75 | F89: =IF(A89>$B$30,NA(),IF(A89>$A$8,"",OFFSET(InputPriceData!$E$15,CalculationsAndCharts!$A89+$A$11,IF($C$5,8,0),1,1))) -> 1121.22 | G89: =IF(A89>$B$30,NA(),IF(A89>$A$8,"",OFFSET(InputPriceData!$F$15,CalculationsAndCharts!$A89+$A$11,IF($C$5,8,0),1,1))) -> 1130.52 | H89: 1018.295439 | I89: 1083.123564 | J89: -64.82812418 | K89: 2746.988216 | L89: 52.41171831 | M89: 1070.707158 | N89: 965.883721 | O89: 10.29401022 | P89: 4.363115905 | AW89: 1514600000
A90: 58 | B90: =IF(A90>$B$30,NA(),IF($A90>$A$8,"",OFFSET(InputPriceData!$B$15,$A90+$A$11,0,1,1))) -> 2004-01-13 | C90: =IF(A90>$B$30,NA(),IF($A90>$A$8,"",OFFSET(InputPriceData!$G$15,CalculationsAndCharts!$A90+$A$11,IF($C$5,8,0),1,1))) -> 1595900000 | D90: =IF(A90>$B$30,NA(),IF(A90>$A$8,"",OFFSET(InputPriceData!$C$15,CalculationsAndCharts!$A90+$A$11,IF($C$5,8,0),1,1))) -> 1127.23 | E90: =IF(A90>$B$30,NA(),IF(A90>$A$8,"",OFFSET(InputPriceData!$D$15,CalculationsAndCharts!$A90+$A$11,IF($C$5,8,0),1,1))) -> 1129.07 | F90: =IF(A90>$B$30,NA(),IF(A90>$A$8,"",OFFSET(InputPriceData!$E$15,CalculationsAndCharts!$A90+$A$11,IF($C$5,8,0),1,1))) -> 1115.19 | G90: =IF(A90>$B$30,NA(),IF(A90>$A$8,"",OFFSET(InputPriceData!$F$15,CalculationsAndCharts!$A90+$A$11,IF($C$5,8,0),1,1))) -> 1121.22 | H90: 1017.167554 | I90: 1081.189015 | J90: -64.02146079 | K90: 2708.318221 | L90: 52.04150479 | M90: 1069.209059 | N90: 965.1260495 | O90: 10.2326317 | P90: 4.363115905 | AX90: 1595900000
A91: 59 | B91: =IF(A91>$B$30,NA(),IF($A91>$A$8,"",OFFSET(InputPriceData!$B$15,$A91+$A$11,0,1,1))) -> 2004-01-12 | C91: =IF(A91>$B$30,NA(),IF($A91>$A$8,"",OFFSET(InputPriceData!$G$15,CalculationsAndCharts!$A91+$A$11,IF($C$5,8,0),1,1))) -> 1510200000 | D91: =IF(A91>$B$30,NA(),IF(A91>$A$8,"",OFFSET(InputPriceData!$C$15,CalculationsAndCharts!$A91+$A$11,IF($C$5,8,0),1,1))) -> 1121.86 | E91: =IF(A91>$B$30,NA(),IF(A91>$A$8,"",OFFSET(InputPriceData!$D$15,CalculationsAndCharts!$A91+$A$11,IF($C$5,8,0),1,1))) -> 1127.85 | F91: =IF(A91>$B$30,NA(),IF(A91>$A$8,"",OFFSET(InputPriceData!$E$15,CalculationsAndCharts!$A91+$A$11,IF($C$5,8,0),1,1))) -> 1120.9 | G91: =IF(A91>$B$30,NA(),IF(A91>$A$8,"",OFFSET(InputPriceData!$F$15,CalculationsAndCharts!$A91+$A$11,IF($C$5,8,0),1,1))) -> 1127.23 | H91: 1016.121801 | I91: 1079.555097 | J91: -63.43329626 | K91: 2671.164899 | L91: 51.68331354 | M91: 1067.805115 | N91: 964.4384875 | O91: 10.17266109 | P91: 4.363115905 | AW91: 1510200000
A92: 60 | B92: =IF(A92>$B$30,NA(),IF($A92>$A$8,"",OFFSET(InputPriceData!$B$15,$A92+$A$11,0,1,1))) -> 2004-01-09 | C92: =IF(A92>$B$30,NA(),IF($A92>$A$8,"",OFFSET(InputPriceData!$G$15,CalculationsAndCharts!$A92+$A$11,IF($C$5,8,0),1,1))) -> 1720700000 | D92: =IF(A92>$B$30,NA(),IF(A92>$A$8,"",OFFSET(InputPriceData!$C$15,CalculationsAndCharts!$A92+$A$11,IF($C$5,8,0),1,1))) -> 1131.92 | E92: =IF(A92>$B$30,NA(),IF(A92>$A$8,"",OFFSET(InputPriceData!$D$15,CalculationsAndCharts!$A92+$A$11,IF($C$5,8,0),1,1))) -> 1131.92 | F92: =IF(A92>$B$30,NA(),IF(A92>$A$8,"",OFFSET(InputPriceData!$E$15,CalculationsAndCharts!$A92+$A$11,IF($C$5,8,0),1,1))) -> 1120.9 | G92: =IF(A92>$B$30,NA(),IF(A92>$A$8,"",OFFSET(InputPriceData!$F$15,CalculationsAndCharts!$A92+$A$11,IF($C$5,8,0),1,1))) -> 1121.86 | H92: 1015.005136 | I92: 1077.609183 | J92: -62.60404718 | K92: 2635.105574 | L92: 51.3332794 | M92: 1066.338415 | N92: 963.6718564 | O92: 10.11488072 | P92: 4.363115905 | AX92: 1720700000
A93: 61 | B93: =IF(A93>$B$30,NA(),IF($A93>$A$8,"",OFFSET(InputPriceData!$B$15,$A93+$A$11,0,1,1))) -> 2004-01-08 | C93: =IF(A93>$B$30,NA(),IF($A93>$A$8,"",OFFSET(InputPriceData!$G$15,CalculationsAndCharts!$A93+$A$11,IF($C$5,8,0),1,1))) -> 1868400000 | D93: =IF(A93>$B$30,NA(),IF(A93>$A$8,"",OFFSET(InputPriceData!$C$15,CalculationsAndCharts!$A93+$A$11,IF($C$5,8,0),1,1))) -> 1126.33 | E93: =IF(A93>$B$30,NA(),IF(A93>$A$8,"",OFFSET(InputPriceData!$D$15,CalculationsAndCharts!$A93+$A$11,IF($C$5,8,0),1,1))) -> 1131.92 | F93: =IF(A93>$B$30,NA(),IF(A93>$A$8,"",OFFSET(InputPriceData!$E$15,CalculationsAndCharts!$A93+$A$11,IF($C$5,8,0),1,1))) -> 1124.91 | G93: =IF(A93>$B$30,NA(),IF(A93>$A$8,"",OFFSET(InputPriceData!$F$15,CalculationsAndCharts!$A93+$A$11,IF($C$5,8,0),1,1))) -> 1131.92 | H93: 1013.931218 | I93: 1075.803027 | J93: -61.87180961 | K93: 2600.608756 | L93: 50.99616413 | M93: 1064.927382 | N93: 962.9350534 | O93: 10.05909735 | P93: 4.363115905 | AW93: 1868400000
A94: 62 | B94: =IF(A94>$B$30,NA(),IF($A94>$A$8,"",OFFSET(InputPriceData!$B$15,$A94+$A$11,0,1,1))) -> 2004-01-07 | C94: =IF(A94>$B$30,NA(),IF($A94>$A$8,"",OFFSET(InputPriceData!$G$15,CalculationsAndCharts!$A94+$A$11,IF($C$5,8,0),1,1))) -> 1704900000 | D94: =IF(A94>$B$30,NA(),IF(A94>$A$8,"",OFFSET(InputPriceData!$C$15,CalculationsAndCharts!$A94+$A$11,IF($C$5,8,0),1,1))) -> 1123.67 | E94: =IF(A94>$B$30,NA(),IF(A94>$A$8,"",OFFSET(InputPriceData!$D$15,CalculationsAndCharts!$A94+$A$11,IF($C$5,8,0),1,1))) -> 1126.33 | F94: =IF(A94>$B$30,NA(),IF(A94>$A$8,"",OFFSET(InputPriceData!$E$15,CalculationsAndCharts!$A94+$A$11,IF($C$5,8,0),1,1))) -> 1116.45 | G94: =IF(A94>$B$30,NA(),IF(A94>$A$8,"",OFFSET(InputPriceData!$F$15,CalculationsAndCharts!$A94+$A$11,IF($C$5,8,0),1,1))) -> 1126.33 | H94: 1012.745401 | I94: 1073.512538 | J94: -60.76713784 | K94: 2567.423218 | L94: 50.66974657 | M94: 1063.415147 | N94: 962.0756541 | O94: 10.00641357 | P94: 4.363115905 | AW94: 1704900000
A95: 63 | B95: =IF(A95>$B$30,NA(),IF($A95>$A$8,"",OFFSET(InputPriceData!$B$15,$A95+$A$11,0,1,1))) -> 2004-01-06 | C95: =IF(A95>$B$30,NA(),IF($A95>$A$8,"",OFFSET(InputPriceData!$G$15,CalculationsAndCharts!$A95+$A$11,IF($C$5,8,0),1,1))) -> 1494500000 | D95: =IF(A95>$B$30,NA(),IF(A95>$A$8,"",OFFSET(InputPriceData!$C$15,CalculationsAndCharts!$A95+$A$11,IF($C$5,8,0),1,1))) -> 1122.22 | E95: =IF(A95>$B$30,NA(),IF(A95>$A$8,"",OFFSET(InputPriceData!$D$15,CalculationsAndCharts!$A95+$A$11,IF($C$5,8,0),1,1))) -> 1124.46 | F95: =IF(A95>$B$30,NA(),IF(A95>$A$8,"",OFFSET(InputPriceData!$E$15,CalculationsAndCharts!$A95+$A$11,IF($C$5,8,0),1,1))) -> 1118.44 | G95: =IF(A95>$B$30,NA(),IF(A95>$A$8,"",OFFSET(InputPriceData!$F$15,CalculationsAndCharts!$A95+$A$11,IF($C$5,8,0),1,1))) -> 1123.67 | H95: 1011.603847 | I95: 1071.356724 | J95: -59.75287684 | K95: 2537.27343 | L95: 50.37135525 | M95: 1061.975202 | N95: 961.2324916 | O95: 9.958711684 | P95: 4.363115905 | AW95: 1494500000
A96: 64 | B96: =IF(A96>$B$30,NA(),IF($A96>$A$8,"",OFFSET(InputPriceData!$B$15,$A96+$A$11,0,1,1))) -> 2004-01-05 | C96: =IF(A96>$B$30,NA(),IF($A96>$A$8,"",OFFSET(InputPriceData!$G$15,CalculationsAndCharts!$A96+$A$11,IF($C$5,8,0),1,1))) -> 1578200000 | D96: =IF(A96>$B$30,NA(),IF(A96>$A$8,"",OFFSET(InputPriceData!$C$15,CalculationsAndCharts!$A96+$A$11,IF($C$5,8,0),1,1))) -> 1108.48 | E96: =IF(A96>$B$30,NA(),IF(A96>$A$8,"",OFFSET(InputPriceData!$D$15,CalculationsAndCharts!$A96+$A$11,IF($C$5,8,0),1,1))) -> 1122.22 | F96: =IF(A96>$B$30,NA(),IF(A96>$A$8,"",OFFSET(InputPriceData!$E$15,CalculationsAndCharts!$A96+$A$11,IF($C$5,8,0),1,1))) -> 1108.48 | G96: =IF(A96>$B$30,NA(),IF(A96>$A$8,"",OFFSET(InputPriceData!$F$15,CalculationsAndCharts!$A96+$A$11,IF($C$5,8,0),1,1))) -> 1122.22 | H96: 1010.477554 | I96: 1069.221488 | J96: -58.74393407 | K96: 2510.004961 | L96: 50.09994971 | M96: 1060.577504 | N96: 960.3776042 | O96: 9.916093538 | P96: 4.363115905 | AW96: 1578200000
A97: 65 | B97: =IF(A97>$B$30,NA(),IF($A97>$A$8,"",OFFSET(InputPriceData!$B$15,$A97+$A$11,0,1,1))) -> 2004-01-02 | C97: =IF(A97>$B$30,NA(),IF($A97>$A$8,"",OFFSET(InputPriceData!$G$15,CalculationsAndCharts!$A97+$A$11,IF($C$5,8,0),1,1))) -> 1153200000 | D97: =IF(A97>$B$30,NA(),IF(A97>$A$8,"",OFFSET(InputPriceData!$C$15,CalculationsAndCharts!$A97+$A$11,IF($C$5,8,0),1,1))) -> 1111.92 | E97: =IF(A97>$B$30,NA(),IF(A97>$A$8,"",OFFSET(InputPriceData!$D$15,CalculationsAndCharts!$A97+$A$11,IF($C$5,8,0),1,1))) -> 1118.85 | F97: =IF(A97>$B$30,NA(),IF(A97>$A$8,"",OFFSET(InputPriceData!$E$15,CalculationsAndCharts!$A97+$A$11,IF($C$5,8,0),1,1))) -> 1105.08 | G97: =IF(A97>$B$30,NA(),IF(A97>$A$8,"",OFFSET(InputPriceData!$F$15,CalculationsAndCharts!$A97+$A$11,IF($C$5,8,0),1,1))) -> 1108.48 | H97: 1009.354514 | I97: 1067.058283 | J97: -57.70376916 | K97: 2485.270619 | L97: 49.8524886 | M97: 1059.207003 | N97: 959.5020256 | O97: 9.878092958 | P97: 4.363115905 | AW97: =IF(G97>=D97,C97,NA()) ->  | AX97: =IF(G97<D97,C97,NA()) -> 1153200000
A98: 66 | B98: =IF(A98>$B$30,NA(),IF($A98>$A$8,"",OFFSET(InputPriceData!$B$15,$A98+$A$11,0,1,1))) -> 2003-12-31 | C98: =IF(A98>$B$30,NA(),IF($A98>$A$8,"",OFFSET(InputPriceData!$G$15,CalculationsAndCharts!$A98+$A$11,IF($C$5,8,0),1,1))) -> 1027500000 | D98: =IF(A98>$B$30,NA(),IF(A98>$A$8,"",OFFSET(InputPriceData!$C$15,CalculationsAndCharts!$A98+$A$11,IF($C$5,8,0),1,1))) -> 1109.64 | E98: =IF(A98>$B$30,NA(),IF(A98>$A$8,"",OFFSET(InputPriceData!$D$15,CalculationsAndCharts!$A98+$A$11,IF($C$5,8,0),1,1))) -> 1112.56 | F98: =IF(A98>$B$30,NA(),IF(A98>$A$8,"",OFFSET(InputPriceData!$E$15,CalculationsAndCharts!$A98+$A$11,IF($C$5,8,0),1,1))) -> 1106.21 | G98: =IF(A98>$B$30,NA(),IF(A98>$A$8,"",OFFSET(InputPriceData!$F$15,CalculationsAndCharts!$A98+$A$11,IF($C$5,8,0),1,1))) -> 1111.92 | H98: =IF(A98>$H$30,NA(),IF(A98=$H$30,AVERAGE(OFFSET(G98,0,0,$A$17,1)),G98*$C$17+H99*$D$17)) -> 1008.358278 | I98: =IF($A98>$I$30,NA(),IF($A98=$I$30,AVERAGE(OFFSET($G98,0,0,$A$18,1)),$G98*$C$18+I99*$D$18)) -> 1065.367601 | J98: =IF($A98>$J$30,NA(),H98-I98) -> -57.00932288 | K98: =IF($A98>K$30,NA(),SUMSQ(OFFSET(J98,0,0,$A$18,1))/$A$18) -> 2463.270906 | L98: =IF($A98>K$30,NA(),SQRT(K98)*$A$19) -> 49.63135003 | M98: =IF($A98>K$30,NA(),H98+L98) -> 1057.989628 | N98: =IF($A98>K$30,NA(),H98-L98) -> 958.7269281 | O98: =IF($A98>K$30,NA(),(M98-N98)/H98*100) -> 9.84399119 | P98: =IF($A98>P$30,NA(),MIN(OFFSET(O98,0,0,$A$17,1))) -> 4.363115905 | AW98: 1027500000
A99: 67 | B99: =IF(A99>$B$30,NA(),IF($A99>$A$8,"",OFFSET(InputPriceData!$B$15,$A99+$A$11,0,1,1))) -> 2003-12-30 | C99: =IF(A99>$B$30,NA(),IF($A99>$A$8,"",OFFSET(InputPriceData!$G$15,CalculationsAndCharts!$A99+$A$11,IF($C$5,8,0),1,1))) -> 1012600000 | D99: =IF(A99>$B$30,NA(),IF(A99>$A$8,"",OFFSET(InputPriceData!$C$15,CalculationsAndCharts!$A99+$A$11,IF($C$5,8,0),1,1))) -> 1109.48 | E99: =IF(A99>$B$30,NA(),IF(A99>$A$8,"",OFFSET(InputPriceData!$D$15,CalculationsAndCharts!$A99+$A$11,IF($C$5,8,0),1,1))) -> 1109.75 | F99: =IF(A99>$B$30,NA(),IF(A99>$A$8,"",OFFSET(InputPriceData!$E$15,CalculationsAndCharts!$A99+$A$11,IF($C$5,8,0),1,1))) -> 1106.41 | G99: =IF(A99>$B$30,NA(),IF(A99>$A$8,"",OFFSET(InputPriceData!$F$15,CalculationsAndCharts!$A99+$A$11,IF($C$5,8,0),1,1))) -> 1109.64 | H99: 1007.317457 | I99: 1063.467503 | J99: -56.15004629 | K99: 2442.248105 | L99: 49.41910668 | M99: 1056.736564 | N99: 957.8983502 | O99: 9.812022286 | P99: 4.363115905 | AW99: 1012600000
A100: 68 | B100: =IF(A100>$B$30,NA(),IF($A100>$A$8,"",OFFSET(InputPriceData!$B$15,$A100+$A$11,0,1,1))) -> 2003-12-29 | C100: =IF(A100>$B$30,NA(),IF($A100>$A$8,"",OFFSET(InputPriceData!$G$15,CalculationsAndCharts!$A100+$A$11,IF($C$5,8,0),1,1))) -> 1058800000 | D100: =IF(A100>$B$30,NA(),IF(A100>$A$8,"",OFFSET(InputPriceData!$C$15,CalculationsAndCharts!$A100+$A$11,IF($C$5,8,0),1,1))) -> 1095.89 | E100: =IF(A100>$B$30,NA(),IF(A100>$A$8,"",OFFSET(InputPriceData!$D$15,CalculationsAndCharts!$A100+$A$11,IF($C$5,8,0),1,1))) -> 1109.48 | F100: =IF(A100>$B$30,NA(),IF(A100>$A$8,"",OFFSET(InputPriceData!$E$15,CalculationsAndCharts!$A100+$A$11,IF($C$5,8,0),1,1))) -> 1095.89 | G100: =IF(A100>$B$30,NA(),IF(A100>$A$8,"",OFFSET(InputPriceData!$F$15,CalculationsAndCharts!$A100+$A$11,IF($C$5,8,0),1,1))) -> 1109.48 | H100: 1006.28909 | I100: 1061.582911 | J100: -55.29382185 | K100: 2422.568226 | L100: 49.21959189 | M100: 1055.508681 | N100: 957.0694977 | O100: 9.782396014 | P100: 4.363115905 | AW100: 1058800000
A101: 69 | B101: =IF(A101>$B$30,NA(),IF($A101>$A$8,"",OFFSET(InputPriceData!$B$15,$A101+$A$11,0,1,1))) -> 2003-12-26 | C101: =IF(A101>$B$30,NA(),IF($A101>$A$8,"",OFFSET(InputPriceData!$G$15,CalculationsAndCharts!$A101+$A$11,IF($C$5,8,0),1,1))) -> 356070000 | D101: =IF(A101>$B$30,NA(),IF(A101>$A$8,"",OFFSET(InputPriceData!$C$15,CalculationsAndCharts!$A101+$A$11,IF($C$5,8,0),1,1))) -> 1094.04 | E101: =IF(A101>$B$30,NA(),IF(A101>$A$8,"",OFFSET(InputPriceData!$D$15,CalculationsAndCharts!$A101+$A$11,IF($C$5,8,0),1,1))) -> 1098.47 | F101: =IF(A101>$B$30,NA(),IF(A101>$A$8,"",OFFSET(InputPriceData!$E$15,CalculationsAndCharts!$A101+$A$11,IF($C$5,8,0),1,1))) -> 1094.04 | G101: =IF(A101>$B$30,NA(),IF(A101>$A$8,"",OFFSET(InputPriceData!$F$15,CalculationsAndCharts!$A101+$A$11,IF($C$5,8,0),1,1))) -> 1095.89 | H101: 1005.251995 | I101: 1059.627928 | J101: -54.37593322 | K101: 2404.438654 | L101: 49.03507575 | M101: 1054.287071 | N101: 956.2169193 | O101: 9.755777853 | P101: 4.363115905 | AW101: 356070000
A102: 70 | B102: =IF(A102>$B$30,NA(),IF($A102>$A$8,"",OFFSET(InputPriceData!$B$15,$A102+$A$11,0,1,1))) -> 2003-12-24 | C102: =IF(A102>$B$30,NA(),IF($A102>$A$8,"",OFFSET(InputPriceData!$G$15,CalculationsAndCharts!$A102+$A$11,IF($C$5,8,0),1,1))) -> 518060000 | D102: =IF(A102>$B$30,NA(),IF(A102>$A$8,"",OFFSET(InputPriceData!$C$15,CalculationsAndCharts!$A102+$A$11,IF($C$5,8,0),1,1))) -> 1096.02 | E102: =IF(A102>$B$30,NA(),IF(A102>$A$8,"",OFFSET(InputPriceData!$D$15,CalculationsAndCharts!$A102+$A$11,IF($C$5,8,0),1,1))) -> 1096.4 | F102: =IF(A102>$B$30,NA(),IF(A102>$A$8,"",OFFSET(InputPriceData!$E$15,CalculationsAndCharts!$A102+$A$11,IF($C$5,8,0),1,1))) -> 1092.73 | G102: =IF(A102>$B$30,NA(),IF(A102>$A$8,"",OFFSET(InputPriceData!$F$15,CalculationsAndCharts!$A102+$A$11,IF($C$5,8,0),1,1))) -> 1094.04 | H102: 1004.34106 | I102: 1058.147844 | J102: -53.80678338 | K102: 2387.30393 | L102: 48.86004431 | M102: 1053.201105 | N102: 955.481016 | O102: 9.729771339 | P102: 4.363115905 | AX102: 518060000
A103: 71 | B103: =IF(A103>$B$30,NA(),IF($A103>$A$8,"",OFFSET(InputPriceData!$B$15,$A103+$A$11,0,1,1))) -> 2003-12-23 | C103: =IF(A103>$B$30,NA(),IF($A103>$A$8,"",OFFSET(InputPriceData!$G$15,CalculationsAndCharts!$A103+$A$11,IF($C$5,8,0),1,1))) -> 1145300000 | D103: =IF(A103>$B$30,NA(),IF(A103>$A$8,"",OFFSET(InputPriceData!$C$15,CalculationsAndCharts!$A103+$A$11,IF($C$5,8,0),1,1))) -> 1092.94 | E103: =IF(A103>$B$30,NA(),IF(A103>$A$8,"",OFFSET(InputPriceData!$D$15,CalculationsAndCharts!$A103+$A$11,IF($C$5,8,0),1,1))) -> 1096.95 | F103: =IF(A103>$B$30,NA(),IF(A103>$A$8,"",OFFSET(InputPriceData!$E$15,CalculationsAndCharts!$A103+$A$11,IF($C$5,8,0),1,1))) -> 1091.73 | G103: =IF(A103>$B$30,NA(),IF(A103>$A$8,"",OFFSET(InputPriceData!$F$15,CalculationsAndCharts!$A103+$A$11,IF($C$5,8,0),1,1))) -> 1096.02 | H103: 1003.439563 | I103: 1056.682858 | J103: -53.24329429 | K103: 2370.493558 | L103: 48.68771465 | M103: 1052.127278 | N103: 954.7518487 | O103: 9.70416484 | P103: 4.363115905 | AW103: 1145300000
A104: 72 | B104: =IF(A104>$B$30,NA(),IF($A104>$A$8,"",OFFSET(InputPriceData!$B$15,$A104+$A$11,0,1,1))) -> 2003-12-22 | C104: =IF(A104>$B$30,NA(),IF($A104>$A$8,"",OFFSET(InputPriceData!$G$15,CalculationsAndCharts!$A104+$A$11,IF($C$5,8,0),1,1))) -> 1251700000 | D104: =IF(A104>$B$30,NA(),IF(A104>$A$8,"",OFFSET(InputPriceData!$C$15,CalculationsAndCharts!$A104+$A$11,IF($C$5,8,0),1,1))) -> 1088.66 | E104: =IF(A104>$B$30,NA(),IF(A104>$A$8,"",OFFSET(InputPriceData!$D$15,CalculationsAndCharts!$A104+$A$11,IF($C$5,8,0),1,1))) -> 1092.94 | F104: =IF(A104>$B$30,NA(),IF(A104>$A$8,"",OFFSET(InputPriceData!$E$15,CalculationsAndCharts!$A104+$A$11,IF($C$5,8,0),1,1))) -> 1086.14 | G104: =IF(A104>$B$30,NA(),IF(A104>$A$8,"",OFFSET(InputPriceData!$F$15,CalculationsAndCharts!$A104+$A$11,IF($C$5,8,0),1,1))) -> 1092.94 | H104: 1002.509107 | I104: 1055.07726 | J104: -52.5681533 | K104: 2353.763595 | L104: 48.51560157 | M104: 1051.024708 | N104: 953.9935052 | O104: 9.678835083 | P104: 4.363115905 | AW104: 1251700000
A105: 73 | B105: =IF(A105>$B$30,NA(),IF($A105>$A$8,"",OFFSET(InputPriceData!$B$15,$A105+$A$11,0,1,1))) -> 2003-12-19 | C105: =IF(A105>$B$30,NA(),IF($A105>$A$8,"",OFFSET(InputPriceData!$G$15,CalculationsAndCharts!$A105+$A$11,IF($C$5,8,0),1,1))) -> 1657300000 | D105: =IF(A105>$B$30,NA(),IF(A105>$A$8,"",OFFSET(InputPriceData!$C$15,CalculationsAndCharts!$A105+$A$11,IF($C$5,8,0),1,1))) -> 1089.18 | E105: =IF(A105>$B$30,NA(),IF(A105>$A$8,"",OFFSET(InputPriceData!$D$15,CalculationsAndCharts!$A105+$A$11,IF($C$5,8,0),1,1))) -> 1091.06 | F105: =IF(A105>$B$30,NA(),IF(A105>$A$8,"",OFFSET(InputPriceData!$E$15,CalculationsAndCharts!$A105+$A$11,IF($C$5,8,0),1,1))) -> 1084.19 | G105: =IF(A105>$B$30,NA(),IF(A105>$A$8,"",OFFSET(InputPriceData!$F$15,CalculationsAndCharts!$A105+$A$11,IF($C$5,8,0),1,1))) -> 1088.66 | H105: 1001.600254 | I105: 1053.531842 | J105: -51.93158854 | K105: 2337.487284 | L105: 48.34756751 | M105: 1049.947821 | N105: 953.252686 | O105: 9.65406455 | P105: 4.363115905 | AX105: 1657300000
A106: 74 | B106: =IF(A106>$B$30,NA(),IF($A106>$A$8,"",OFFSET(InputPriceData!$B$15,$A106+$A$11,0,1,1))) -> 2003-12-18 | C106: =IF(A106>$B$30,NA(),IF($A106>$A$8,"",OFFSET(InputPriceData!$G$15,CalculationsAndCharts!$A106+$A$11,IF($C$5,8,0),1,1))) -> 1579900000 | D106: =IF(A106>$B$30,NA(),IF(A106>$A$8,"",OFFSET(InputPriceData!$C$15,CalculationsAndCharts!$A106+$A$11,IF($C$5,8,0),1,1))) -> 1076.48 | E106: =IF(A106>$B$30,NA(),IF(A106>$A$8,"",OFFSET(InputPriceData!$D$15,CalculationsAndCharts!$A106+$A$11,IF($C$5,8,0),1,1))) -> 1089.5 | F106: =IF(A106>$B$30,NA(),IF(A106>$A$8,"",OFFSET(InputPriceData!$E$15,CalculationsAndCharts!$A106+$A$11,IF($C$5,8,0),1,1))) -> 1076.48 | G106: =IF(A106>$B$30,NA(),IF(A106>$A$8,"",OFFSET(InputPriceData!$F$15,CalculationsAndCharts!$A106+$A$11,IF($C$5,8,0),1,1))) -> 1089.18 | H106: 1000.725281 | I106: 1052.09804 | J106: -51.3727585 | K106: 2321.8895 | L106: 48.18598862 | M106: 1048.91127 | N106: 952.5392926 | O106: 9.630213112 | P106: 4.363115905 | AW106: 1579900000
A107: 75 | B107: =IF(A107>$B$30,NA(),IF($A107>$A$8,"",OFFSET(InputPriceData!$B$15,$A107+$A$11,0,1,1))) -> 2003-12-17 | C107: =IF(A107>$B$30,NA(),IF($A107>$A$8,"",OFFSET(InputPriceData!$G$15,CalculationsAndCharts!$A107+$A$11,IF($C$5,8,0),1,1))) -> 1441700000 | D107: =IF(A107>$B$30,NA(),IF(A107>$A$8,"",OFFSET(InputPriceData!$C$15,CalculationsAndCharts!$A107+$A$11,IF($C$5,8,0),1,1))) -> 1075.13 | E107: =IF(A107>$B$30,NA(),IF(A107>$A$8,"",OFFSET(InputPriceData!$D$15,CalculationsAndCharts!$A107+$A$11,IF($C$5,8,0),1,1))) -> 1076.54 | F107: =IF(A107>$B$30,NA(),IF(A107>$A$8,"",OFFSET(InputPriceData!$E$15,CalculationsAndCharts!$A107+$A$11,IF($C$5,8,0),1,1))) -> 1071.14 | G107: =IF(A107>$B$30,NA(),IF(A107>$A$8,"",OFFSET(InputPriceData!$F$15,CalculationsAndCharts!$A107+$A$11,IF($C$5,8,0),1,1))) -> 1076.48 | H107: 999.8362891 | I107: 1050.58449 | J107: -50.74820125 | K107: 2306.69999 | L107: 48.02811666 | M107: 1047.864406 | N107: 951.8081724 | O107: 9.607196135 | P107: 4.363115905 | AW107: 1441700000
A108: 76 | B108: =IF(A108>$B$30,NA(),IF($A108>$A$8,"",OFFSET(InputPriceData!$B$15,$A108+$A$11,0,1,1))) -> 2003-12-16 | C108: =IF(A108>$B$30,NA(),IF($A108>$A$8,"",OFFSET(InputPriceData!$G$15,CalculationsAndCharts!$A108+$A$11,IF($C$5,8,0),1,1))) -> 1547900000 | D108: =IF(A108>$B$30,NA(),IF(A108>$A$8,"",OFFSET(InputPriceData!$C$15,CalculationsAndCharts!$A108+$A$11,IF($C$5,8,0),1,1))) -> 1068.04 | E108: =IF(A108>$B$30,NA(),IF(A108>$A$8,"",OFFSET(InputPriceData!$D$15,CalculationsAndCharts!$A108+$A$11,IF($C$5,8,0),1,1))) -> 1075.94 | F108: =IF(A108>$B$30,NA(),IF(A108>$A$8,"",OFFSET(InputPriceData!$E$15,CalculationsAndCharts!$A108+$A$11,IF($C$5,8,0),1,1))) -> 1068.04 | G108: =IF(A108>$B$30,NA(),IF(A108>$A$8,"",OFFSET(InputPriceData!$F$15,CalculationsAndCharts!$A108+$A$11,IF($C$5,8,0),1,1))) -> 1075.13 | H108: 999.0660005 | I108: 1049.527531 | J108: -50.46153022 | K108: 2292.240616 | L108: 47.87734972 | M108: 1046.94335 | N108: 951.1886508 | O108: 9.584421789 | P108: 4.363115905 | AW108: 1547900000
A109: 77 | B109: =IF(A109>$B$30,NA(),IF($A109>$A$8,"",OFFSET(InputPriceData!$B$15,$A109+$A$11,0,1,1))) -> 2003-12-15 | C109: =IF(A109>$B$30,NA(),IF($A109>$A$8,"",OFFSET(InputPriceData!$G$15,CalculationsAndCharts!$A109+$A$11,IF($C$5,8,0),1,1))) -> 1520800000 | D109: =IF(A109>$B$30,NA(),IF(A109>$A$8,"",OFFSET(InputPriceData!$C$15,CalculationsAndCharts!$A109+$A$11,IF($C$5,8,0),1,1))) -> 1074.14 | E109: =IF(A109>$B$30,NA(),IF(A109>$A$8,"",OFFSET(InputPriceData!$D$15,CalculationsAndCharts!$A109+$A$11,IF($C$5,8,0),1,1))) -> 1082.79 | F109: =IF(A109>$B$30,NA(),IF(A109>$A$8,"",OFFSET(InputPriceData!$E$15,CalculationsAndCharts!$A109+$A$11,IF($C$5,8,0),1,1))) -> 1068 | G109: =IF(A109>$B$30,NA(),IF(A109>$A$8,"",OFFSET(InputPriceData!$F$15,CalculationsAndCharts!$A109+$A$11,IF($C$5,8,0),1,1))) -> 1068.04 | H109: 998.3015382 | I109: 1048.482532 | J109: -50.18099378 | K109: 2277.475414 | L109: 47.72290241 | M109: 1046.024441 | N109: 950.5786358 | O109: 9.560819167 | P109: 4.363115905 | AX109: 1520800000
A110: 78 | B110: =IF(A110>$B$30,NA(),IF($A110>$A$8,"",OFFSET(InputPriceData!$B$15,$A110+$A$11,0,1,1))) -> 2003-12-12 | C110: =IF(A110>$B$30,NA(),IF($A110>$A$8,"",OFFSET(InputPriceData!$G$15,CalculationsAndCharts!$A110+$A$11,IF($C$5,8,0),1,1))) -> 1223100000 | D110: =IF(A110>$B$30,NA(),IF(A110>$A$8,"",OFFSET(InputPriceData!$C$15,CalculationsAndCharts!$A110+$A$11,IF($C$5,8,0),1,1))) -> 1071.21 | E110: =IF(A110>$B$30,NA(),IF(A110>$A$8,"",OFFSET(InputPriceData!$D$15,CalculationsAndCharts!$A110+$A$11,IF($C$5,8,0),1,1))) -> 1074.76 | F110: =IF(A110>$B$30,NA(),IF(A110>$A$8,"",OFFSET(InputPriceData!$E$15,CalculationsAndCharts!$A110+$A$11,IF($C$5,8,0),1,1))) -> 1067.64 | G110: =IF(A110>$B$30,NA(),IF(A110>$A$8,"",OFFSET(InputPriceData!$F$15,CalculationsAndCharts!$A110+$A$11,IF($C$5,8,0),1,1))) -> 1074.14 | H110: 997.6006492 | I110: 1047.684268 | J110: -50.08361885 | K110: 2262.579109 | L110: 47.56657554 | M110: 1045.167225 | N110: 950.0340736 | O110: 9.536195787 | P110: 4.363115905 | AW110: 1223100000
A111: 79 | B111: =IF(A111>$B$30,NA(),IF($A111>$A$8,"",OFFSET(InputPriceData!$B$15,$A111+$A$11,0,1,1))) -> 2003-12-11 | C111: =IF(A111>$B$30,NA(),IF($A111>$A$8,"",OFFSET(InputPriceData!$G$15,CalculationsAndCharts!$A111+$A$11,IF($C$5,8,0),1,1))) -> 1441100000 | D111: =IF(A111>$B$30,NA(),IF(A111>$A$8,"",OFFSET(InputPriceData!$C$15,CalculationsAndCharts!$A111+$A$11,IF($C$5,8,0),1,1))) -> 1059.05 | E111: =IF(A111>$B$30,NA(),IF(A111>$A$8,"",OFFSET(InputPriceData!$D$15,CalculationsAndCharts!$A111+$A$11,IF($C$5,8,0),1,1))) -> 1073.63 | F111: =IF(A111>$B$30,NA(),IF(A111>$A$8,"",OFFSET(InputPriceData!$E$15,CalculationsAndCharts!$A111+$A$11,IF($C$5,8,0),1,1))) -> 1059.05 | G111: =IF(A111>$B$30,NA(),IF(A111>$A$8,"",OFFSET(InputPriceData!$F$15,CalculationsAndCharts!$A111+$A$11,IF($C$5,8,0),1,1))) -> 1071.21 | H111: 996.8314094 | I111: 1046.604442 | J111: -49.77303276 | K111: 2247.356204 | L111: 47.40628865 | M111: 1044.237698 | N111: 949.4251208 | O111: 9.511395448 | P111: 4.363115905 | AW111: 1441100000
A112: 80 | B112: =IF(A112>$B$30,NA(),IF($A112>$A$8,"",OFFSET(InputPriceData!$B$15,$A112+$A$11,0,1,1))) -> 2003-12-10 | C112: =IF(A112>$B$30,NA(),IF($A112>$A$8,"",OFFSET(InputPriceData!$G$15,CalculationsAndCharts!$A112+$A$11,IF($C$5,8,0),1,1))) -> 1444000000 | D112: =IF(A112>$B$30,NA(),IF(A112>$A$8,"",OFFSET(InputPriceData!$C$15,CalculationsAndCharts!$A112+$A$11,IF($C$5,8,0),1,1))) -> 1060.18 | E112: =IF(A112>$B$30,NA(),IF(A112>$A$8,"",OFFSET(InputPriceData!$D$15,CalculationsAndCharts!$A112+$A$11,IF($C$5,8,0),1,1))) -> 1063.02 | F112: =IF(A112>$B$30,NA(),IF(A112>$A$8,"",OFFSET(InputPriceData!$E$15,CalculationsAndCharts!$A112+$A$11,IF($C$5,8,0),1,1))) -> 1053.41 | G112: =IF(A112>$B$30,NA(),IF(A112>$A$8,"",OFFSET(InputPriceData!$F$15,CalculationsAndCharts!$A112+$A$11,IF($C$5,8,0),1,1))) -> 1059.05 | H112: 996.0838859 | I112: 1045.600134 | J112: -49.5162478 | K112: 2232.672712 | L112: 47.25116625 | M112: 1043.335052 | N112: 948.8327197 | O112: 9.487386939 | P112: 4.363115905 | AX112: 1444000000
A113: 81 | B113: =IF(A113>$B$30,NA(),IF($A113>$A$8,"",OFFSET(InputPriceData!$B$15,$A113+$A$11,0,1,1))) -> 2003-12-09 | C113: =IF(A113>$B$30,NA(),IF($A113>$A$8,"",OFFSET(InputPriceData!$G$15,CalculationsAndCharts!$A113+$A$11,IF($C$5,8,0),1,1))) -> 1465500000 | D113: =IF(A113>$B$30,NA(),IF(A113>$A$8,"",OFFSET(InputPriceData!$C$15,CalculationsAndCharts!$A113+$A$11,IF($C$5,8,0),1,1))) -> 1069.3 | E113: =IF(A113>$B$30,NA(),IF(A113>$A$8,"",OFFSET(InputPriceData!$D$15,CalculationsAndCharts!$A113+$A$11,IF($C$5,8,0),1,1))) -> 1071.94 | F113: =IF(A113>$B$30,NA(),IF(A113>$A$8,"",OFFSET(InputPriceData!$E$15,CalculationsAndCharts!$A113+$A$11,IF($C$5,8,0),1,1))) -> 1059.16 | G113: =IF(A113>$B$30,NA(),IF(A113>$A$8,"",OFFSET(InputPriceData!$F$15,CalculationsAndCharts!$A113+$A$11,IF($C$5,8,0),1,1))) -> 1060.18 | H113: 995.4510607 | I113: 1045.05116 | J113: -49.60009893 | K113: 2218.48936 | L113: 47.10084246 | M113: 1042.551903 | N113: 948.3502182 | O113: 9.463216088 | P113: 4.363115905 | AX113: 1465500000
A114: 82 | B114: =IF(A114>$B$30,NA(),IF($A114>$A$8,"",OFFSET(InputPriceData!$B$15,$A114+$A$11,0,1,1))) -> 2003-12-08 | C114: =IF(A114>$B$30,NA(),IF($A114>$A$8,"",OFFSET(InputPriceData!$G$15,CalculationsAndCharts!$A114+$A$11,IF($C$5,8,0),1,1))) -> 1218900000 | D114: =IF(A114>$B$30,NA(),IF(A114>$A$8,"",OFFSET(InputPriceData!$C$15,CalculationsAndCharts!$A114+$A$11,IF($C$5,8,0),1,1))) -> 1061.5 | E114: =IF(A114>$B$30,NA(),IF(A114>$A$8,"",OFFSET(InputPriceData!$D$15,CalculationsAndCharts!$A114+$A$11,IF($C$5,8,0),1,1))) -> 1069.59 | F114: =IF(A114>$B$30,NA(),IF(A114>$A$8,"",OFFSET(InputPriceData!$E$15,CalculationsAndCharts!$A114+$A$11,IF($C$5,8,0),1,1))) -> 1060.93 | G114: =IF(A114>$B$30,NA(),IF(A114>$A$8,"",OFFSET(InputPriceData!$F$15,CalculationsAndCharts!$A114+$A$11,IF($C$5,8,0),1,1))) -> 1069.3 | H114: 994.8005186 | I114: 1044.433656 | J114: -49.63313735 | K114: 2205.252728 | L114: 46.96011848 | M114: 1041.760637 | N114: 947.8404001 | O114: 9.441112586 | P114: 4.363115905 | AW114: 1218900000
A115: 83 | B115: =IF(A115>$B$30,NA(),IF($A115>$A$8,"",OFFSET(InputPriceData!$B$15,$A115+$A$11,0,1,1))) -> 2003-12-05 | C115: =IF(A115>$B$30,NA(),IF($A115>$A$8,"",OFFSET(InputPriceData!$G$15,CalculationsAndCharts!$A115+$A$11,IF($C$5,8,0),1,1))) -> 1265900000 | D115: =IF(A115>$B$30,NA(),IF(A115>$A$8,"",OFFSET(InputPriceData!$C$15,CalculationsAndCharts!$A115+$A$11,IF($C$5,8,0),1,1))) -> 1069.72 | E115: =IF(A115>$B$30,NA(),IF(A115>$A$8,"",OFFSET(InputPriceData!$D$15,CalculationsAndCharts!$A115+$A$11,IF($C$5,8,0),1,1))) -> 1069.72 | F115: =IF(A115>$B$30,NA(),IF(A115>$A$8,"",OFFSET(InputPriceData!$E$15,CalculationsAndCharts!$A115+$A$11,IF($C$5,8,0),1,1))) -> 1060.09 | G115: =IF(A115>$B$30,NA(),IF(A115>$A$8,"",OFFSET(InputPriceData!$F$15,CalculationsAndCharts!$A115+$A$11,IF($C$5,8,0),1,1))) -> 1061.5 | H115: 994.05178 | I115: 1043.418703 | J115: -49.36692303 | K115: 2192.548976 | L115: 46.82466205 | M115: 1040.876442 | N115: 947.227118 | O115: 9.420970414 | P115: 4.363115905 | AX115: 1265900000
A116: 84 | B116: =IF(A116>$B$30,NA(),IF($A116>$A$8,"",OFFSET(InputPriceData!$B$15,$A116+$A$11,0,1,1))) -> 2003-12-04 | C116: =IF(A116>$B$30,NA(),IF($A116>$A$8,"",OFFSET(InputPriceData!$G$15,CalculationsAndCharts!$A116+$A$11,IF($C$5,8,0),1,1))) -> 1463100000 | D116: =IF(A116>$B$30,NA(),IF(A116>$A$8,"",OFFSET(InputPriceData!$C$15,CalculationsAndCharts!$A116+$A$11,IF($C$5,8,0),1,1))) -> 1064.73 | E116: =IF(A116>$B$30,NA(),IF(A116>$A$8,"",OFFSET(InputPriceData!$D$15,CalculationsAndCharts!$A116+$A$11,IF($C$5,8,0),1,1))) -> 1070.37 | F116: =IF(A116>$B$30,NA(),IF(A116>$A$8,"",OFFSET(InputPriceData!$E$15,CalculationsAndCharts!$A116+$A$11,IF($C$5,8,0),1,1))) -> 1063.15 | G116: =IF(A116>$B$30,NA(),IF(A116>$A$8,"",OFFSET(InputPriceData!$F$15,CalculationsAndCharts!$A116+$A$11,IF($C$5,8,0),1,1))) -> 1069.72 | H116: 993.3739085 | I116: 1042.680691 | J116: -49.30678247 | K116: 2181.494536 | L116: 46.7064721 | M116: 1040.080381 | N116: 946.6674364 | O116: 9.403603558 | P116: 4.363115905 | AW116: 1463100000
A117: 85 | B117: =IF(A117>$B$30,NA(),IF($A117>$A$8,"",OFFSET(InputPriceData!$B$15,$A117+$A$11,0,1,1))) -> 2003-12-03 | C117: =IF(A117>$B$30,NA(),IF($A117>$A$8,"",OFFSET(InputPriceData!$G$15,CalculationsAndCharts!$A117+$A$11,IF($C$5,8,0),1,1))) -> 1441700000 | D117: =IF(A117>$B$30,NA(),IF(A117>$A$8,"",OFFSET(InputPriceData!$C$15,CalculationsAndCharts!$A117+$A$11,IF($C$5,8,0),1,1))) -> 1066.62 | E117: =IF(A117>$B$30,NA(),IF(A117>$A$8,"",OFFSET(InputPriceData!$D$15,CalculationsAndCharts!$A117+$A$11,IF($C$5,8,0),1,1))) -> 1074.3 | F117: =IF(A117>$B$30,NA(),IF(A117>$A$8,"",OFFSET(InputPriceData!$E$15,CalculationsAndCharts!$A117+$A$11,IF($C$5,8,0),1,1))) -> 1064.63 | G117: =IF(A117>$B$30,NA(),IF(A117>$A$8,"",OFFSET(InputPriceData!$F$15,CalculationsAndCharts!$A117+$A$11,IF($C$5,8,0),1,1))) -> 1064.73 | H117: 992.6066111 | I117: 1041.577046 | J117: -48.9704346 | K117: 2171.377966 | L117: 46.59804681 | M117: 1039.204658 | N117: 946.0085643 | O117: 9.389026083 | P117: 4.363115905 | AX117: 1441700000
A118: 86 | B118: =IF(A118>$B$30,NA(),IF($A118>$A$8,"",OFFSET(InputPriceData!$B$15,$A118+$A$11,0,1,1))) -> 2003-12-02 | C118: =IF(A118>$B$30,NA(),IF($A118>$A$8,"",OFFSET(InputPriceData!$G$15,CalculationsAndCharts!$A118+$A$11,IF($C$5,8,0),1,1))) -> 1383200000 | D118: =IF(A118>$B$30,NA(),IF(A118>$A$8,"",OFFSET(InputPriceData!$C$15,CalculationsAndCharts!$A118+$A$11,IF($C$5,8,0),1,1))) -> 1070.12 | E118: =IF(A118>$B$30,NA(),IF(A118>$A$8,"",OFFSET(InputPriceData!$D$15,CalculationsAndCharts!$A118+$A$11,IF($C$5,8,0),1,1))) -> 1071.22 | F118: =IF(A118>$B$30,NA(),IF(A118>$A$8,"",OFFSET(InputPriceData!$E$15,CalculationsAndCharts!$A118+$A$11,IF($C$5,8,0),1,1))) -> 1065.22 | G118: =IF(A118>$B$30,NA(),IF(A118>$A$8,"",OFFSET(InputPriceData!$F$15,CalculationsAndCharts!$A118+$A$11,IF($C$5,8,0),1,1))) -> 1066.62 | H118: 991.8817529 | I118: 1040.632027 | J118: -48.75027424 | K118: 2162.428449 | L118: 46.50191877 | M118: 1038.383672 | N118: 945.3798341 | O118: 9.376504534 | P118: 4.363115905 | AX118: 1383200000
A119: 87 | B119: =IF(A119>$B$30,NA(),IF($A119>$A$8,"",OFFSET(InputPriceData!$B$15,$A119+$A$11,0,1,1))) -> 2003-12-01 | C119: =IF(A119>$B$30,NA(),IF($A119>$A$8,"",OFFSET(InputPriceData!$G$15,CalculationsAndCharts!$A119+$A$11,IF($C$5,8,0),1,1))) -> 1375000000 | D119: =IF(A119>$B$30,NA(),IF(A119>$A$8,"",OFFSET(InputPriceData!$C$15,CalculationsAndCharts!$A119+$A$11,IF($C$5,8,0),1,1))) -> 1058.2 | E119: =IF(A119>$B$30,NA(),IF(A119>$A$8,"",OFFSET(InputPriceData!$D$15,CalculationsAndCharts!$A119+$A$11,IF($C$5,8,0),1,1))) -> 1070.47 | F119: =IF(A119>$B$30,NA(),IF(A119>$A$8,"",OFFSET(InputPriceData!$E$15,CalculationsAndCharts!$A119+$A$11,IF($C$5,8,0),1,1))) -> 1058.2 | G119: =IF(A119>$B$30,NA(),IF(A119>$A$8,"",OFFSET(InputPriceData!$F$15,CalculationsAndCharts!$A119+$A$11,IF($C$5,8,0),1,1))) -> 1070.12 | H119: 991.1306147 | I119: 1039.571294 | J119: -48.44067882 | K119: 2153.344863 | L119: 46.40414704 | M119: 1037.534762 | N119: 944.7264677 | O119: 9.36388128 | P119: 4.363115905 | AW119: 1375000000
A120: 88 | B120: =IF(A120>$B$30,NA(),IF($A120>$A$8,"",OFFSET(InputPriceData!$B$15,$A120+$A$11,0,1,1))) -> 2003-11-28 | C120: =IF(A120>$B$30,NA(),IF($A120>$A$8,"",OFFSET(InputPriceData!$G$15,CalculationsAndCharts!$A120+$A$11,IF($C$5,8,0),1,1))) -> 487220000 | D120: =IF(A120>$B$30,NA(),IF(A120>$A$8,"",OFFSET(InputPriceData!$C$15,CalculationsAndCharts!$A120+$A$11,IF($C$5,8,0),1,1))) -> 1058.45 | E120: =IF(A120>$B$30,NA(),IF(A120>$A$8,"",OFFSET(InputPriceData!$D$15,CalculationsAndCharts!$A120+$A$11,IF($C$5,8,0),1,1))) -> 1060.63 | F120: =IF(A120>$B$30,NA(),IF(A120>$A$8,"",OFFSET(InputPriceData!$E$15,CalculationsAndCharts!$A120+$A$11,IF($C$5,8,0),1,1))) -> 1056.77 | G120: =IF(A120>$B$30,NA(),IF(A120>$A$8,"",OFFSET(InputPriceData!$F$15,CalculationsAndCharts!$A120+$A$11,IF($C$5,8,0),1,1))) -> 1058.2 | H120: 990.3367516 | I120: 1038.324408 | J120: -47.98765601 | K120: 2144.576017 | L120: 46.30956723 | M120: 1036.646319 | N120: 944.0271843 | O120: 9.352286918 | P120: 4.363115905 | AX120: 487220000
A121: 89 | B121: =IF(A121>$B$30,NA(),IF($A121>$A$8,"",OFFSET(InputPriceData!$B$15,$A121+$A$11,0,1,1))) -> 2003-11-26 | C121: =IF(A121>$B$30,NA(),IF($A121>$A$8,"",OFFSET(InputPriceData!$G$15,CalculationsAndCharts!$A121+$A$11,IF($C$5,8,0),1,1))) -> 1097700000 | D121: =IF(A121>$B$30,NA(),IF(A121>$A$8,"",OFFSET(InputPriceData!$C$15,CalculationsAndCharts!$A121+$A$11,IF($C$5,8,0),1,1))) -> 1053.89 | E121: =IF(A121>$B$30,NA(),IF(A121>$A$8,"",OFFSET(InputPriceData!$D$15,CalculationsAndCharts!$A121+$A$11,IF($C$5,8,0),1,1))) -> 1058.45 | F121: =IF(A121>$B$30,NA(),IF(A121>$A$8,"",OFFSET(InputPriceData!$E$15,CalculationsAndCharts!$A121+$A$11,IF($C$5,8,0),1,1))) -> 1048.28 | G121: =IF(A121>$B$30,NA(),IF(A121>$A$8,"",OFFSET(InputPriceData!$F$15,CalculationsAndCharts!$A121+$A$11,IF($C$5,8,0),1,1))) -> 1058.45 | H121: 989.6547089 | I121: 1037.513159 | J121: -47.85845004 | K121: 2135.631025 | L121: 46.21288809 | M121: 1035.867597 | N121: 943.4418208 | O121: 9.339194302 | P121: 4.363115905 | AW121: 1097700000
A122: 90 | B122: =IF(A122>$B$30,NA(),IF($A122>$A$8,"",OFFSET(InputPriceData!$B$15,$A122+$A$11,0,1,1))) -> 2003-11-25 | C122: =IF(A122>$B$30,NA(),IF($A122>$A$8,"",OFFSET(InputPriceData!$G$15,CalculationsAndCharts!$A122+$A$11,IF($C$5,8,0),1,1))) -> 1333700000 | D122: =IF(A122>$B$30,NA(),IF(A122>$A$8,"",OFFSET(InputPriceData!$C$15,CalculationsAndCharts!$A122+$A$11,IF($C$5,8,0),1,1))) -> 1052.08 | E122: =IF(A122>$B$30,NA(),IF(A122>$A$8,"",OFFSET(InputPriceData!$D$15,CalculationsAndCharts!$A122+$A$11,IF($C$5,8,0),1,1))) -> 1058.05 | F122: =IF(A122>$B$30,NA(),IF(A122>$A$8,"",OFFSET(InputPriceData!$E$15,CalculationsAndCharts!$A122+$A$11,IF($C$5,8,0),1,1))) -> 1049.31 | G122: =IF(A122>$B$30,NA(),IF(A122>$A$8,"",OFFSET(InputPriceData!$F$15,CalculationsAndCharts!$A122+$A$11,IF($C$5,8,0),1,1))) -> 1053.89 | H122: 988.9632989 | I122: 1036.658594 | J122: -47.69529506 | K122: 2125.64481 | L122: 46.10471571 | M122: 1035.068015 | N122: 942.8585832 | O122: 9.323847661 | P122: 4.363115905 | AW122: 1333700000
A123: 91 | B123: =IF(A123>$B$30,NA(),IF($A123>$A$8,"",OFFSET(InputPriceData!$B$15,$A123+$A$11,0,1,1))) -> 2003-11-24 | C123: =IF(A123>$B$30,NA(),IF($A123>$A$8,"",OFFSET(InputPriceData!$G$15,CalculationsAndCharts!$A123+$A$11,IF($C$5,8,0),1,1))) -> 1302800000 | D123: =IF(A123>$B$30,NA(),IF(A123>$A$8,"",OFFSET(InputPriceData!$C$15,CalculationsAndCharts!$A123+$A$11,IF($C$5,8,0),1,1))) -> 1035.28 | E123: =IF(A123>$B$30,NA(),IF(A123>$A$8,"",OFFSET(InputPriceData!$D$15,CalculationsAndCharts!$A123+$A$11,IF($C$5,8,0),1,1))) -> 1052.08 | F123: =IF(A123>$B$30,NA(),IF(A123>$A$8,"",OFFSET(InputPriceData!$E$15,CalculationsAndCharts!$A123+$A$11,IF($C$5,8,0),1,1))) -> 1035.28 | G123: =IF(A123>$B$30,NA(),IF(A123>$A$8,"",OFFSET(InputPriceData!$F$15,CalculationsAndCharts!$A123+$A$11,IF($C$5,8,0),1,1))) -> 1052.08 | H123: 988.3107693 | I123: 1035.955271 | J123: -47.64450202 | K123: 2115.309909 | L123: 45.9924984 | M123: 1034.303268 | N123: 942.3182709 | O123: 9.307294797 | P123: 4.363115905 | AW123: 1302800000
A124: 92 | B124: =IF(A124>$B$30,NA(),IF($A124>$A$8,"",OFFSET(InputPriceData!$B$15,$A124+$A$11,0,1,1))) -> 2003-11-21 | C124: =IF(A124>$B$30,NA(),IF($A124>$A$8,"",OFFSET(InputPriceData!$G$15,CalculationsAndCharts!$A124+$A$11,IF($C$5,8,0),1,1))) -> 1273800000 | D124: =IF(A124>$B$30,NA(),IF(A124>$A$8,"",OFFSET(InputPriceData!$C$15,CalculationsAndCharts!$A124+$A$11,IF($C$5,8,0),1,1))) -> 1033.65 | E124: =IF(A124>$B$30,NA(),IF(A124>$A$8,"",OFFSET(InputPriceData!$D$15,CalculationsAndCharts!$A124+$A$11,IF($C$5,8,0),1,1))) -> 1037.57 | F124: =IF(A124>$B$30,NA(),IF(A124>$A$8,"",OFFSET(InputPriceData!$E$15,CalculationsAndCharts!$A124+$A$11,IF($C$5,8,0),1,1))) -> 1031.2 | G124: =IF(A124>$B$30,NA(),IF(A124>$A$8,"",OFFSET(InputPriceData!$F$15,CalculationsAndCharts!$A124+$A$11,IF($C$5,8,0),1,1))) -> 1035.28 | H124: 987.6698725 | I124: 1035.297119 | J124: -47.62724662 | K124: 2104.184694 | L124: 45.87139298 | M124: 1033.541265 | N124: 941.7984795 | O124: 9.288810817 | P124: 4.363115905 | AW124: 1273800000
A125: 93 | B125: =IF(A125>$B$30,NA(),IF($A125>$A$8,"",OFFSET(InputPriceData!$B$15,$A125+$A$11,0,1,1))) -> 2003-11-20 | C125: =IF(A125>$B$30,NA(),IF($A125>$A$8,"",OFFSET(InputPriceData!$G$15,CalculationsAndCharts!$A125+$A$11,IF($C$5,8,0),1,1))) -> 1326700000 | D125: =IF(A125>$B$30,NA(),IF(A125>$A$8,"",OFFSET(InputPriceData!$C$15,CalculationsAndCharts!$A125+$A$11,IF($C$5,8,0),1,1))) -> 1042.44 | E125: =IF(A125>$B$30,NA(),IF(A125>$A$8,"",OFFSET(InputPriceData!$D$15,CalculationsAndCharts!$A125+$A$11,IF($C$5,8,0),1,1))) -> 1046.48 | F125: =IF(A125>$B$30,NA(),IF(A125>$A$8,"",OFFSET(InputPriceData!$E$15,CalculationsAndCharts!$A125+$A$11,IF($C$5,8,0),1,1))) -> 1033.42 | G125: =IF(A125>$B$30,NA(),IF(A125>$A$8,"",OFFSET(InputPriceData!$F$15,CalculationsAndCharts!$A125+$A$11,IF($C$5,8,0),1,1))) -> 1033.65 | H125: 987.1913787 | I125: 1035.297818 | J125: -48.1064391 | K125: 2092.877093 | L125: 45.74797365 | M125: 1032.939352 | N125: 941.4434051 | O125: 9.268308991 | P125: 4.363115905 | AX125: 1326700000
A126: 94 | B126: =IF(A126>$B$30,NA(),IF($A126>$A$8,"",OFFSET(InputPriceData!$B$15,$A126+$A$11,0,1,1))) -> 2003-11-19 | C126: =IF(A126>$B$30,NA(),IF($A126>$A$8,"",OFFSET(InputPriceData!$G$15,CalculationsAndCharts!$A126+$A$11,IF($C$5,8,0),1,1))) -> 1326200000 | D126: =IF(A126>$B$30,NA(),IF(A126>$A$8,"",OFFSET(InputPriceData!$C$15,CalculationsAndCharts!$A126+$A$11,IF($C$5,8,0),1,1))) -> 1034.15 | E126: =IF(A126>$B$30,NA(),IF(A126>$A$8,"",OFFSET(InputPriceData!$D$15,CalculationsAndCharts!$A126+$A$11,IF($C$5,8,0),1,1))) -> 1043.95 | F126: =IF(A126>$B$30,NA(),IF(A126>$A$8,"",OFFSET(InputPriceData!$E$15,CalculationsAndCharts!$A126+$A$11,IF($C$5,8,0),1,1))) -> 1034.15 | G126: =IF(A126>$B$30,NA(),IF(A126>$A$8,"",OFFSET(InputPriceData!$F$15,CalculationsAndCharts!$A126+$A$11,IF($C$5,8,0),1,1))) -> 1042.44 | H126: 986.7244579 | I126: 1035.365076 | J126: -48.64061779 | K126: 2080.205581 | L126: 45.60927078 | M126: 1032.333729 | N126: 941.1151871 | O126: 9.24458098 | P126: 4.363115905 | AW126: 1326200000
A127: 95 | B127: =IF(A127>$B$30,NA(),IF($A127>$A$8,"",OFFSET(InputPriceData!$B$15,$A127+$A$11,0,1,1))) -> 2003-11-18 | C127: =IF(A127>$B$30,NA(),IF($A127>$A$8,"",OFFSET(InputPriceData!$G$15,CalculationsAndCharts!$A127+$A$11,IF($C$5,8,0),1,1))) -> 1354300000 | D127: =IF(A127>$B$30,NA(),IF(A127>$A$8,"",OFFSET(InputPriceData!$C$15,CalculationsAndCharts!$A127+$A$11,IF($C$5,8,0),1,1))) -> 1043.63 | E127: =IF(A127>$B$30,NA(),IF(A127>$A$8,"",OFFSET(InputPriceData!$D$15,CalculationsAndCharts!$A127+$A$11,IF($C$5,8,0),1,1))) -> 1048.77 | F127: =IF(A127>$B$30,NA(),IF(A127>$A$8,"",OFFSET(InputPriceData!$E$15,CalculationsAndCharts!$A127+$A$11,IF($C$5,8,0),1,1))) -> 1034 | G127: =IF(A127>$B$30,NA(),IF(A127>$A$8,"",OFFSET(InputPriceData!$F$15,CalculationsAndCharts!$A127+$A$11,IF($C$5,8,0),1,1))) -> 1034.15 | H127: 986.1645027 | I127: 1035.076303 | J127: -48.91180056 | K127: 2066.117722 | L127: 45.45456767 | M127: 1031.61907 | N127: 940.709935 | O127: 9.21845545 | P127: 4.363115905 | AX127: 1354300000
A128: 96 | B128: =IF(A128>$B$30,NA(),IF($A128>$A$8,"",OFFSET(InputPriceData!$B$15,$A128+$A$11,0,1,1))) -> 2003-11-17 | C128: =IF(A128>$B$30,NA(),IF($A128>$A$8,"",OFFSET(InputPriceData!$G$15,CalculationsAndCharts!$A128+$A$11,IF($C$5,8,0),1,1))) -> 1374300000 | D128: =IF(A128>$B$30,NA(),IF(A128>$A$8,"",OFFSET(InputPriceData!$C$15,CalculationsAndCharts!$A128+$A$11,IF($C$5,8,0),1,1))) -> 1050.35 | E128: =IF(A128>$B$30,NA(),IF(A128>$A$8,"",OFFSET(InputPriceData!$D$15,CalculationsAndCharts!$A128+$A$11,IF($C$5,8,0),1,1))) -> 1050.35 | F128: =IF(A128>$B$30,NA(),IF(A128>$A$8,"",OFFSET(InputPriceData!$E$15,CalculationsAndCharts!$A128+$A$11,IF($C$5,8,0),1,1))) -> 1035.28 | G128: =IF(A128>$B$30,NA(),IF(A128>$A$8,"",OFFSET(InputPriceData!$F$15,CalculationsAndCharts!$A128+$A$11,IF($C$5,8,0),1,1))) -> 1043.63 | H128: 985.6822364 | I128: 1035.114112 | J128: -49.43187516 | K128: 2051.348366 | L128: 45.29181345 | M128: 1030.97405 | N128: 940.3904229 | O128: 9.189942109 | P128: 4.363115905 | AX128: 1374300000
A129: 97 | B129: =IF(A129>$B$30,NA(),IF($A129>$A$8,"",OFFSET(InputPriceData!$B$15,$A129+$A$11,0,1,1))) -> 2003-11-14 | C129: =IF(A129>$B$30,NA(),IF($A129>$A$8,"",OFFSET(InputPriceData!$G$15,CalculationsAndCharts!$A129+$A$11,IF($C$5,8,0),1,1))) -> 1356100000 | D129: =IF(A129>$B$30,NA(),IF(A129>$A$8,"",OFFSET(InputPriceData!$C$15,CalculationsAndCharts!$A129+$A$11,IF($C$5,8,0),1,1))) -> 1058.41 | E129: =IF(A129>$B$30,NA(),IF(A129>$A$8,"",OFFSET(InputPriceData!$D$15,CalculationsAndCharts!$A129+$A$11,IF($C$5,8,0),1,1))) -> 1063.65 | F129: =IF(A129>$B$30,NA(),IF(A129>$A$8,"",OFFSET(InputPriceData!$E$15,CalculationsAndCharts!$A129+$A$11,IF($C$5,8,0),1,1))) -> 1048.11 | G129: =IF(A129>$B$30,NA(),IF(A129>$A$8,"",OFFSET(InputPriceData!$F$15,CalculationsAndCharts!$A129+$A$11,IF($C$5,8,0),1,1))) -> 1050.35 | H129: 985.0998468 | I129: 1034.766524 | J129: -49.66667747 | K129: 2034.760666 | L129: 45.10832147 | M129: 1030.208168 | N129: 939.9915253 | O129: 9.158121711 | P129: 4.363115905 | AX129: 1356100000
A130: 98 | B130: =IF(A130>$B$30,NA(),IF($A130>$A$8,"",OFFSET(InputPriceData!$B$15,$A130+$A$11,0,1,1))) -> 2003-11-13 | C130: =IF(A130>$B$30,NA(),IF($A130>$A$8,"",OFFSET(InputPriceData!$G$15,CalculationsAndCharts!$A130+$A$11,IF($C$5,8,0),1,1))) -> 1383000000 | D130: =IF(A130>$B$30,NA(),IF(A130>$A$8,"",OFFSET(InputPriceData!$C$15,CalculationsAndCharts!$A130+$A$11,IF($C$5,8,0),1,1))) -> 1058.56 | E130: =IF(A130>$B$30,NA(),IF(A130>$A$8,"",OFFSET(InputPriceData!$D$15,CalculationsAndCharts!$A130+$A$11,IF($C$5,8,0),1,1))) -> 1059.62 | F130: =IF(A130>$B$30,NA(),IF(A130>$A$8,"",OFFSET(InputPriceData!$E$15,CalculationsAndCharts!$A130+$A$11,IF($C$5,8,0),1,1))) -> 1052.96 | G130: =IF(A130>$B$30,NA(),IF(A130>$A$8,"",OFFSET(InputPriceData!$F$15,CalculationsAndCharts!$A130+$A$11,IF($C$5,8,0),1,1))) -> 1058.41 | H130: 984.4440664 | I130: 1034.130464 | J130: -49.68639767 | K130: 2016.443826 | L130: 44.90483077 | M130: 1029.348897 | N130: 939.5392356 | O130: 9.122881086 | P130: 4.363115905 | AX130: 1383000000
A131: 99 | B131: =IF(A131>$B$30,NA(),IF($A131>$A$8,"",OFFSET(InputPriceData!$B$15,$A131+$A$11,0,1,1))) -> 2003-11-12 | C131: =IF(A131>$B$30,NA(),IF($A131>$A$8,"",OFFSET(InputPriceData!$G$15,CalculationsAndCharts!$A131+$A$11,IF($C$5,8,0),1,1))) -> 1349300000 | D131: =IF(A131>$B$30,NA(),IF(A131>$A$8,"",OFFSET(InputPriceData!$C$15,CalculationsAndCharts!$A131+$A$11,IF($C$5,8,0),1,1))) -> 1046.57 | E131: =IF(A131>$B$30,NA(),IF(A131>$A$8,"",OFFSET(InputPriceData!$D$15,CalculationsAndCharts!$A131+$A$11,IF($C$5,8,0),1,1))) -> 1059.1 | F131: =IF(A131>$B$30,NA(),IF(A131>$A$8,"",OFFSET(InputPriceData!$E$15,CalculationsAndCharts!$A131+$A$11,IF($C$5,8,0),1,1))) -> 1046.57 | G131: =IF(A131>$B$30,NA(),IF(A131>$A$8,"",OFFSET(InputPriceData!$F$15,CalculationsAndCharts!$A131+$A$11,IF($C$5,8,0),1,1))) -> 1058.53 | H131: 983.7006902 | I131: 1033.139463 | J131: -49.43877242 | K131: 1997.249554 | L131: 44.69059805 | M131: 1028.391288 | N131: 939.0100921 | O131: 9.086218704 | P131: 4.363115905 | AW131: 1349300000
A132: 100 | B132: =IF(A132>$B$30,NA(),IF($A132>$A$8,"",OFFSET(InputPriceData!$B$15,$A132+$A$11,0,1,1))) -> 2003-11-11 | C132: =IF(A132>$B$30,NA(),IF($A132>$A$8,"",OFFSET(InputPriceData!$G$15,CalculationsAndCharts!$A132+$A$11,IF($C$5,8,0),1,1))) -> 1162500000 | D132: =IF(A132>$B$30,NA(),IF(A132>$A$8,"",OFFSET(InputPriceData!$C$15,CalculationsAndCharts!$A132+$A$11,IF($C$5,8,0),1,1))) -> 1047.11 | E132: =IF(A132>$B$30,NA(),IF(A132>$A$8,"",OFFSET(InputPriceData!$D$15,CalculationsAndCharts!$A132+$A$11,IF($C$5,8,0),1,1))) -> 1048.23 | F132: =IF(A132>$B$30,NA(),IF(A132>$A$8,"",OFFSET(InputPriceData!$E$15,CalculationsAndCharts!$A132+$A$11,IF($C$5,8,0),1,1))) -> 1043.46 | G132: =IF(A132>$B$30,NA(),IF(A132>$A$8,"",OFFSET(InputPriceData!$F$15,CalculationsAndCharts!$A132+$A$11,IF($C$5,8,0),1,1))) -> 1046.57 | H132: 982.9486368 | I132: 1032.103114 | J132: -49.15447732 | K132: 1977.343901 | L132: 44.46733521 | M132: 1027.415972 | N132: 938.4813016 | O132: 9.047743402 | P132: 4.363115905 | AX132: 1162500000
A133: 101 | B133: =IF(A133>$B$30,NA(),IF($A133>$A$8,"",OFFSET(InputPriceData!$B$15,$A133+$A$11,0,1,1))) -> 2003-11-10 | C133: =IF(A133>$B$30,NA(),IF($A133>$A$8,"",OFFSET(InputPriceData!$G$15,CalculationsAndCharts!$A133+$A$11,IF($C$5,8,0),1,1))) -> 1243600000 | D133: =IF(A133>$B$30,NA(),IF(A133>$A$8,"",OFFSET(InputPriceData!$C$15,CalculationsAndCharts!$A133+$A$11,IF($C$5,8,0),1,1))) -> 1053.21 | E133: =IF(A133>$B$30,NA(),IF(A133>$A$8,"",OFFSET(InputPriceData!$D$15,CalculationsAndCharts!$A133+$A$11,IF($C$5,8,0),1,1))) -> 1053.65 | F133: =IF(A133>$B$30,NA(),IF(A133>$A$8,"",OFFSET(InputPriceData!$E$15,CalculationsAndCharts!$A133+$A$11,IF($C$5,8,0),1,1))) -> 1045.58 | G133: =IF(A133>$B$30,NA(),IF(A133>$A$8,"",OFFSET(InputPriceData!$F$15,CalculationsAndCharts!$A133+$A$11,IF($C$5,8,0),1,1))) -> 1047.11 | H133: 982.3092261 | I133: 1031.512629 | J133: -49.20340286 | K133: 1956.815921 | L133: 44.23591212 | M133: 1026.545138 | N133: 938.073314 | O133: 9.006514637 | P133: 4.363115905 | AX133: 1243600000
A134: 102 | B134: =IF(A134>$B$30,NA(),IF($A134>$A$8,"",OFFSET(InputPriceData!$B$15,$A134+$A$11,0,1,1))) -> 2003-11-07 | C134: =IF(A134>$B$30,NA(),IF($A134>$A$8,"",OFFSET(InputPriceData!$G$15,CalculationsAndCharts!$A134+$A$11,IF($C$5,8,0),1,1))) -> 1440500000 | D134: =IF(A134>$B$30,NA(),IF(A134>$A$8,"",OFFSET(InputPriceData!$C$15,CalculationsAndCharts!$A134+$A$11,IF($C$5,8,0),1,1))) -> 1058.05 | E134: =IF(A134>$B$30,NA(),IF(A134>$A$8,"",OFFSET(InputPriceData!$D$15,CalculationsAndCharts!$A134+$A$11,IF($C$5,8,0),1,1))) -> 1062.39 | F134: =IF(A134>$B$30,NA(),IF(A134>$A$8,"",OFFSET(InputPriceData!$E$15,CalculationsAndCharts!$A134+$A$11,IF($C$5,8,0),1,1))) -> 1052.17 | G134: =IF(A134>$B$30,NA(),IF(A134>$A$8,"",OFFSET(InputPriceData!$F$15,CalculationsAndCharts!$A134+$A$11,IF($C$5,8,0),1,1))) -> 1053.21 | H134: 981.6579621 | I134: 1030.876002 | J134: -49.21803953 | K134: 1935.144681 | L134: 43.99027939 | M134: 1025.648241 | N134: 937.6676827 | O134: 8.962445392 | P134: 4.363115905 | AX134: 1440500000
A135: 103 | B135: =IF(A135>$B$30,NA(),IF($A135>$A$8,"",OFFSET(InputPriceData!$B$15,$A135+$A$11,0,1,1))) -> 2003-11-06 | C135: =IF(A135>$B$30,NA(),IF($A135>$A$8,"",OFFSET(InputPriceData!$G$15,CalculationsAndCharts!$A135+$A$11,IF($C$5,8,0),1,1))) -> 1453900000 | D135: =IF(A135>$B$30,NA(),IF(A135>$A$8,"",OFFSET(InputPriceData!$C$15,CalculationsAndCharts!$A135+$A$11,IF($C$5,8,0),1,1))) -> 1051.81 | E135: =IF(A135>$B$30,NA(),IF(A135>$A$8,"",OFFSET(InputPriceData!$D$15,CalculationsAndCharts!$A135+$A$11,IF($C$5,8,0),1,1))) -> 1058.94 | F135: =IF(A135>$B$30,NA(),IF(A135>$A$8,"",OFFSET(InputPriceData!$E$15,CalculationsAndCharts!$A135+$A$11,IF($C$5,8,0),1,1))) -> 1046.93 | G135: =IF(A135>$B$30,NA(),IF(A135>$A$8,"",OFFSET(InputPriceData!$F$15,CalculationsAndCharts!$A135+$A$11,IF($C$5,8,0),1,1))) -> 1058.05 | H135: 980.9388461 | I135: 1029.96441 | J135: -49.02556372 | K135: 1912.963903 | L135: 43.7374428 | M135: 1024.676289 | N135: 937.2014033 | O135: 8.917465748 | P135: 4.363115905 | AW135: 1453900000
A136: 104 | B136: =IF(A136>$B$30,NA(),IF($A136>$A$8,"",OFFSET(InputPriceData!$B$15,$A136+$A$11,0,1,1))) -> 2003-11-05 | C136: =IF(A136>$B$30,NA(),IF($A136>$A$8,"",OFFSET(InputPriceData!$G$15,CalculationsAndCharts!$A136+$A$11,IF($C$5,8,0),1,1))) -> 1401800000 | D136: =IF(A136>$B$30,NA(),IF(A136>$A$8,"",OFFSET(InputPriceData!$C$15,CalculationsAndCharts!$A136+$A$11,IF($C$5,8,0),1,1))) -> 1053.25 | E136: =IF(A136>$B$30,NA(),IF(A136>$A$8,"",OFFSET(InputPriceData!$D$15,CalculationsAndCharts!$A136+$A$11,IF($C$5,8,0),1,1))) -> 1054.54 | F136: =IF(A136>$B$30,NA(),IF(A136>$A$8,"",OFFSET(InputPriceData!$E$15,CalculationsAndCharts!$A136+$A$11,IF($C$5,8,0),1,1))) -> 1044.88 | G136: =IF(A136>$B$30,NA(),IF(A136>$A$8,"",OFFSET(InputPriceData!$F$15,CalculationsAndCharts!$A136+$A$11,IF($C$5,8,0),1,1))) -> 1051.81 | H136: 980.1638596 | I136: 1028.818059 | J136: -48.65419957 | K136: 1890.86808 | L136: 43.48411296 | M136: 1023.647973 | N136: 936.6797467 | O136: 8.872825197 | P136: 4.363115905 | AX136: 1401800000
A137: 105 | B137: =IF(A137>$B$30,NA(),IF($A137>$A$8,"",OFFSET(InputPriceData!$B$15,$A137+$A$11,0,1,1))) -> 2003-11-04 | C137: =IF(A137>$B$30,NA(),IF($A137>$A$8,"",OFFSET(InputPriceData!$G$15,CalculationsAndCharts!$A137+$A$11,IF($C$5,8,0),1,1))) -> 1417600000 | D137: =IF(A137>$B$30,NA(),IF(A137>$A$8,"",OFFSET(InputPriceData!$C$15,CalculationsAndCharts!$A137+$A$11,IF($C$5,8,0),1,1))) -> 1059.02 | E137: =IF(A137>$B$30,NA(),IF(A137>$A$8,"",OFFSET(InputPriceData!$D$15,CalculationsAndCharts!$A137+$A$11,IF($C$5,8,0),1,1))) -> 1059.02 | F137: =IF(A137>$B$30,NA(),IF(A137>$A$8,"",OFFSET(InputPriceData!$E$15,CalculationsAndCharts!$A137+$A$11,IF($C$5,8,0),1,1))) -> 1051.7 | G137: =IF(A137>$B$30,NA(),IF(A137>$A$8,"",OFFSET(InputPriceData!$F$15,CalculationsAndCharts!$A137+$A$11,IF($C$5,8,0),1,1))) -> 1053.25 | H137: 979.4437979 | I137: 1027.879613 | J137: -48.43581472 | K137: 1869.437385 | L137: 43.23699093 | M137: 1022.680789 | N137: 936.206807 | O137: 8.828886562 | P137: 4.363115905 | AX137: 1417600000
A138: 106 | B138: =IF(A138>$B$30,NA(),IF($A138>$A$8,"",OFFSET(InputPriceData!$B$15,$A138+$A$11,0,1,1))) -> 2003-11-03 | C138: =IF(A138>$B$30,NA(),IF($A138>$A$8,"",OFFSET(InputPriceData!$G$15,CalculationsAndCharts!$A138+$A$11,IF($C$5,8,0),1,1))) -> 1378200000 | D138: =IF(A138>$B$30,NA(),IF(A138>$A$8,"",OFFSET(InputPriceData!$C$15,CalculationsAndCharts!$A138+$A$11,IF($C$5,8,0),1,1))) -> 1050.71 | E138: =IF(A138>$B$30,NA(),IF(A138>$A$8,"",OFFSET(InputPriceData!$D$15,CalculationsAndCharts!$A138+$A$11,IF($C$5,8,0),1,1))) -> 1061.44 | F138: =IF(A138>$B$30,NA(),IF(A138>$A$8,"",OFFSET(InputPriceData!$E$15,CalculationsAndCharts!$A138+$A$11,IF($C$5,8,0),1,1))) -> 1050.71 | G138: =IF(A138>$B$30,NA(),IF(A138>$A$8,"",OFFSET(InputPriceData!$F$15,CalculationsAndCharts!$A138+$A$11,IF($C$5,8,0),1,1))) -> 1059.02 | H138: 978.702027 | I138: 1026.844087 | J138: -48.14205958 | K138: 1848.348786 | L138: 42.99242708 | M138: 1021.694454 | N138: 935.7096 | O138: 8.785600906 | P138: 4.363115905 | AW138: 1378200000
A139: 107 | B139: =IF(A139>$B$30,NA(),IF($A139>$A$8,"",OFFSET(InputPriceData!$B$15,$A139+$A$11,0,1,1))) -> 2003-10-31 | C139: =IF(A139>$B$30,NA(),IF($A139>$A$8,"",OFFSET(InputPriceData!$G$15,CalculationsAndCharts!$A139+$A$11,IF($C$5,8,0),1,1))) -> 1498900000 | D139: =IF(A139>$B$30,NA(),IF(A139>$A$8,"",OFFSET(InputPriceData!$C$15,CalculationsAndCharts!$A139+$A$11,IF($C$5,8,0),1,1))) -> 1046.94 | E139: =IF(A139>$B$30,NA(),IF(A139>$A$8,"",OFFSET(InputPriceData!$D$15,CalculationsAndCharts!$A139+$A$11,IF($C$5,8,0),1,1))) -> 1053.09 | F139: =IF(A139>$B$30,NA(),IF(A139>$A$8,"",OFFSET(InputPriceData!$E$15,CalculationsAndCharts!$A139+$A$11,IF($C$5,8,0),1,1))) -> 1046.94 | G139: =IF(A139>$B$30,NA(),IF(A139>$A$8,"",OFFSET(InputPriceData!$F$15,CalculationsAndCharts!$A139+$A$11,IF($C$5,8,0),1,1))) -> 1050.71 | H139: 977.8948112 | I139: 1025.530784 | J139: -47.6359728 | K139: 1827.853876 | L139: 42.75340777 | M139: 1020.648219 | N139: 935.1414035 | O139: 8.743968631 | P139: 4.363115905 | AW139: 1498900000
A140: 108 | B140: =IF(A140>$B$30,NA(),IF($A140>$A$8,"",OFFSET(InputPriceData!$B$15,$A140+$A$11,0,1,1))) -> 2003-10-30 | C140: =IF(A140>$B$30,NA(),IF($A140>$A$8,"",OFFSET(InputPriceData!$G$15,CalculationsAndCharts!$A140+$A$11,IF($C$5,8,0),1,1))) -> 1629700000 | D140: =IF(A140>$B$30,NA(),IF(A140>$A$8,"",OFFSET(InputPriceData!$C$15,CalculationsAndCharts!$A140+$A$11,IF($C$5,8,0),1,1))) -> 1048.11 | E140: =IF(A140>$B$30,NA(),IF(A140>$A$8,"",OFFSET(InputPriceData!$D$15,CalculationsAndCharts!$A140+$A$11,IF($C$5,8,0),1,1))) -> 1052.81 | F140: =IF(A140>$B$30,NA(),IF(A140>$A$8,"",OFFSET(InputPriceData!$E$15,CalculationsAndCharts!$A140+$A$11,IF($C$5,8,0),1,1))) -> 1043.82 | G140: =IF(A140>$B$30,NA(),IF(A140>$A$8,"",OFFSET(InputPriceData!$F$15,CalculationsAndCharts!$A140+$A$11,IF($C$5,8,0),1,1))) -> 1046.94 | H140: 977.1630003 | I140: 1024.503061 | J140: -47.34006065 | K140: 1808.363604 | L140: 42.52485866 | M140: 1019.687859 | N140: 934.6381416 | O140: 8.703739017 | P140: 4.363115905 | AX140: 1629700000
A141: 109 | B141: =IF(A141>$B$30,NA(),IF($A141>$A$8,"",OFFSET(InputPriceData!$B$15,$A141+$A$11,0,1,1))) -> 2003-10-29 | C141: =IF(A141>$B$30,NA(),IF($A141>$A$8,"",OFFSET(InputPriceData!$G$15,CalculationsAndCharts!$A141+$A$11,IF($C$5,8,0),1,1))) -> 1562600000 | D141: =IF(A141>$B$30,NA(),IF(A141>$A$8,"",OFFSET(InputPriceData!$C$15,CalculationsAndCharts!$A141+$A$11,IF($C$5,8,0),1,1))) -> 1046.79 | E141: =IF(A141>$B$30,NA(),IF(A141>$A$8,"",OFFSET(InputPriceData!$D$15,CalculationsAndCharts!$A141+$A$11,IF($C$5,8,0),1,1))) -> 1049.83 | F141: =IF(A141>$B$30,NA(),IF(A141>$A$8,"",OFFSET(InputPriceData!$E$15,CalculationsAndCharts!$A141+$A$11,IF($C$5,8,0),1,1))) -> 1043.35 | G141: =IF(A141>$B$30,NA(),IF(A141>$A$8,"",OFFSET(InputPriceData!$F$15,CalculationsAndCharts!$A141+$A$11,IF($C$5,8,0),1,1))) -> 1048.11 | H141: 976.4617239 | I141: 1023.587268 | J141: -47.12554359 | K141: 1789.00093 | L141: 42.29658296 | M141: 1018.758307 | N141: 934.165141 | O141: 8.66323419 | P141: 4.363115905 | AW141: 1562600000
A142: 110 | B142: =IF(A142>$B$30,NA(),IF($A142>$A$8,"",OFFSET(InputPriceData!$B$15,$A142+$A$11,0,1,1))) -> 2003-10-28 | C142: =IF(A142>$B$30,NA(),IF($A142>$A$8,"",OFFSET(InputPriceData!$G$15,CalculationsAndCharts!$A142+$A$11,IF($C$5,8,0),1,1))) -> 1629200000 | D142: =IF(A142>$B$30,NA(),IF(A142>$A$8,"",OFFSET(InputPriceData!$C$15,CalculationsAndCharts!$A142+$A$11,IF($C$5,8,0),1,1))) -> 1031.13 | E142: =IF(A142>$B$30,NA(),IF(A142>$A$8,"",OFFSET(InputPriceData!$D$15,CalculationsAndCharts!$A142+$A$11,IF($C$5,8,0),1,1))) -> 1046.79 | F142: =IF(A142>$B$30,NA(),IF(A142>$A$8,"",OFFSET(InputPriceData!$E$15,CalculationsAndCharts!$A142+$A$11,IF($C$5,8,0),1,1))) -> 1031.13 | G142: =IF(A142>$B$30,NA(),IF(A142>$A$8,"",OFFSET(InputPriceData!$F$15,CalculationsAndCharts!$A142+$A$11,IF($C$5,8,0),1,1))) -> 1046.79 | H142: 975.7416407 | I142: 1022.58634 | J142: -46.84469891 | K142: 1769.699394 | L142: 42.06779521 | M142: 1017.809436 | N142: 933.6738455 | O142: 8.622732383 | P142: 4.363115905 | AW142: 1629200000
A143: 111 | B143: =IF(A143>$B$30,NA(),IF($A143>$A$8,"",OFFSET(InputPriceData!$B$15,$A143+$A$11,0,1,1))) -> 2003-10-27 | C143: =IF(A143>$B$30,NA(),IF($A143>$A$8,"",OFFSET(InputPriceData!$G$15,CalculationsAndCharts!$A143+$A$11,IF($C$5,8,0),1,1))) -> 1371800000 | D143: =IF(A143>$B$30,NA(),IF(A143>$A$8,"",OFFSET(InputPriceData!$C$15,CalculationsAndCharts!$A143+$A$11,IF($C$5,8,0),1,1))) -> 1028.91 | E143: =IF(A143>$B$30,NA(),IF(A143>$A$8,"",OFFSET(InputPriceData!$D$15,CalculationsAndCharts!$A143+$A$11,IF($C$5,8,0),1,1))) -> 1037.75 | F143: =IF(A143>$B$30,NA(),IF(A143>$A$8,"",OFFSET(InputPriceData!$E$15,CalculationsAndCharts!$A143+$A$11,IF($C$5,8,0),1,1))) -> 1028.91 | G143: =IF(A143>$B$30,NA(),IF(A143>$A$8,"",OFFSET(InputPriceData!$F$15,CalculationsAndCharts!$A143+$A$11,IF($C$5,8,0),1,1))) -> 1031.13 | H143: 975.0275869 | I143: 1021.598435 | J143: -46.57084827 | K143: 1750.457311 | L143: 41.83846688 | M143: 1016.866054 | N143: 933.18912 | O143: 8.582006796 | P143: 4.363115905 | AW143: 1371800000
A144: 112 | B144: =IF(A144>$B$30,NA(),IF($A144>$A$8,"",OFFSET(InputPriceData!$B$15,$A144+$A$11,0,1,1))) -> 2003-10-24 | C144: =IF(A144>$B$30,NA(),IF($A144>$A$8,"",OFFSET(InputPriceData!$G$15,CalculationsAndCharts!$A144+$A$11,IF($C$5,8,0),1,1))) -> 1420300000 | D144: =IF(A144>$B$30,NA(),IF(A144>$A$8,"",OFFSET(InputPriceData!$C$15,CalculationsAndCharts!$A144+$A$11,IF($C$5,8,0),1,1))) -> 1033.77 | E144: =IF(A144>$B$30,NA(),IF(A144>$A$8,"",OFFSET(InputPriceData!$D$15,CalculationsAndCharts!$A144+$A$11,IF($C$5,8,0),1,1))) -> 1033.77 | F144: =IF(A144>$B$30,NA(),IF(A144>$A$8,"",OFFSET(InputPriceData!$E$15,CalculationsAndCharts!$A144+$A$11,IF($C$5,8,0),1,1))) -> 1018.32 | G144: =IF(A144>$B$30,NA(),IF(A144>$A$8,"",OFFSET(InputPriceData!$F$15,CalculationsAndCharts!$A144+$A$11,IF($C$5,8,0),1,1))) -> 1028.91 | H144: 974.4637435 | I144: 1021.209392 | J144: -46.74564816 | K144: 1731.330936 | L144: 41.60926503 | M144: 1016.073009 | N144: 932.8544785 | O144: 8.539930871 | P144: 4.363115905 | AX144: 1420300000
A145: 113 | B145: =IF(A145>$B$30,NA(),IF($A145>$A$8,"",OFFSET(InputPriceData!$B$15,$A145+$A$11,0,1,1))) -> 2003-10-23 | C145: =IF(A145>$B$30,NA(),IF($A145>$A$8,"",OFFSET(InputPriceData!$G$15,CalculationsAndCharts!$A145+$A$11,IF($C$5,8,0),1,1))) -> 1604300000 | D145: =IF(A145>$B$30,NA(),IF(A145>$A$8,"",OFFSET(InputPriceData!$C$15,CalculationsAndCharts!$A145+$A$11,IF($C$5,8,0),1,1))) -> 1030.36 | E145: =IF(A145>$B$30,NA(),IF(A145>$A$8,"",OFFSET(InputPriceData!$D$15,CalculationsAndCharts!$A145+$A$11,IF($C$5,8,0),1,1))) -> 1035.44 | F145: =IF(A145>$B$30,NA(),IF(A145>$A$8,"",OFFSET(InputPriceData!$E$15,CalculationsAndCharts!$A145+$A$11,IF($C$5,8,0),1,1))) -> 1025.89 | G145: =IF(A145>$B$30,NA(),IF(A145>$A$8,"",OFFSET(InputPriceData!$F$15,CalculationsAndCharts!$A145+$A$11,IF($C$5,8,0),1,1))) -> 1033.77 | H145: 973.916545 | I145: 1020.895081 | J145: -46.97853617 | K145: 1711.832579 | L145: 41.37429854 | M145: 1015.290844 | N145: 932.5422464 | O145: 8.496477188 | P145: 4.363115905 | AW145: 1604300000
A146: 114 | B146: =IF(A146>$B$30,NA(),IF($A146>$A$8,"",OFFSET(InputPriceData!$B$15,$A146+$A$11,0,1,1))) -> 2003-10-22 | C146: =IF(A146>$B$30,NA(),IF($A146>$A$8,"",OFFSET(InputPriceData!$G$15,CalculationsAndCharts!$A146+$A$11,IF($C$5,8,0),1,1))) -> 1647200000 | D146: =IF(A146>$B$30,NA(),IF(A146>$A$8,"",OFFSET(InputPriceData!$C$15,CalculationsAndCharts!$A146+$A$11,IF($C$5,8,0),1,1))) -> 1046.03 | E146: =IF(A146>$B$30,NA(),IF(A146>$A$8,"",OFFSET(InputPriceData!$D$15,CalculationsAndCharts!$A146+$A$11,IF($C$5,8,0),1,1))) -> 1046.03 | F146: =IF(A146>$B$30,NA(),IF(A146>$A$8,"",OFFSET(InputPriceData!$E$15,CalculationsAndCharts!$A146+$A$11,IF($C$5,8,0),1,1))) -> 1028.39 | G146: =IF(A146>$B$30,NA(),IF(A146>$A$8,"",OFFSET(InputPriceData!$F$15,CalculationsAndCharts!$A146+$A$11,IF($C$5,8,0),1,1))) -> 1030.36 | H146: 973.3150027 | I146: 1020.369574 | J146: -47.05457154 | K146: 1691.836637 | L146: 41.13194181 | M146: 1014.446945 | N146: 932.1830609 | O146: 8.451928039 | P146: 4.363115905 | AX146: 1647200000
A147: 115 | B147: =IF(A147>$B$30,NA(),IF($A147>$A$8,"",OFFSET(InputPriceData!$B$15,$A147+$A$11,0,1,1))) -> 2003-10-21 | C147: =IF(A147>$B$30,NA(),IF($A147>$A$8,"",OFFSET(InputPriceData!$G$15,CalculationsAndCharts!$A147+$A$11,IF($C$5,8,0),1,1))) -> 1498000000 | D147: =IF(A147>$B$30,NA(),IF(A147>$A$8,"",OFFSET(InputPriceData!$C$15,CalculationsAndCharts!$A147+$A$11,IF($C$5,8,0),1,1))) -> 1044.68 | E147: =IF(A147>$B$30,NA(),IF(A147>$A$8,"",OFFSET(InputPriceData!$D$15,CalculationsAndCharts!$A147+$A$11,IF($C$5,8,0),1,1))) -> 1048.57 | F147: =IF(A147>$B$30,NA(),IF(A147>$A$8,"",OFFSET(InputPriceData!$E$15,CalculationsAndCharts!$A147+$A$11,IF($C$5,8,0),1,1))) -> 1042.59 | G147: =IF(A147>$B$30,NA(),IF(A147>$A$8,"",OFFSET(InputPriceData!$F$15,CalculationsAndCharts!$A147+$A$11,IF($C$5,8,0),1,1))) -> 1046.03 | H147: 972.7416861 | I147: 1019.961802 | J147: -47.22011561 | K147: 1671.891219 | L147: 40.88876642 | M147: 1013.630453 | N147: 931.8529197 | O147: 8.406911516 | P147: 4.363115905 | AW147: 1498000000
A148: 116 | B148: =IF(A148>$B$30,NA(),IF($A148>$A$8,"",OFFSET(InputPriceData!$B$15,$A148+$A$11,0,1,1))) -> 2003-10-20 | C148: =IF(A148>$B$30,NA(),IF($A148>$A$8,"",OFFSET(InputPriceData!$G$15,CalculationsAndCharts!$A148+$A$11,IF($C$5,8,0),1,1))) -> 1172600000 | D148: =IF(A148>$B$30,NA(),IF(A148>$A$8,"",OFFSET(InputPriceData!$C$15,CalculationsAndCharts!$A148+$A$11,IF($C$5,8,0),1,1))) -> 1039.32 | E148: =IF(A148>$B$30,NA(),IF(A148>$A$8,"",OFFSET(InputPriceData!$D$15,CalculationsAndCharts!$A148+$A$11,IF($C$5,8,0),1,1))) -> 1044.69 | F148: =IF(A148>$B$30,NA(),IF(A148>$A$8,"",OFFSET(InputPriceData!$E$15,CalculationsAndCharts!$A148+$A$11,IF($C$5,8,0),1,1))) -> 1036.13 | G148: =IF(A148>$B$30,NA(),IF(A148>$A$8,"",OFFSET(InputPriceData!$F$15,CalculationsAndCharts!$A148+$A$11,IF($C$5,8,0),1,1))) -> 1044.68 | H148: 972.0051202 | I148: 1018.897794 | J148: -46.89267349 | K148: 1651.546318 | L148: 40.63922142 | M148: 1012.644342 | N148: 931.3658988 | O148: 8.361935669 | P148: 4.363115905 | AW148: 1172600000
A149: 117 | B149: =IF(A149>$B$30,NA(),IF($A149>$A$8,"",OFFSET(InputPriceData!$B$15,$A149+$A$11,0,1,1))) -> 2003-10-17 | C149: =IF(A149>$B$30,NA(),IF($A149>$A$8,"",OFFSET(InputPriceData!$G$15,CalculationsAndCharts!$A149+$A$11,IF($C$5,8,0),1,1))) -> 1352000000 | D149: =IF(A149>$B$30,NA(),IF(A149>$A$8,"",OFFSET(InputPriceData!$C$15,CalculationsAndCharts!$A149+$A$11,IF($C$5,8,0),1,1))) -> 1050.07 | E149: =IF(A149>$B$30,NA(),IF(A149>$A$8,"",OFFSET(InputPriceData!$D$15,CalculationsAndCharts!$A149+$A$11,IF($C$5,8,0),1,1))) -> 1051.89 | F149: =IF(A149>$B$30,NA(),IF(A149>$A$8,"",OFFSET(InputPriceData!$E$15,CalculationsAndCharts!$A149+$A$11,IF($C$5,8,0),1,1))) -> 1036.57 | G149: =IF(A149>$B$30,NA(),IF(A149>$A$8,"",OFFSET(InputPriceData!$F$15,CalculationsAndCharts!$A149+$A$11,IF($C$5,8,0),1,1))) -> 1039.32 | H149: 971.2747194 | I149: 1017.845459 | J149: -46.57073934 | K149: 1632.125309 | L149: 40.39957066 | M149: 1011.67429 | N149: 930.8751487 | O149: 8.318876185 | P149: 4.363115905 | AX149: 1352000000
A150: 118 | B150: =IF(A150>$B$30,NA(),IF($A150>$A$8,"",OFFSET(InputPriceData!$B$15,$A150+$A$11,0,1,1))) -> 2003-10-16 | C150: =IF(A150>$B$30,NA(),IF($A150>$A$8,"",OFFSET(InputPriceData!$G$15,CalculationsAndCharts!$A150+$A$11,IF($C$5,8,0),1,1))) -> 1417700000 | D150: =IF(A150>$B$30,NA(),IF(A150>$A$8,"",OFFSET(InputPriceData!$C$15,CalculationsAndCharts!$A150+$A$11,IF($C$5,8,0),1,1))) -> 1046.76 | E150: =IF(A150>$B$30,NA(),IF(A150>$A$8,"",OFFSET(InputPriceData!$D$15,CalculationsAndCharts!$A150+$A$11,IF($C$5,8,0),1,1))) -> 1052.94 | F150: =IF(A150>$B$30,NA(),IF(A150>$A$8,"",OFFSET(InputPriceData!$E$15,CalculationsAndCharts!$A150+$A$11,IF($C$5,8,0),1,1))) -> 1044.04 | G150: =IF(A150>$B$30,NA(),IF(A150>$A$8,"",OFFSET(InputPriceData!$F$15,CalculationsAndCharts!$A150+$A$11,IF($C$5,8,0),1,1))) -> 1050.07 | H150: 970.5908472 | I150: 1016.968947 | J150: -46.37809962 | K150: 1613.741569 | L150: 40.17140238 | M150: 1010.76225 | N150: 930.4194448 | O150: 8.277721246 | P150: 4.363115905 | AW150: 1417700000
A151: 119 | B151: =IF(A151>$B$30,NA(),IF($A151>$A$8,"",OFFSET(InputPriceData!$B$15,$A151+$A$11,0,1,1))) -> 2003-10-15 | C151: =IF(A151>$B$30,NA(),IF($A151>$A$8,"",OFFSET(InputPriceData!$G$15,CalculationsAndCharts!$A151+$A$11,IF($C$5,8,0),1,1))) -> 1521100000 | D151: =IF(A151>$B$30,NA(),IF(A151>$A$8,"",OFFSET(InputPriceData!$C$15,CalculationsAndCharts!$A151+$A$11,IF($C$5,8,0),1,1))) -> 1049.48 | E151: =IF(A151>$B$30,NA(),IF(A151>$A$8,"",OFFSET(InputPriceData!$D$15,CalculationsAndCharts!$A151+$A$11,IF($C$5,8,0),1,1))) -> 1053.79 | F151: =IF(A151>$B$30,NA(),IF(A151>$A$8,"",OFFSET(InputPriceData!$E$15,CalculationsAndCharts!$A151+$A$11,IF($C$5,8,0),1,1))) -> 1043.15 | G151: =IF(A151>$B$30,NA(),IF(A151>$A$8,"",OFFSET(InputPriceData!$F$15,CalculationsAndCharts!$A151+$A$11,IF($C$5,8,0),1,1))) -> 1046.76 | H151: 969.7920618 | I151: 1015.617883 | J151: -45.82582168 | K151: 1596.30971 | L151: 39.95384475 | M151: 1009.745907 | N151: 929.838217 | O151: 8.239672466 | P151: 4.363115905 | AX151: 1521100000
A152: 120 | B152: =IF(A152>$B$30,NA(),IF($A152>$A$8,"",OFFSET(InputPriceData!$B$15,$A152+$A$11,0,1,1))) -> 2003-10-14 | C152: =IF(A152>$B$30,NA(),IF($A152>$A$8,"",OFFSET(InputPriceData!$G$15,CalculationsAndCharts!$A152+$A$11,IF($C$5,8,0),1,1))) -> 1271900000 | D152: =IF(A152>$B$30,NA(),IF(A152>$A$8,"",OFFSET(InputPriceData!$C$15,CalculationsAndCharts!$A152+$A$11,IF($C$5,8,0),1,1))) -> 1045.35 | E152: =IF(A152>$B$30,NA(),IF(A152>$A$8,"",OFFSET(InputPriceData!$D$15,CalculationsAndCharts!$A152+$A$11,IF($C$5,8,0),1,1))) -> 1049.49 | F152: =IF(A152>$B$30,NA(),IF(A152>$A$8,"",OFFSET(InputPriceData!$E$15,CalculationsAndCharts!$A152+$A$11,IF($C$5,8,0),1,1))) -> 1040.84 | G152: =IF(A152>$B$30,NA(),IF(A152>$A$8,"",OFFSET(InputPriceData!$F$15,CalculationsAndCharts!$A152+$A$11,IF($C$5,8,0),1,1))) -> 1049.48 | H152: 969.0185146 | I152: 1014.346777 | J152: -45.328262 | K152: 1580.821275 | L152: 39.75954319 | M152: 1008.778058 | N152: 929.2589714 | O152: 8.20614727 | P152: 4.363115905 | AW152: 1271900000
A153: 121 | B153: =IF(A153>$B$30,NA(),IF($A153>$A$8,"",OFFSET(InputPriceData!$B$15,$A153+$A$11,0,1,1))) -> 2003-10-13 | C153: =IF(A153>$B$30,NA(),IF($A153>$A$8,"",OFFSET(InputPriceData!$G$15,CalculationsAndCharts!$A153+$A$11,IF($C$5,8,0),1,1))) -> 1040500000 | D153: =IF(A153>$B$30,NA(),IF(A153>$A$8,"",OFFSET(InputPriceData!$C$15,CalculationsAndCharts!$A153+$A$11,IF($C$5,8,0),1,1))) -> 1038.06 | E153: =IF(A153>$B$30,NA(),IF(A153>$A$8,"",OFFSET(InputPriceData!$D$15,CalculationsAndCharts!$A153+$A$11,IF($C$5,8,0),1,1))) -> 1048.9 | F153: =IF(A153>$B$30,NA(),IF(A153>$A$8,"",OFFSET(InputPriceData!$E$15,CalculationsAndCharts!$A153+$A$11,IF($C$5,8,0),1,1))) -> 1038.06 | G153: =IF(A153>$B$30,NA(),IF(A153>$A$8,"",OFFSET(InputPriceData!$F$15,CalculationsAndCharts!$A153+$A$11,IF($C$5,8,0),1,1))) -> 1045.35 | H153: 968.2098565 | I153: 1012.912768 | J153: -44.70291103 | K153: 1567.281851 | L153: 39.5889107 | M153: 1007.798767 | N153: 928.6209458 | O153: 8.177754118 | P153: 4.363115905 | AW153: 1040500000
A154: 122 | B154: =IF(A154>$B$30,NA(),IF($A154>$A$8,"",OFFSET(InputPriceData!$B$15,$A154+$A$11,0,1,1))) -> 2003-10-10 | C154: =IF(A154>$B$30,NA(),IF($A154>$A$8,"",OFFSET(InputPriceData!$G$15,CalculationsAndCharts!$A154+$A$11,IF($C$5,8,0),1,1))) -> 1108100000 | D154: =IF(A154>$B$30,NA(),IF(A154>$A$8,"",OFFSET(InputPriceData!$C$15,CalculationsAndCharts!$A154+$A$11,IF($C$5,8,0),1,1))) -> 1038.73 | E154: =IF(A154>$B$30,NA(),IF(A154>$A$8,"",OFFSET(InputPriceData!$D$15,CalculationsAndCharts!$A154+$A$11,IF($C$5,8,0),1,1))) -> 1040.84 | F154: =IF(A154>$B$30,NA(),IF(A154>$A$8,"",OFFSET(InputPriceData!$E$15,CalculationsAndCharts!$A154+$A$11,IF($C$5,8,0),1,1))) -> 1035.74 | G154: =IF(A154>$B$30,NA(),IF(A154>$A$8,"",OFFSET(InputPriceData!$F$15,CalculationsAndCharts!$A154+$A$11,IF($C$5,8,0),1,1))) -> 1038.06 | H154: 967.4345787 | I154: 1011.588799 | J154: -44.15422018 | K154: 1555.159539 | L154: 39.43551114 | M154: 1006.87009 | N154: 927.9990675 | O154: 8.152594917 | P154: 4.363115905 | AX154: 1108100000
A155: 123 | B155: =IF(A155>$B$30,NA(),IF($A155>$A$8,"",OFFSET(InputPriceData!$B$15,$A155+$A$11,0,1,1))) -> 2003-10-09 | C155: =IF(A155>$B$30,NA(),IF($A155>$A$8,"",OFFSET(InputPriceData!$G$15,CalculationsAndCharts!$A155+$A$11,IF($C$5,8,0),1,1))) -> 1578700000 | D155: =IF(A155>$B$30,NA(),IF(A155>$A$8,"",OFFSET(InputPriceData!$C$15,CalculationsAndCharts!$A155+$A$11,IF($C$5,8,0),1,1))) -> 1033.78 | E155: =IF(A155>$B$30,NA(),IF(A155>$A$8,"",OFFSET(InputPriceData!$D$15,CalculationsAndCharts!$A155+$A$11,IF($C$5,8,0),1,1))) -> 1048.28 | F155: =IF(A155>$B$30,NA(),IF(A155>$A$8,"",OFFSET(InputPriceData!$E$15,CalculationsAndCharts!$A155+$A$11,IF($C$5,8,0),1,1))) -> 1033.78 | G155: =IF(A155>$B$30,NA(),IF(A155>$A$8,"",OFFSET(InputPriceData!$F$15,CalculationsAndCharts!$A155+$A$11,IF($C$5,8,0),1,1))) -> 1038.73 | H155: 966.7247754 | I155: 1010.508342 | J155: -43.78356622 | K155: 1544.420393 | L155: 39.2991144 | M155: 1006.02389 | N155: 927.425661 | O155: 8.130362519 | P155: 4.363115905 | AW155: 1578700000
A156: 124 | B156: =IF(A156>$B$30,NA(),IF($A156>$A$8,"",OFFSET(InputPriceData!$B$15,$A156+$A$11,0,1,1))) -> 2003-10-08 | C156: =IF(A156>$B$30,NA(),IF($A156>$A$8,"",OFFSET(InputPriceData!$G$15,CalculationsAndCharts!$A156+$A$11,IF($C$5,8,0),1,1))) -> 1262500000 | D156: =IF(A156>$B$30,NA(),IF(A156>$A$8,"",OFFSET(InputPriceData!$C$15,CalculationsAndCharts!$A156+$A$11,IF($C$5,8,0),1,1))) -> 1039.25 | E156: =IF(A156>$B$30,NA(),IF(A156>$A$8,"",OFFSET(InputPriceData!$D$15,CalculationsAndCharts!$A156+$A$11,IF($C$5,8,0),1,1))) -> 1040.06 | F156: =IF(A156>$B$30,NA(),IF(A156>$A$8,"",OFFSET(InputPriceData!$E$15,CalculationsAndCharts!$A156+$A$11,IF($C$5,8,0),1,1))) -> 1030.96 | G156: =IF(A156>$B$30,NA(),IF(A156>$A$8,"",OFFSET(InputPriceData!$F$15,CalculationsAndCharts!$A156+$A$11,IF($C$5,8,0),1,1))) -> 1033.78 | H156: 966.0011048 | I156: 1009.356437 | J156: -43.35533239 | K156: 1534.2706 | L156: 39.16976641 | M156: 1005.170871 | N156: 926.8313384 | O156: 8.109673211 | P156: 4.363115905 | AX156: 1262500000
A157: 125 | B157: =IF(A157>$B$30,NA(),IF($A157>$A$8,"",OFFSET(InputPriceData!$B$15,$A157+$A$11,0,1,1))) -> 2003-10-07 | C157: =IF(A157>$B$30,NA(),IF($A157>$A$8,"",OFFSET(InputPriceData!$G$15,CalculationsAndCharts!$A157+$A$11,IF($C$5,8,0),1,1))) -> 1279500000 | D157: =IF(A157>$B$30,NA(),IF(A157>$A$8,"",OFFSET(InputPriceData!$C$15,CalculationsAndCharts!$A157+$A$11,IF($C$5,8,0),1,1))) -> 1034.35 | E157: =IF(A157>$B$30,NA(),IF(A157>$A$8,"",OFFSET(InputPriceData!$D$15,CalculationsAndCharts!$A157+$A$11,IF($C$5,8,0),1,1))) -> 1039.25 | F157: =IF(A157>$B$30,NA(),IF(A157>$A$8,"",OFFSET(InputPriceData!$E$15,CalculationsAndCharts!$A157+$A$11,IF($C$5,8,0),1,1))) -> 1026.27 | G157: =IF(A157>$B$30,NA(),IF(A157>$A$8,"",OFFSET(InputPriceData!$F$15,CalculationsAndCharts!$A157+$A$11,IF($C$5,8,0),1,1))) -> 1039.25 | H157: 965.3199099 | I157: 1008.359557 | J157: -43.03964721 | K157: 1524.908597 | L157: 39.05007807 | M157: 1004.369988 | N157: 926.2698318 | O157: 8.090598292 | P157: 4.363115905 | AW157: 1279500000
A158: 126 | B158: =IF(A158>$B$30,NA(),IF($A158>$A$8,"",OFFSET(InputPriceData!$B$15,$A158+$A$11,0,1,1))) -> 2003-10-06 | C158: =IF(A158>$B$30,NA(),IF($A158>$A$8,"",OFFSET(InputPriceData!$G$15,CalculationsAndCharts!$A158+$A$11,IF($C$5,8,0),1,1))) -> 1025800000 | D158: =IF(A158>$B$30,NA(),IF(A158>$A$8,"",OFFSET(InputPriceData!$C$15,CalculationsAndCharts!$A158+$A$11,IF($C$5,8,0),1,1))) -> 1029.85 | E158: =IF(A158>$B$30,NA(),IF(A158>$A$8,"",OFFSET(InputPriceData!$D$15,CalculationsAndCharts!$A158+$A$11,IF($C$5,8,0),1,1))) -> 1036.48 | F158: =IF(A158>$B$30,NA(),IF(A158>$A$8,"",OFFSET(InputPriceData!$E$15,CalculationsAndCharts!$A158+$A$11,IF($C$5,8,0),1,1))) -> 1029.15 | G158: =IF(A158>$B$30,NA(),IF(A158>$A$8,"",OFFSET(InputPriceData!$F$15,CalculationsAndCharts!$A158+$A$11,IF($C$5,8,0),1,1))) -> 1034.35 | H158: 964.5768939 | I158: 1007.098723 | J158: -42.52182879 | K158: 1516.029791 | L158: 38.93622723 | M158: 1003.513121 | N158: 925.6406667 | O158: 8.07322412 | P158: 4.363115905 | AW158: 1025800000
A159: 127 | B159: =IF(A159>$B$30,NA(),IF($A159>$A$8,"",OFFSET(InputPriceData!$B$15,$A159+$A$11,0,1,1))) -> 2003-10-03 | C159: =IF(A159>$B$30,NA(),IF($A159>$A$8,"",OFFSET(InputPriceData!$G$15,CalculationsAndCharts!$A159+$A$11,IF($C$5,8,0),1,1))) -> 1570500000 | D159: =IF(A159>$B$30,NA(),IF(A159>$A$8,"",OFFSET(InputPriceData!$C$15,CalculationsAndCharts!$A159+$A$11,IF($C$5,8,0),1,1))) -> 1020.24 | E159: =IF(A159>$B$30,NA(),IF(A159>$A$8,"",OFFSET(InputPriceData!$D$15,CalculationsAndCharts!$A159+$A$11,IF($C$5,8,0),1,1))) -> 1039.31 | F159: =IF(A159>$B$30,NA(),IF(A159>$A$8,"",OFFSET(InputPriceData!$E$15,CalculationsAndCharts!$A159+$A$11,IF($C$5,8,0),1,1))) -> 1020.24 | G159: =IF(A159>$B$30,NA(),IF(A159>$A$8,"",OFFSET(InputPriceData!$F$15,CalculationsAndCharts!$A159+$A$11,IF($C$5,8,0),1,1))) -> 1029.85 | H159: 963.8756567 | I159: 1005.986426 | J159: -42.110769 | K159: 1507.61575 | L159: 38.82802789 | M159: 1002.703685 | N159: 925.0476288 | O159: 8.056646648 | P159: 4.363115905 | AW159: 1570500000
A160: 128 | B160: =IF(A160>$B$30,NA(),IF($A160>$A$8,"",OFFSET(InputPriceData!$B$15,$A160+$A$11,0,1,1))) -> 2003-10-02 | C160: =IF(A160>$B$30,NA(),IF($A160>$A$8,"",OFFSET(InputPriceData!$G$15,CalculationsAndCharts!$A160+$A$11,IF($C$5,8,0),1,1))) -> 1269300000 | D160: =IF(A160>$B$30,NA(),IF(A160>$A$8,"",OFFSET(InputPriceData!$C$15,CalculationsAndCharts!$A160+$A$11,IF($C$5,8,0),1,1))) -> 1018.22 | E160: =IF(A160>$B$30,NA(),IF(A160>$A$8,"",OFFSET(InputPriceData!$D$15,CalculationsAndCharts!$A160+$A$11,IF($C$5,8,0),1,1))) -> 1021.87 | F160: =IF(A160>$B$30,NA(),IF(A160>$A$8,"",OFFSET(InputPriceData!$E$15,CalculationsAndCharts!$A160+$A$11,IF($C$5,8,0),1,1))) -> 1013.38 | G160: =IF(A160>$B$30,NA(),IF(A160>$A$8,"",OFFSET(InputPriceData!$F$15,CalculationsAndCharts!$A160+$A$11,IF($C$5,8,0),1,1))) -> 1020.24 | H160: 963.212598 | I160: 1005.012402 | J160: -41.79980429 | K160: 1499.337294 | L160: 38.72127702 | M160: 1001.933875 | N160: 924.4913209 | O160: 8.040027113 | P160: 4.363115905 | AW160: 1269300000
A161: 129 | B161: =IF(A161>$B$30,NA(),IF($A161>$A$8,"",OFFSET(InputPriceData!$B$15,$A161+$A$11,0,1,1))) -> 2003-10-01 | C161: =IF(A161>$B$30,NA(),IF($A161>$A$8,"",OFFSET(InputPriceData!$G$15,CalculationsAndCharts!$A161+$A$11,IF($C$5,8,0),1,1))) -> 1566300000 | D161: =IF(A161>$B$30,NA(),IF(A161>$A$8,"",OFFSET(InputPriceData!$C$15,CalculationsAndCharts!$A161+$A$11,IF($C$5,8,0),1,1))) -> 995.97 | E161: =IF(A161>$B$30,NA(),IF(A161>$A$8,"",OFFSET(InputPriceData!$D$15,CalculationsAndCharts!$A161+$A$11,IF($C$5,8,0),1,1))) -> 1018.22 | F161: =IF(A161>$B$30,NA(),IF(A161>$A$8,"",OFFSET(InputPriceData!$E$15,CalculationsAndCharts!$A161+$A$11,IF($C$5,8,0),1,1))) -> 995.97 | G161: =IF(A161>$B$30,NA(),IF(A161>$A$8,"",OFFSET(InputPriceData!$F$15,CalculationsAndCharts!$A161+$A$11,IF($C$5,8,0),1,1))) -> 1018.22 | H161: 962.6394582 | I161: 1004.390868 | J161: -41.7514094 | K161: 1491.747717 | L161: 38.62315001 | M161: 1001.262608 | N161: 924.0163082 | O161: 8.02442694 | P161: 4.363115905 | AW161: =IF(G161>=D161,C161,NA()) -> 1566300000 | AX161: =IF(G161<D161,C161,NA()) -> 
A162: 130 | B162: =IF(A162>$B$30,NA(),IF($A162>$A$8,"",OFFSET(InputPriceData!$B$15,$A162+$A$11,0,1,1))) -> 2003-09-30 | C162: =IF(A162>$B$30,NA(),IF($A162>$A$8,"",OFFSET(InputPriceData!$G$15,CalculationsAndCharts!$A162+$A$11,IF($C$5,8,0),1,1))) -> 1590500000 | D162: =IF(A162>$B$30,NA(),IF(A162>$A$8,"",OFFSET(InputPriceData!$C$15,CalculationsAndCharts!$A162+$A$11,IF($C$5,8,0),1,1))) -> 1006.58 | E162: =IF(A162>$B$30,NA(),IF(A162>$A$8,"",OFFSET(InputPriceData!$D$15,CalculationsAndCharts!$A162+$A$11,IF($C$5,8,0),1,1))) -> 1006.58 | F162: =IF(A162>$B$30,NA(),IF(A162>$A$8,"",OFFSET(InputPriceData!$E$15,CalculationsAndCharts!$A162+$A$11,IF($C$5,8,0),1,1))) -> 990.36 | G162: =IF(A162>$B$30,NA(),IF(A162>$A$8,"",OFFSET(InputPriceData!$F$15,CalculationsAndCharts!$A162+$A$11,IF($C$5,8,0),1,1))) -> 995.97 | H162: =IF(A162>$H$30,NA(),IF(A162=$H$30,AVERAGE(OFFSET(G162,0,0,$A$17,1)),G162*$C$17+H163*$D$17)) -> 962.0808598 | I162: =IF($A162>$I$30,NA(),IF($A162=$I$30,AVERAGE(OFFSET($G162,0,0,$A$18,1)),$G162*$C$18+I163*$D$18)) -> 1003.826413 | J162: =IF($A162>$J$30,NA(),H162-I162) -> -41.74555343 | K162: =IF($A162>K$30,NA(),SUMSQ(OFFSET(J162,0,0,$A$18,1))/$A$18) -> 1484.073618 | L162: =IF($A162>K$30,NA(),SQRT(K162)*$A$19) -> 38.52367607 | M162: =IF($A162>K$30,NA(),H162+L162) -> 1000.604536 | N162: =IF($A162>K$30,NA(),H162-L162) -> 923.5571838 | O162: =IF($A162>K$30,NA(),(M162-N162)/H162*100) -> 8.008407127 | P162: =IF($A162>P$30,NA(),MIN(OFFSET(O162,0,0,$A$17,1))) -> 4.363115905 | AX162: 1590500000
A163: 131 | B163: =IF(A163>$B$30,NA(),IF($A163>$A$8,"",OFFSET(InputPriceData!$B$15,$A163+$A$11,0,1,1))) -> 2003-09-29 | C163: =IF(A163>$B$30,NA(),IF($A163>$A$8,"",OFFSET(InputPriceData!$G$15,CalculationsAndCharts!$A163+$A$11,IF($C$5,8,0),1,1))) -> 1366500000 | D163: =IF(A163>$B$30,NA(),IF(A163>$A$8,"",OFFSET(InputPriceData!$C$15,CalculationsAndCharts!$A163+$A$11,IF($C$5,8,0),1,1))) -> 996.85 | E163: =IF(A163>$B$30,NA(),IF(A163>$A$8,"",OFFSET(InputPriceData!$D$15,CalculationsAndCharts!$A163+$A$11,IF($C$5,8,0),1,1))) -> 1006.89 | F163: =IF(A163>$B$30,NA(),IF(A163>$A$8,"",OFFSET(InputPriceData!$E$15,CalculationsAndCharts!$A163+$A$11,IF($C$5,8,0),1,1))) -> 995.31 | G163: =IF(A163>$B$30,NA(),IF(A163>$A$8,"",OFFSET(InputPriceData!$F$15,CalculationsAndCharts!$A163+$A$11,IF($C$5,8,0),1,1))) -> 1006.58 | H163: 961.7402655 | I163: 1004.147083 | J163: -42.40681773 | K163: 1476.236348 | L163: 38.42182125 | M163: 1000.162087 | N163: 923.3184442 | O163: 7.990061897 | P163: 4.363115905 | AW163: 1366500000
A164: 132 | B164: =IF(A164>$B$30,NA(),IF($A164>$A$8,"",OFFSET(InputPriceData!$B$15,$A164+$A$11,0,1,1))) -> 2003-09-26 | C164: =IF(A164>$B$30,NA(),IF($A164>$A$8,"",OFFSET(InputPriceData!$G$15,CalculationsAndCharts!$A164+$A$11,IF($C$5,8,0),1,1))) -> 1472500000 | D164: =IF(A164>$B$30,NA(),IF(A164>$A$8,"",OFFSET(InputPriceData!$C$15,CalculationsAndCharts!$A164+$A$11,IF($C$5,8,0),1,1))) -> 1003.27 | E164: =IF(A164>$B$30,NA(),IF(A164>$A$8,"",OFFSET(InputPriceData!$D$15,CalculationsAndCharts!$A164+$A$11,IF($C$5,8,0),1,1))) -> 1003.45 | F164: =IF(A164>$B$30,NA(),IF(A164>$A$8,"",OFFSET(InputPriceData!$E$15,CalculationsAndCharts!$A164+$A$11,IF($C$5,8,0),1,1))) -> 996.08 | G164: =IF(A164>$B$30,NA(),IF(A164>$A$8,"",OFFSET(InputPriceData!$F$15,CalculationsAndCharts!$A164+$A$11,IF($C$5,8,0),1,1))) -> 996.85 | H164: 961.2896149 | I164: 1004.04778 | J164: -42.7581656 | K164: 1467.503978 | L164: 38.30801455 | M164: 999.5976294 | N164: 922.9816003 | O164: 7.9701297 | P164: 4.363115905 | AX164: 1472500000
A165: 133 | B165: =IF(A165>$B$30,NA(),IF($A165>$A$8,"",OFFSET(InputPriceData!$B$15,$A165+$A$11,0,1,1))) -> 2003-09-25 | C165: =IF(A165>$B$30,NA(),IF($A165>$A$8,"",OFFSET(InputPriceData!$G$15,CalculationsAndCharts!$A165+$A$11,IF($C$5,8,0),1,1))) -> 1530000000 | D165: =IF(A165>$B$30,NA(),IF(A165>$A$8,"",OFFSET(InputPriceData!$C$15,CalculationsAndCharts!$A165+$A$11,IF($C$5,8,0),1,1))) -> 1009.38 | E165: =IF(A165>$B$30,NA(),IF(A165>$A$8,"",OFFSET(InputPriceData!$D$15,CalculationsAndCharts!$A165+$A$11,IF($C$5,8,0),1,1))) -> 1015.97 | F165: =IF(A165>$B$30,NA(),IF(A165>$A$8,"",OFFSET(InputPriceData!$E$15,CalculationsAndCharts!$A165+$A$11,IF($C$5,8,0),1,1))) -> 1003.26 | G165: =IF(A165>$B$30,NA(),IF(A165>$A$8,"",OFFSET(InputPriceData!$F$15,CalculationsAndCharts!$A165+$A$11,IF($C$5,8,0),1,1))) -> 1003.27 | H165: 960.9322241 | I165: 1004.341567 | J165: -43.40934337 | K165: 1457.722771 | L165: 38.18013582 | M165: 999.1123599 | N165: 922.7520882 | O165: 7.946478402 | P165: 4.363115905 | AX165: 1530000000
A166: 134 | B166: =IF(A166>$B$30,NA(),IF($A166>$A$8,"",OFFSET(InputPriceData!$B$15,$A166+$A$11,0,1,1))) -> 2003-09-24 | C166: =IF(A166>$B$30,NA(),IF($A166>$A$8,"",OFFSET(InputPriceData!$G$15,CalculationsAndCharts!$A166+$A$11,IF($C$5,8,0),1,1))) -> 1556000000 | D166: =IF(A166>$B$30,NA(),IF(A166>$A$8,"",OFFSET(InputPriceData!$C$15,CalculationsAndCharts!$A166+$A$11,IF($C$5,8,0),1,1))) -> 1029.03 | E166: =IF(A166>$B$30,NA(),IF(A166>$A$8,"",OFFSET(InputPriceData!$D$15,CalculationsAndCharts!$A166+$A$11,IF($C$5,8,0),1,1))) -> 1029.83 | F166: =IF(A166>$B$30,NA(),IF(A166>$A$8,"",OFFSET(InputPriceData!$E$15,CalculationsAndCharts!$A166+$A$11,IF($C$5,8,0),1,1))) -> 1008.93 | G166: =IF(A166>$B$30,NA(),IF(A166>$A$8,"",OFFSET(InputPriceData!$F$15,CalculationsAndCharts!$A166+$A$11,IF($C$5,8,0),1,1))) -> 1009.38 | H166: 960.5067188 | I166: 1004.385305 | J166: -43.8785861 | K166: 1446.847844 | L166: 38.03745317 | M166: 998.5441719 | N166: 922.4692656 | O166: 7.920288828 | P166: 4.363115905 | AX166: 1556000000
A167: 135 | B167: =IF(A167>$B$30,NA(),IF($A167>$A$8,"",OFFSET(InputPriceData!$B$15,$A167+$A$11,0,1,1))) -> 2003-09-23 | C167: =IF(A167>$B$30,NA(),IF($A167>$A$8,"",OFFSET(InputPriceData!$G$15,CalculationsAndCharts!$A167+$A$11,IF($C$5,8,0),1,1))) -> 1301700000 | D167: =IF(A167>$B$30,NA(),IF(A167>$A$8,"",OFFSET(InputPriceData!$C$15,CalculationsAndCharts!$A167+$A$11,IF($C$5,8,0),1,1))) -> 1022.82 | E167: =IF(A167>$B$30,NA(),IF(A167>$A$8,"",OFFSET(InputPriceData!$D$15,CalculationsAndCharts!$A167+$A$11,IF($C$5,8,0),1,1))) -> 1030.12 | F167: =IF(A167>$B$30,NA(),IF(A167>$A$8,"",OFFSET(InputPriceData!$E$15,CalculationsAndCharts!$A167+$A$11,IF($C$5,8,0),1,1))) -> 1021.54 | G167: =IF(A167>$B$30,NA(),IF(A167>$A$8,"",OFFSET(InputPriceData!$F$15,CalculationsAndCharts!$A167+$A$11,IF($C$5,8,0),1,1))) -> 1029.03 | H167: 960.01553 | I167: 1004.18144 | J167: -44.16590975 | K167: 1434.607565 | L167: 37.87621371 | M167: 997.8917437 | N167: 922.1393163 | O167: 7.890750206 | P167: 4.363115905 | AW167: 1301700000
A168: 136 | B168: =IF(A168>$B$30,NA(),IF($A168>$A$8,"",OFFSET(InputPriceData!$B$15,$A168+$A$11,0,1,1))) -> 2003-09-22 | C168: =IF(A168>$B$30,NA(),IF($A168>$A$8,"",OFFSET(InputPriceData!$G$15,CalculationsAndCharts!$A168+$A$11,IF($C$5,8,0),1,1))) -> 1278800000 | D168: =IF(A168>$B$30,NA(),IF(A168>$A$8,"",OFFSET(InputPriceData!$C$15,CalculationsAndCharts!$A168+$A$11,IF($C$5,8,0),1,1))) -> 1036.3 | E168: =IF(A168>$B$30,NA(),IF(A168>$A$8,"",OFFSET(InputPriceData!$D$15,CalculationsAndCharts!$A168+$A$11,IF($C$5,8,0),1,1))) -> 1036.3 | F168: =IF(A168>$B$30,NA(),IF(A168>$A$8,"",OFFSET(InputPriceData!$E$15,CalculationsAndCharts!$A168+$A$11,IF($C$5,8,0),1,1))) -> 1018.3 | G168: =IF(A168>$B$30,NA(),IF(A168>$A$8,"",OFFSET(InputPriceData!$F$15,CalculationsAndCharts!$A168+$A$11,IF($C$5,8,0),1,1))) -> 1022.82 | H168: 959.3219172 | I168: 1003.167213 | J168: -43.84529556 | K168: 1420.993555 | L168: 37.69606816 | M168: 997.0179854 | N168: 921.6258491 | O168: 7.858898559 | P168: 4.363115905 | AX168: 1278800000
A169: 137 | B169: =IF(A169>$B$30,NA(),IF($A169>$A$8,"",OFFSET(InputPriceData!$B$15,$A169+$A$11,0,1,1))) -> 2003-09-19 | C169: =IF(A169>$B$30,NA(),IF($A169>$A$8,"",OFFSET(InputPriceData!$G$15,CalculationsAndCharts!$A169+$A$11,IF($C$5,8,0),1,1))) -> 1518600000 | D169: =IF(A169>$B$30,NA(),IF(A169>$A$8,"",OFFSET(InputPriceData!$C$15,CalculationsAndCharts!$A169+$A$11,IF($C$5,8,0),1,1))) -> 1039.58 | E169: =IF(A169>$B$30,NA(),IF(A169>$A$8,"",OFFSET(InputPriceData!$D$15,CalculationsAndCharts!$A169+$A$11,IF($C$5,8,0),1,1))) -> 1040.29 | F169: =IF(A169>$B$30,NA(),IF(A169>$A$8,"",OFFSET(InputPriceData!$E$15,CalculationsAndCharts!$A169+$A$11,IF($C$5,8,0),1,1))) -> 1031.89 | G169: =IF(A169>$B$30,NA(),IF(A169>$A$8,"",OFFSET(InputPriceData!$F$15,CalculationsAndCharts!$A169+$A$11,IF($C$5,8,0),1,1))) -> 1036.3 | H169: 958.6837456 | I169: 1002.365058 | J169: -43.68131267 | K169: 1406.87898 | L169: 37.50838547 | M169: 996.192131 | N169: 921.1753601 | O169: 7.824975784 | P169: 4.363115905 | AX169: 1518600000
A170: 138 | B170: =IF(A170>$B$30,NA(),IF($A170>$A$8,"",OFFSET(InputPriceData!$B$15,$A170+$A$11,0,1,1))) -> 2003-09-18 | C170: =IF(A170>$B$30,NA(),IF($A170>$A$8,"",OFFSET(InputPriceData!$G$15,CalculationsAndCharts!$A170+$A$11,IF($C$5,8,0),1,1))) -> 1498800000 | D170: =IF(A170>$B$30,NA(),IF(A170>$A$8,"",OFFSET(InputPriceData!$C$15,CalculationsAndCharts!$A170+$A$11,IF($C$5,8,0),1,1))) -> 1025.97 | E170: =IF(A170>$B$30,NA(),IF(A170>$A$8,"",OFFSET(InputPriceData!$D$15,CalculationsAndCharts!$A170+$A$11,IF($C$5,8,0),1,1))) -> 1040.16 | F170: =IF(A170>$B$30,NA(),IF(A170>$A$8,"",OFFSET(InputPriceData!$E$15,CalculationsAndCharts!$A170+$A$11,IF($C$5,8,0),1,1))) -> 1025.75 | G170: =IF(A170>$B$30,NA(),IF(A170>$A$8,"",OFFSET(InputPriceData!$F$15,CalculationsAndCharts!$A170+$A$11,IF($C$5,8,0),1,1))) -> 1039.58 | H170: 957.9036827 | I170: 1000.979959 | J170: -43.07627586 | K170: 1392.177492 | L170: 37.31189478 | M170: 995.2155775 | N170: 920.5917879 | O170: 7.790322858 | P170: 4.363115905 | AW170: 1498800000
A171: 139 | B171: =IF(A171>$B$30,NA(),IF($A171>$A$8,"",OFFSET(InputPriceData!$B$15,$A171+$A$11,0,1,1))) -> 2003-09-17 | C171: =IF(A171>$B$30,NA(),IF($A171>$A$8,"",OFFSET(InputPriceData!$G$15,CalculationsAndCharts!$A171+$A$11,IF($C$5,8,0),1,1))) -> 1338210000 | D171: =IF(A171>$B$30,NA(),IF(A171>$A$8,"",OFFSET(InputPriceData!$C$15,CalculationsAndCharts!$A171+$A$11,IF($C$5,8,0),1,1))) -> 1029.32 | E171: =IF(A171>$B$30,NA(),IF(A171>$A$8,"",OFFSET(InputPriceData!$D$15,CalculationsAndCharts!$A171+$A$11,IF($C$5,8,0),1,1))) -> 1031.34 | F171: =IF(A171>$B$30,NA(),IF(A171>$A$8,"",OFFSET(InputPriceData!$E$15,CalculationsAndCharts!$A171+$A$11,IF($C$5,8,0),1,1))) -> 1024.53 | G171: =IF(A171>$B$30,NA(),IF(A171>$A$8,"",OFFSET(InputPriceData!$F$15,CalculationsAndCharts!$A171+$A$11,IF($C$5,8,0),1,1))) -> 1025.97 | H171: 957.0828152 | I171: 999.4044467 | J171: -42.32163148 | K171: 1377.997094 | L171: 37.12138324 | M171: 994.2041984 | N171: 919.961432 | O171: 7.757193558 | P171: 4.363115905 | AX171: 1338210000
A172: 140 | B172: =IF(A172>$B$30,NA(),IF($A172>$A$8,"",OFFSET(InputPriceData!$B$15,$A172+$A$11,0,1,1))) -> 2003-09-16 | C172: =IF(A172>$B$30,NA(),IF($A172>$A$8,"",OFFSET(InputPriceData!$G$15,CalculationsAndCharts!$A172+$A$11,IF($C$5,8,0),1,1))) -> 1403200000 | D172: =IF(A172>$B$30,NA(),IF(A172>$A$8,"",OFFSET(InputPriceData!$C$15,CalculationsAndCharts!$A172+$A$11,IF($C$5,8,0),1,1))) -> 1014.81 | E172: =IF(A172>$B$30,NA(),IF(A172>$A$8,"",OFFSET(InputPriceData!$D$15,CalculationsAndCharts!$A172+$A$11,IF($C$5,8,0),1,1))) -> 1029.66 | F172: =IF(A172>$B$30,NA(),IF(A172>$A$8,"",OFFSET(InputPriceData!$E$15,CalculationsAndCharts!$A172+$A$11,IF($C$5,8,0),1,1))) -> 1014.81 | G172: =IF(A172>$B$30,NA(),IF(A172>$A$8,"",OFFSET(InputPriceData!$F$15,CalculationsAndCharts!$A172+$A$11,IF($C$5,8,0),1,1))) -> 1029.32 | H172: 956.3904817 | I172: 998.3201384 | J172: -41.9296567 | K172: 1363.985163 | L172: 36.93216976 | M172: 993.3226514 | N172: 919.4583119 | O172: 7.723240762 | P172: 4.363115905 | AW172: 1403200000
A173: 141 | B173: =IF(A173>$B$30,NA(),IF($A173>$A$8,"",OFFSET(InputPriceData!$B$15,$A173+$A$11,0,1,1))) -> 2003-09-15 | C173: =IF(A173>$B$30,NA(),IF($A173>$A$8,"",OFFSET(InputPriceData!$G$15,CalculationsAndCharts!$A173+$A$11,IF($C$5,8,0),1,1))) -> 1151300000 | D173: =IF(A173>$B$30,NA(),IF(A173>$A$8,"",OFFSET(InputPriceData!$C$15,CalculationsAndCharts!$A173+$A$11,IF($C$5,8,0),1,1))) -> 1018.63 | E173: =IF(A173>$B$30,NA(),IF(A173>$A$8,"",OFFSET(InputPriceData!$D$15,CalculationsAndCharts!$A173+$A$11,IF($C$5,8,0),1,1))) -> 1019.79 | F173: =IF(A173>$B$30,NA(),IF(A173>$A$8,"",OFFSET(InputPriceData!$E$15,CalculationsAndCharts!$A173+$A$11,IF($C$5,8,0),1,1))) -> 1013.59 | G173: =IF(A173>$B$30,NA(),IF(A173>$A$8,"",OFFSET(InputPriceData!$F$15,CalculationsAndCharts!$A173+$A$11,IF($C$5,8,0),1,1))) -> 1014.81 | H173: 955.6575217 | I173: 997.0548379 | J173: -41.39731621 | K173: 1349.246674 | L173: 36.73209324 | M173: 992.3896149 | N173: 918.9254285 | O173: 7.687292236 | P173: 4.363115905 | AX173: 1151300000
A174: 142 | B174: =IF(A174>$B$30,NA(),IF($A174>$A$8,"",OFFSET(InputPriceData!$B$15,$A174+$A$11,0,1,1))) -> 2003-09-12 | C174: =IF(A174>$B$30,NA(),IF($A174>$A$8,"",OFFSET(InputPriceData!$G$15,CalculationsAndCharts!$A174+$A$11,IF($C$5,8,0),1,1))) -> 1236700000 | D174: =IF(A174>$B$30,NA(),IF(A174>$A$8,"",OFFSET(InputPriceData!$C$15,CalculationsAndCharts!$A174+$A$11,IF($C$5,8,0),1,1))) -> 1016.42 | E174: =IF(A174>$B$30,NA(),IF(A174>$A$8,"",OFFSET(InputPriceData!$D$15,CalculationsAndCharts!$A174+$A$11,IF($C$5,8,0),1,1))) -> 1019.65 | F174: =IF(A174>$B$30,NA(),IF(A174>$A$8,"",OFFSET(InputPriceData!$E$15,CalculationsAndCharts!$A174+$A$11,IF($C$5,8,0),1,1))) -> 1007.71 | G174: =IF(A174>$B$30,NA(),IF(A174>$A$8,"",OFFSET(InputPriceData!$F$15,CalculationsAndCharts!$A174+$A$11,IF($C$5,8,0),1,1))) -> 1018.63 | H174: 955.0630244 | I174: 996.3301374 | J174: -41.26711298 | K174: 1334.100085 | L174: 36.52533484 | M174: 991.5883593 | N174: 918.5376896 | O174: 7.648780009 | P174: 4.363115905 | AW174: 1236700000
A175: 143 | B175: =IF(A175>$B$30,NA(),IF($A175>$A$8,"",OFFSET(InputPriceData!$B$15,$A175+$A$11,0,1,1))) -> 2003-09-11 | C175: =IF(A175>$B$30,NA(),IF($A175>$A$8,"",OFFSET(InputPriceData!$G$15,CalculationsAndCharts!$A175+$A$11,IF($C$5,8,0),1,1))) -> 1335900000 | D175: =IF(A175>$B$30,NA(),IF(A175>$A$8,"",OFFSET(InputPriceData!$C$15,CalculationsAndCharts!$A175+$A$11,IF($C$5,8,0),1,1))) -> 1010.92 | E175: =IF(A175>$B$30,NA(),IF(A175>$A$8,"",OFFSET(InputPriceData!$D$15,CalculationsAndCharts!$A175+$A$11,IF($C$5,8,0),1,1))) -> 1020.88 | F175: =IF(A175>$B$30,NA(),IF(A175>$A$8,"",OFFSET(InputPriceData!$E$15,CalculationsAndCharts!$A175+$A$11,IF($C$5,8,0),1,1))) -> 1010.92 | G175: =IF(A175>$B$30,NA(),IF(A175>$A$8,"",OFFSET(InputPriceData!$F$15,CalculationsAndCharts!$A175+$A$11,IF($C$5,8,0),1,1))) -> 1016.42 | H175: 954.4241603 | I175: 995.4199389 | J175: -40.99577858 | K175: 1318.531544 | L175: 36.31158966 | M175: 990.73575 | N175: 918.1125707 | O175: 7.609109486 | P175: 4.363115905 | AW175: 1335900000
A176: 144 | B176: =IF(A176>$B$30,NA(),IF($A176>$A$8,"",OFFSET(InputPriceData!$B$15,$A176+$A$11,0,1,1))) -> 2003-09-10 | C176: =IF(A176>$B$30,NA(),IF($A176>$A$8,"",OFFSET(InputPriceData!$G$15,CalculationsAndCharts!$A176+$A$11,IF($C$5,8,0),1,1))) -> 1582100000 | D176: =IF(A176>$B$30,NA(),IF(A176>$A$8,"",OFFSET(InputPriceData!$C$15,CalculationsAndCharts!$A176+$A$11,IF($C$5,8,0),1,1))) -> 1023.17 | E176: =IF(A176>$B$30,NA(),IF(A176>$A$8,"",OFFSET(InputPriceData!$D$15,CalculationsAndCharts!$A176+$A$11,IF($C$5,8,0),1,1))) -> 1023.17 | F176: =IF(A176>$B$30,NA(),IF(A176>$A$8,"",OFFSET(InputPriceData!$E$15,CalculationsAndCharts!$A176+$A$11,IF($C$5,8,0),1,1))) -> 1009.74 | G176: =IF(A176>$B$30,NA(),IF(A176>$A$8,"",OFFSET(InputPriceData!$F$15,CalculationsAndCharts!$A176+$A$11,IF($C$5,8,0),1,1))) -> 1010.92 | H176: 953.8010866 | I176: 994.5627936 | J176: -40.761707 | K176: 1302.441804 | L176: 36.0893586 | M176: 989.8904452 | N176: 917.711728 | O176: 7.567481126 | P176: 4.363115905 | AX176: 1582100000
A177: 145 | B177: =IF(A177>$B$30,NA(),IF($A177>$A$8,"",OFFSET(InputPriceData!$B$15,$A177+$A$11,0,1,1))) -> 2003-09-09 | C177: =IF(A177>$B$30,NA(),IF($A177>$A$8,"",OFFSET(InputPriceData!$G$15,CalculationsAndCharts!$A177+$A$11,IF($C$5,8,0),1,1))) -> 1414800000 | D177: =IF(A177>$B$30,NA(),IF(A177>$A$8,"",OFFSET(InputPriceData!$C$15,CalculationsAndCharts!$A177+$A$11,IF($C$5,8,0),1,1))) -> 1031.64 | E177: =IF(A177>$B$30,NA(),IF(A177>$A$8,"",OFFSET(InputPriceData!$D$15,CalculationsAndCharts!$A177+$A$11,IF($C$5,8,0),1,1))) -> 1031.64 | F177: =IF(A177>$B$30,NA(),IF(A177>$A$8,"",OFFSET(InputPriceData!$E$15,CalculationsAndCharts!$A177+$A$11,IF($C$5,8,0),1,1))) -> 1021.14 | G177: =IF(A177>$B$30,NA(),IF(A177>$A$8,"",OFFSET(InputPriceData!$F$15,CalculationsAndCharts!$A177+$A$11,IF($C$5,8,0),1,1))) -> 1023.17 | H177: 953.2270272 | I177: 993.8951525 | J177: -40.66812535 | K177: 1286.138395 | L177: 35.86277171 | M177: 989.0897989 | N177: 917.3642554 | O177: 7.524497457 | P177: 4.363115905 | AX177: 1414800000
A178: 146 | B178: =IF(A178>$B$30,NA(),IF($A178>$A$8,"",OFFSET(InputPriceData!$B$15,$A178+$A$11,0,1,1))) -> 2003-09-08 | C178: =IF(A178>$B$30,NA(),IF($A178>$A$8,"",OFFSET(InputPriceData!$G$15,CalculationsAndCharts!$A178+$A$11,IF($C$5,8,0),1,1))) -> 1299300000 | D178: =IF(A178>$B$30,NA(),IF(A178>$A$8,"",OFFSET(InputPriceData!$C$15,CalculationsAndCharts!$A178+$A$11,IF($C$5,8,0),1,1))) -> 1021.39 | E178: =IF(A178>$B$30,NA(),IF(A178>$A$8,"",OFFSET(InputPriceData!$D$15,CalculationsAndCharts!$A178+$A$11,IF($C$5,8,0),1,1))) -> 1032.41 | F178: =IF(A178>$B$30,NA(),IF(A178>$A$8,"",OFFSET(InputPriceData!$E$15,CalculationsAndCharts!$A178+$A$11,IF($C$5,8,0),1,1))) -> 1021.39 | G178: =IF(A178>$B$30,NA(),IF(A178>$A$8,"",OFFSET(InputPriceData!$F$15,CalculationsAndCharts!$A178+$A$11,IF($C$5,8,0),1,1))) -> 1031.64 | H178: 952.5240827 | I178: 992.7002608 | J178: -40.17617807 | K178: 1269.633775 | L178: 35.63192073 | M178: 988.1560034 | N178: 916.892162 | O178: 7.481578971 | P178: 4.363115905 | AW178: 1299300000
A179: 147 | B179: =IF(A179>$B$30,NA(),IF($A179>$A$8,"",OFFSET(InputPriceData!$B$15,$A179+$A$11,0,1,1))) -> 2003-09-05 | C179: =IF(A179>$B$30,NA(),IF($A179>$A$8,"",OFFSET(InputPriceData!$G$15,CalculationsAndCharts!$A179+$A$11,IF($C$5,8,0),1,1))) -> 1465200000 | D179: =IF(A179>$B$30,NA(),IF(A179>$A$8,"",OFFSET(InputPriceData!$C$15,CalculationsAndCharts!$A179+$A$11,IF($C$5,8,0),1,1))) -> 1027.97 | E179: =IF(A179>$B$30,NA(),IF(A179>$A$8,"",OFFSET(InputPriceData!$D$15,CalculationsAndCharts!$A179+$A$11,IF($C$5,8,0),1,1))) -> 1029.21 | F179: =IF(A179>$B$30,NA(),IF(A179>$A$8,"",OFFSET(InputPriceData!$E$15,CalculationsAndCharts!$A179+$A$11,IF($C$5,8,0),1,1))) -> 1018.19 | G179: =IF(A179>$B$30,NA(),IF(A179>$A$8,"",OFFSET(InputPriceData!$F$15,CalculationsAndCharts!$A179+$A$11,IF($C$5,8,0),1,1))) -> 1021.39 | H179: 951.7289479 | I179: 991.1108837 | J179: -39.3819358 | K179: 1253.483239 | L179: 35.40456523 | M179: 987.1335131 | N179: 916.3243826 | O179: 7.440052194 | P179: 4.363115905 | AX179: 1465200000
A180: 148 | B180: =IF(A180>$B$30,NA(),IF($A180>$A$8,"",OFFSET(InputPriceData!$B$15,$A180+$A$11,0,1,1))) -> 2003-09-04 | C180: =IF(A180>$B$30,NA(),IF($A180>$A$8,"",OFFSET(InputPriceData!$G$15,CalculationsAndCharts!$A180+$A$11,IF($C$5,8,0),1,1))) -> 1453900000 | D180: =IF(A180>$B$30,NA(),IF(A180>$A$8,"",OFFSET(InputPriceData!$C$15,CalculationsAndCharts!$A180+$A$11,IF($C$5,8,0),1,1))) -> 1026.27 | E180: =IF(A180>$B$30,NA(),IF(A180>$A$8,"",OFFSET(InputPriceData!$D$15,CalculationsAndCharts!$A180+$A$11,IF($C$5,8,0),1,1))) -> 1029.17 | F180: =IF(A180>$B$30,NA(),IF(A180>$A$8,"",OFFSET(InputPriceData!$E$15,CalculationsAndCharts!$A180+$A$11,IF($C$5,8,0),1,1))) -> 1022.19 | G180: =IF(A180>$B$30,NA(),IF(A180>$A$8,"",OFFSET(InputPriceData!$F$15,CalculationsAndCharts!$A180+$A$11,IF($C$5,8,0),1,1))) -> 1027.97 | H180: 951.0288368 | I180: 989.8750014 | J180: -38.84616458 | K180: 1237.797025 | L180: 35.18233968 | M180: 986.2111765 | N180: 915.8464971 | O180: 7.398795561 | P180: 4.363115905 | AW180: 1453900000
A181: 149 | B181: =IF(A181>$B$30,NA(),IF($A181>$A$8,"",OFFSET(InputPriceData!$B$15,$A181+$A$11,0,1,1))) -> 2003-09-03 | C181: =IF(A181>$B$30,NA(),IF($A181>$A$8,"",OFFSET(InputPriceData!$G$15,CalculationsAndCharts!$A181+$A$11,IF($C$5,8,0),1,1))) -> 1675600000 | D181: =IF(A181>$B$30,NA(),IF(A181>$A$8,"",OFFSET(InputPriceData!$C$15,CalculationsAndCharts!$A181+$A$11,IF($C$5,8,0),1,1))) -> 1021.99 | E181: =IF(A181>$B$30,NA(),IF(A181>$A$8,"",OFFSET(InputPriceData!$D$15,CalculationsAndCharts!$A181+$A$11,IF($C$5,8,0),1,1))) -> 1029.34 | F181: =IF(A181>$B$30,NA(),IF(A181>$A$8,"",OFFSET(InputPriceData!$E$15,CalculationsAndCharts!$A181+$A$11,IF($C$5,8,0),1,1))) -> 1021.99 | G181: =IF(A181>$B$30,NA(),IF(A181>$A$8,"",OFFSET(InputPriceData!$F$15,CalculationsAndCharts!$A181+$A$11,IF($C$5,8,0),1,1))) -> 1026.27 | H181: 950.2555588 | I181: 988.3201035 | J181: -38.0645447 | K181: 1222.468324 | L181: 34.9638145 | M181: 985.2193733 | N181: 915.2917443 | O181: 7.358823461 | P181: 4.363115905 | AW181: 1675600000
A182: 150 | B182: =IF(A182>$B$30,NA(),IF($A182>$A$8,"",OFFSET(InputPriceData!$B$15,$A182+$A$11,0,1,1))) -> 2003-09-02 | C182: =IF(A182>$B$30,NA(),IF($A182>$A$8,"",OFFSET(InputPriceData!$G$15,CalculationsAndCharts!$A182+$A$11,IF($C$5,8,0),1,1))) -> 1470500000 | D182: =IF(A182>$B$30,NA(),IF(A182>$A$8,"",OFFSET(InputPriceData!$C$15,CalculationsAndCharts!$A182+$A$11,IF($C$5,8,0),1,1))) -> 1008.01 | E182: =IF(A182>$B$30,NA(),IF(A182>$A$8,"",OFFSET(InputPriceData!$D$15,CalculationsAndCharts!$A182+$A$11,IF($C$5,8,0),1,1))) -> 1022.59 | F182: =IF(A182>$B$30,NA(),IF(A182>$A$8,"",OFFSET(InputPriceData!$E$15,CalculationsAndCharts!$A182+$A$11,IF($C$5,8,0),1,1))) -> 1005.73 | G182: =IF(A182>$B$30,NA(),IF(A182>$A$8,"",OFFSET(InputPriceData!$F$15,CalculationsAndCharts!$A182+$A$11,IF($C$5,8,0),1,1))) -> 1021.99 | H182: 949.4915945 | I182: 986.7711281 | J182: -37.27953357 | K182: 1207.566137 | L182: 34.75005233 | M182: 984.2416469 | N182: 914.7415422 | O182: 7.319717738 | P182: 4.363115905 | AW182: 1470500000
A183: 151 | B183: =IF(A183>$B$30,NA(),IF($A183>$A$8,"",OFFSET(InputPriceData!$B$15,$A183+$A$11,0,1,1))) -> 2003-08-29 | C183: =IF(A183>$B$30,NA(),IF($A183>$A$8,"",OFFSET(InputPriceData!$G$15,CalculationsAndCharts!$A183+$A$11,IF($C$5,8,0),1,1))) -> 945100000 | D183: =IF(A183>$B$30,NA(),IF(A183>$A$8,"",OFFSET(InputPriceData!$C$15,CalculationsAndCharts!$A183+$A$11,IF($C$5,8,0),1,1))) -> 1002.84 | E183: =IF(A183>$B$30,NA(),IF(A183>$A$8,"",OFFSET(InputPriceData!$D$15,CalculationsAndCharts!$A183+$A$11,IF($C$5,8,0),1,1))) -> 1008.85 | F183: =IF(A183>$B$30,NA(),IF(A183>$A$8,"",OFFSET(InputPriceData!$E$15,CalculationsAndCharts!$A183+$A$11,IF($C$5,8,0),1,1))) -> 999.52 | G183: =IF(A183>$B$30,NA(),IF(A183>$A$8,"",OFFSET(InputPriceData!$F$15,CalculationsAndCharts!$A183+$A$11,IF($C$5,8,0),1,1))) -> 1008.01 | H183: 948.7629673 | I183: 985.3336231 | J183: -36.57065578 | K183: 1193.099966 | L183: 34.54127916 | M183: 983.3042465 | N183: 914.2216882 | O183: 7.281329553 | P183: 4.363115905 | AW183: 945100000
A184: 152 | B184: =IF(A184>$B$30,NA(),IF($A184>$A$8,"",OFFSET(InputPriceData!$B$15,$A184+$A$11,0,1,1))) -> 2003-08-28 | C184: =IF(A184>$B$30,NA(),IF($A184>$A$8,"",OFFSET(InputPriceData!$G$15,CalculationsAndCharts!$A184+$A$11,IF($C$5,8,0),1,1))) -> 1165200000 | D184: =IF(A184>$B$30,NA(),IF(A184>$A$8,"",OFFSET(InputPriceData!$C$15,CalculationsAndCharts!$A184+$A$11,IF($C$5,8,0),1,1))) -> 996.79 | E184: =IF(A184>$B$30,NA(),IF(A184>$A$8,"",OFFSET(InputPriceData!$D$15,CalculationsAndCharts!$A184+$A$11,IF($C$5,8,0),1,1))) -> 1004.12 | F184: =IF(A184>$B$30,NA(),IF(A184>$A$8,"",OFFSET(InputPriceData!$E$15,CalculationsAndCharts!$A184+$A$11,IF($C$5,8,0),1,1))) -> 991.42 | G184: =IF(A184>$B$30,NA(),IF(A184>$A$8,"",OFFSET(InputPriceData!$F$15,CalculationsAndCharts!$A184+$A$11,IF($C$5,8,0),1,1))) -> 1002.84 | H184: 948.1675198 | I184: 984.4080567 | J184: -36.24053694 | K184: 1178.477466 | L184: 34.32895958 | M184: 982.4964794 | N184: 913.8385602 | O184: 7.241116969 | P184: 4.363115905 | AW184: 1165200000
A185: 153 | B185: =IF(A185>$B$30,NA(),IF($A185>$A$8,"",OFFSET(InputPriceData!$B$15,$A185+$A$11,0,1,1))) -> 2003-08-27 | C185: =IF(A185>$B$30,NA(),IF($A185>$A$8,"",OFFSET(InputPriceData!$G$15,CalculationsAndCharts!$A185+$A$11,IF($C$5,8,0),1,1))) -> 1051400000 | D185: =IF(A185>$B$30,NA(),IF(A185>$A$8,"",OFFSET(InputPriceData!$C$15,CalculationsAndCharts!$A185+$A$11,IF($C$5,8,0),1,1))) -> 996.73 | E185: =IF(A185>$B$30,NA(),IF(A185>$A$8,"",OFFSET(InputPriceData!$D$15,CalculationsAndCharts!$A185+$A$11,IF($C$5,8,0),1,1))) -> 998.05 | F185: =IF(A185>$B$30,NA(),IF(A185>$A$8,"",OFFSET(InputPriceData!$E$15,CalculationsAndCharts!$A185+$A$11,IF($C$5,8,0),1,1))) -> 993.33 | G185: =IF(A185>$B$30,NA(),IF(A185>$A$8,"",OFFSET(InputPriceData!$F$15,CalculationsAndCharts!$A185+$A$11,IF($C$5,8,0),1,1))) -> 996.79 | H185: 947.6180476 | I185: 983.6557325 | J185: -36.03768489 | K185: 1163.151054 | L185: 34.10500042 | M185: 981.723048 | N185: 913.5130472 | O185: 7.198047886 | P185: 4.363115905 | AW185: 1051400000
A186: 154 | B186: =IF(A186>$B$30,NA(),IF($A186>$A$8,"",OFFSET(InputPriceData!$B$15,$A186+$A$11,0,1,1))) -> 2003-08-26 | C186: =IF(A186>$B$30,NA(),IF($A186>$A$8,"",OFFSET(InputPriceData!$G$15,CalculationsAndCharts!$A186+$A$11,IF($C$5,8,0),1,1))) -> 1178700000 | D186: =IF(A186>$B$30,NA(),IF(A186>$A$8,"",OFFSET(InputPriceData!$C$15,CalculationsAndCharts!$A186+$A$11,IF($C$5,8,0),1,1))) -> 993.71 | E186: =IF(A186>$B$30,NA(),IF(A186>$A$8,"",OFFSET(InputPriceData!$D$15,CalculationsAndCharts!$A186+$A$11,IF($C$5,8,0),1,1))) -> 997.93 | F186: =IF(A186>$B$30,NA(),IF(A186>$A$8,"",OFFSET(InputPriceData!$E$15,CalculationsAndCharts!$A186+$A$11,IF($C$5,8,0),1,1))) -> 983.57 | G186: =IF(A186>$B$30,NA(),IF(A186>$A$8,"",OFFSET(InputPriceData!$F$15,CalculationsAndCharts!$A186+$A$11,IF($C$5,8,0),1,1))) -> 996.73 | H186: 947.1238571 | I186: 983.1196399 | J186: -35.99578281 | K186: 1146.515905 | L186: 33.86024077 | M186: 980.9840979 | N186: 913.2636164 | O186: 7.150118861 | P186: 4.363115905 | AW186: 1178700000
A187: 155 | B187: =IF(A187>$B$30,NA(),IF($A187>$A$8,"",OFFSET(InputPriceData!$B$15,$A187+$A$11,0,1,1))) -> 2003-08-25 | C187: =IF(A187>$B$30,NA(),IF($A187>$A$8,"",OFFSET(InputPriceData!$G$15,CalculationsAndCharts!$A187+$A$11,IF($C$5,8,0),1,1))) -> 971700000 | D187: =IF(A187>$B$30,NA(),IF(A187>$A$8,"",OFFSET(InputPriceData!$C$15,CalculationsAndCharts!$A187+$A$11,IF($C$5,8,0),1,1))) -> 993.06 | E187: =IF(A187>$B$30,NA(),IF(A187>$A$8,"",OFFSET(InputPriceData!$D$15,CalculationsAndCharts!$A187+$A$11,IF($C$5,8,0),1,1))) -> 993.71 | F187: =IF(A187>$B$30,NA(),IF(A187>$A$8,"",OFFSET(InputPriceData!$E$15,CalculationsAndCharts!$A187+$A$11,IF($C$5,8,0),1,1))) -> 987.91 | G187: =IF(A187>$B$30,NA(),IF(A187>$A$8,"",OFFSET(InputPriceData!$F$15,CalculationsAndCharts!$A187+$A$11,IF($C$5,8,0),1,1))) -> 993.71 | H187: 946.6253029 | I187: 982.564115 | J187: -35.93881211 | K187: 1128.348594 | L187: 33.59090047 | M187: 980.2162034 | N187: 913.0344025 | O187: 7.096979209 | P187: 4.363115905 | AW187: 971700000
A188: 156 | B188: =IF(A188>$B$30,NA(),IF($A188>$A$8,"",OFFSET(InputPriceData!$B$15,$A188+$A$11,0,1,1))) -> 2003-08-22 | C188: =IF(A188>$B$30,NA(),IF($A188>$A$8,"",OFFSET(InputPriceData!$G$15,CalculationsAndCharts!$A188+$A$11,IF($C$5,8,0),1,1))) -> 1308900000 | D188: =IF(A188>$B$30,NA(),IF(A188>$A$8,"",OFFSET(InputPriceData!$C$15,CalculationsAndCharts!$A188+$A$11,IF($C$5,8,0),1,1))) -> 1003.27 | E188: =IF(A188>$B$30,NA(),IF(A188>$A$8,"",OFFSET(InputPriceData!$D$15,CalculationsAndCharts!$A188+$A$11,IF($C$5,8,0),1,1))) -> 1011.01 | F188: =IF(A188>$B$30,NA(),IF(A188>$A$8,"",OFFSET(InputPriceData!$E$15,CalculationsAndCharts!$A188+$A$11,IF($C$5,8,0),1,1))) -> 992.62 | G188: =IF(A188>$B$30,NA(),IF(A188>$A$8,"",OFFSET(InputPriceData!$F$15,CalculationsAndCharts!$A188+$A$11,IF($C$5,8,0),1,1))) -> 993.06 | H188: 946.1520899 | I188: 982.109181 | J188: -35.95709107 | K188: 1108.763749 | L188: 33.29810429 | M188: 979.4501942 | N188: 912.8539856 | O188: 7.038636736 | P188: 4.363115905 | AX188: 1308900000
A189: 157 | B189: =IF(A189>$B$30,NA(),IF($A189>$A$8,"",OFFSET(InputPriceData!$B$15,$A189+$A$11,0,1,1))) -> 2003-08-21 | C189: =IF(A189>$B$30,NA(),IF($A189>$A$8,"",OFFSET(InputPriceData!$G$15,CalculationsAndCharts!$A189+$A$11,IF($C$5,8,0),1,1))) -> 1407100000 | D189: =IF(A189>$B$30,NA(),IF(A189>$A$8,"",OFFSET(InputPriceData!$C$15,CalculationsAndCharts!$A189+$A$11,IF($C$5,8,0),1,1))) -> 1000.3 | E189: =IF(A189>$B$30,NA(),IF(A189>$A$8,"",OFFSET(InputPriceData!$D$15,CalculationsAndCharts!$A189+$A$11,IF($C$5,8,0),1,1))) -> 1009.53 | F189: =IF(A189>$B$30,NA(),IF(A189>$A$8,"",OFFSET(InputPriceData!$E$15,CalculationsAndCharts!$A189+$A$11,IF($C$5,8,0),1,1))) -> 999.33 | G189: =IF(A189>$B$30,NA(),IF(A189>$A$8,"",OFFSET(InputPriceData!$F$15,CalculationsAndCharts!$A189+$A$11,IF($C$5,8,0),1,1))) -> 1003.27 | H189: 945.6806536 | I189: 981.6622088 | J189: -35.98155514 | K189: 1088.178404 | L189: 32.98754922 | M189: 978.6682028 | N189: 912.6931044 | O189: 6.97646697 | P189: 4.363115905 | AW189: 1407100000
A190: 158 | B190: =IF(A190>$B$30,NA(),IF($A190>$A$8,"",OFFSET(InputPriceData!$B$15,$A190+$A$11,0,1,1))) -> 2003-08-20 | C190: =IF(A190>$B$30,NA(),IF($A190>$A$8,"",OFFSET(InputPriceData!$G$15,CalculationsAndCharts!$A190+$A$11,IF($C$5,8,0),1,1))) -> 1210800000 | D190: =IF(A190>$B$30,NA(),IF(A190>$A$8,"",OFFSET(InputPriceData!$C$15,CalculationsAndCharts!$A190+$A$11,IF($C$5,8,0),1,1))) -> 1002.35 | E190: =IF(A190>$B$30,NA(),IF(A190>$A$8,"",OFFSET(InputPriceData!$D$15,CalculationsAndCharts!$A190+$A$11,IF($C$5,8,0),1,1))) -> 1003.54 | F190: =IF(A190>$B$30,NA(),IF(A190>$A$8,"",OFFSET(InputPriceData!$E$15,CalculationsAndCharts!$A190+$A$11,IF($C$5,8,0),1,1))) -> 996.62 | G190: =IF(A190>$B$30,NA(),IF(A190>$A$8,"",OFFSET(InputPriceData!$F$15,CalculationsAndCharts!$A190+$A$11,IF($C$5,8,0),1,1))) -> 1000.3 | H190: 945.1018662 | I190: 980.7802581 | J190: -35.67839188 | K190: 1066.441268 | L190: 32.65641236 | M190: 977.7582786 | N190: 912.4454539 | O190: 6.910665088 | P190: 4.363115905 | AX190: 1210800000
A191: 159 | B191: =IF(A191>$B$30,NA(),IF($A191>$A$8,"",OFFSET(InputPriceData!$B$15,$A191+$A$11,0,1,1))) -> 2003-08-19 | C191: =IF(A191>$B$30,NA(),IF($A191>$A$8,"",OFFSET(InputPriceData!$G$15,CalculationsAndCharts!$A191+$A$11,IF($C$5,8,0),1,1))) -> 1300600000 | D191: =IF(A191>$B$30,NA(),IF(A191>$A$8,"",OFFSET(InputPriceData!$C$15,CalculationsAndCharts!$A191+$A$11,IF($C$5,8,0),1,1))) -> 999.74 | E191: =IF(A191>$B$30,NA(),IF(A191>$A$8,"",OFFSET(InputPriceData!$D$15,CalculationsAndCharts!$A191+$A$11,IF($C$5,8,0),1,1))) -> 1003.3 | F191: =IF(A191>$B$30,NA(),IF(A191>$A$8,"",OFFSET(InputPriceData!$E$15,CalculationsAndCharts!$A191+$A$11,IF($C$5,8,0),1,1))) -> 995.3 | G191: =IF(A191>$B$30,NA(),IF(A191>$A$8,"",OFFSET(InputPriceData!$F$15,CalculationsAndCharts!$A191+$A$11,IF($C$5,8,0),1,1))) -> 1002.35 | H191: 944.5471111 | I191: 979.9835339 | J191: -35.43642284 | K191: 1044.120753 | L191: 32.3128574 | M191: 976.8599685 | N191: 912.2342537 | O191: 6.84197898 | P191: 4.363115905 | AW191: 1300600000
A192: 160 | B192: =IF(A192>$B$30,NA(),IF($A192>$A$8,"",OFFSET(InputPriceData!$B$15,$A192+$A$11,0,1,1))) -> 2003-08-18 | C192: =IF(A192>$B$30,NA(),IF($A192>$A$8,"",OFFSET(InputPriceData!$G$15,CalculationsAndCharts!$A192+$A$11,IF($C$5,8,0),1,1))) -> 1127600000 | D192: =IF(A192>$B$30,NA(),IF(A192>$A$8,"",OFFSET(InputPriceData!$C$15,CalculationsAndCharts!$A192+$A$11,IF($C$5,8,0),1,1))) -> 990.67 | E192: =IF(A192>$B$30,NA(),IF(A192>$A$8,"",OFFSET(InputPriceData!$D$15,CalculationsAndCharts!$A192+$A$11,IF($C$5,8,0),1,1))) -> 1000.35 | F192: =IF(A192>$B$30,NA(),IF(A192>$A$8,"",OFFSET(InputPriceData!$E$15,CalculationsAndCharts!$A192+$A$11,IF($C$5,8,0),1,1))) -> 990.67 | G192: =IF(A192>$B$30,NA(),IF(A192>$A$8,"",OFFSET(InputPriceData!$F$15,CalculationsAndCharts!$A192+$A$11,IF($C$5,8,0),1,1))) -> 999.74 | H192: 943.9661775 | I192: 979.0706169 | J192: -35.10443941 | K192: 1021.392964 | L192: 31.95923911 | M192: 975.9254166 | N192: 912.0069384 | O192: 6.771267842 | P192: 4.363115905 | AW192: 1127600000
A193: 161 | B193: =IF(A193>$B$30,NA(),IF($A193>$A$8,"",OFFSET(InputPriceData!$B$15,$A193+$A$11,0,1,1))) -> 2003-08-15 | C193: =IF(A193>$B$30,NA(),IF($A193>$A$8,"",OFFSET(InputPriceData!$G$15,CalculationsAndCharts!$A193+$A$11,IF($C$5,8,0),1,1))) -> 636370000 | D193: =IF(A193>$B$30,NA(),IF(A193>$A$8,"",OFFSET(InputPriceData!$C$15,CalculationsAndCharts!$A193+$A$11,IF($C$5,8,0),1,1))) -> 990.51 | E193: =IF(A193>$B$30,NA(),IF(A193>$A$8,"",OFFSET(InputPriceData!$D$15,CalculationsAndCharts!$A193+$A$11,IF($C$5,8,0),1,1))) -> 992.39 | F193: =IF(A193>$B$30,NA(),IF(A193>$A$8,"",OFFSET(InputPriceData!$E$15,CalculationsAndCharts!$A193+$A$11,IF($C$5,8,0),1,1))) -> 987.1 | G193: =IF(A193>$B$30,NA(),IF(A193>$A$8,"",OFFSET(InputPriceData!$F$15,CalculationsAndCharts!$A193+$A$11,IF($C$5,8,0),1,1))) -> 990.67 | H193: 943.4056366 | I193: 978.2269687 | J193: -34.82133205 | K193: 998.5554051 | L193: 31.5999273 | M193: 975.0055639 | N193: 911.8057093 | O193: 6.699117764 | P193: 4.363115905 | AW193: 636370000
A194: 162 | B194: =IF(A194>$B$30,NA(),IF($A194>$A$8,"",OFFSET(InputPriceData!$B$15,$A194+$A$11,0,1,1))) -> 2003-08-14 | C194: =IF(A194>$B$30,NA(),IF($A194>$A$8,"",OFFSET(InputPriceData!$G$15,CalculationsAndCharts!$A194+$A$11,IF($C$5,8,0),1,1))) -> 1186800000 | D194: =IF(A194>$B$30,NA(),IF(A194>$A$8,"",OFFSET(InputPriceData!$C$15,CalculationsAndCharts!$A194+$A$11,IF($C$5,8,0),1,1))) -> 984.03 | E194: =IF(A194>$B$30,NA(),IF(A194>$A$8,"",OFFSET(InputPriceData!$D$15,CalculationsAndCharts!$A194+$A$11,IF($C$5,8,0),1,1))) -> 991.91 | F194: =IF(A194>$B$30,NA(),IF(A194>$A$8,"",OFFSET(InputPriceData!$E$15,CalculationsAndCharts!$A194+$A$11,IF($C$5,8,0),1,1))) -> 980.36 | G194: =IF(A194>$B$30,NA(),IF(A194>$A$8,"",OFFSET(InputPriceData!$F$15,CalculationsAndCharts!$A194+$A$11,IF($C$5,8,0),1,1))) -> 990.51 | H194: 942.9306179 | I194: 977.7190898 | J194: -34.78847195 | K194: 975.4769462 | L194: 31.23262631 | M194: 974.1632442 | N194: 911.6979916 | O194: 6.624586309 | P194: 4.363115905 | AW194: 1186800000
A195: 163 | B195: =IF(A195>$B$30,NA(),IF($A195>$A$8,"",OFFSET(InputPriceData!$B$15,$A195+$A$11,0,1,1))) -> 2003-08-13 | C195: =IF(A195>$B$30,NA(),IF($A195>$A$8,"",OFFSET(InputPriceData!$G$15,CalculationsAndCharts!$A195+$A$11,IF($C$5,8,0),1,1))) -> 1208800000 | D195: =IF(A195>$B$30,NA(),IF(A195>$A$8,"",OFFSET(InputPriceData!$C$15,CalculationsAndCharts!$A195+$A$11,IF($C$5,8,0),1,1))) -> 990.35 | E195: =IF(A195>$B$30,NA(),IF(A195>$A$8,"",OFFSET(InputPriceData!$D$15,CalculationsAndCharts!$A195+$A$11,IF($C$5,8,0),1,1))) -> 992.5 | F195: =IF(A195>$B$30,NA(),IF(A195>$A$8,"",OFFSET(InputPriceData!$E$15,CalculationsAndCharts!$A195+$A$11,IF($C$5,8,0),1,1))) -> 980.85 | G195: =IF(A195>$B$30,NA(),IF(A195>$A$8,"",OFFSET(InputPriceData!$F$15,CalculationsAndCharts!$A195+$A$11,IF($C$5,8,0),1,1))) -> 984.03 | H195: 942.4524331 | I195: 977.1970119 | J195: -34.74457873 | K195: 951.9058465 | L195: 30.85297144 | M195: 973.3054046 | N195: 911.5994617 | O195: 6.54738008 | P195: 4.363115905 | AX195: 1208800000
A196: 164 | B196: =IF(A196>$B$30,NA(),IF($A196>$A$8,"",OFFSET(InputPriceData!$B$15,$A196+$A$11,0,1,1))) -> 2003-08-12 | C196: =IF(A196>$B$30,NA(),IF($A196>$A$8,"",OFFSET(InputPriceData!$G$15,CalculationsAndCharts!$A196+$A$11,IF($C$5,8,0),1,1))) -> 1132300000 | D196: =IF(A196>$B$30,NA(),IF(A196>$A$8,"",OFFSET(InputPriceData!$C$15,CalculationsAndCharts!$A196+$A$11,IF($C$5,8,0),1,1))) -> 980.59 | E196: =IF(A196>$B$30,NA(),IF(A196>$A$8,"",OFFSET(InputPriceData!$D$15,CalculationsAndCharts!$A196+$A$11,IF($C$5,8,0),1,1))) -> 990.41 | F196: =IF(A196>$B$30,NA(),IF(A196>$A$8,"",OFFSET(InputPriceData!$E$15,CalculationsAndCharts!$A196+$A$11,IF($C$5,8,0),1,1))) -> 979.9 | G196: =IF(A196>$B$30,NA(),IF(A196>$A$8,"",OFFSET(InputPriceData!$F$15,CalculationsAndCharts!$A196+$A$11,IF($C$5,8,0),1,1))) -> 990.35 | H196: 942.0345681 | I196: 976.9181144 | J196: -34.88354625 | K196: 928.0236484 | L196: 30.46348057 | M196: 972.4980487 | N196: 911.5710876 | O196: 6.467592931 | P196: 4.363115905 | AW196: 1132300000
A197: 165 | B197: =IF(A197>$B$30,NA(),IF($A197>$A$8,"",OFFSET(InputPriceData!$B$15,$A197+$A$11,0,1,1))) -> 2003-08-11 | C197: =IF(A197>$B$30,NA(),IF($A197>$A$8,"",OFFSET(InputPriceData!$G$15,CalculationsAndCharts!$A197+$A$11,IF($C$5,8,0),1,1))) -> 1022200000 | D197: =IF(A197>$B$30,NA(),IF(A197>$A$8,"",OFFSET(InputPriceData!$C$15,CalculationsAndCharts!$A197+$A$11,IF($C$5,8,0),1,1))) -> 977.59 | E197: =IF(A197>$B$30,NA(),IF(A197>$A$8,"",OFFSET(InputPriceData!$D$15,CalculationsAndCharts!$A197+$A$11,IF($C$5,8,0),1,1))) -> 985.46 | F197: =IF(A197>$B$30,NA(),IF(A197>$A$8,"",OFFSET(InputPriceData!$E$15,CalculationsAndCharts!$A197+$A$11,IF($C$5,8,0),1,1))) -> 974.21 | G197: =IF(A197>$B$30,NA(),IF(A197>$A$8,"",OFFSET(InputPriceData!$F$15,CalculationsAndCharts!$A197+$A$11,IF($C$5,8,0),1,1))) -> 980.59 | H197: 941.5489859 | I197: 976.3698742 | J197: -34.82088825 | K197: 903.7624873 | L197: 30.06264272 | M197: 971.6116286 | N197: 911.4863432 | O197: 6.3857841 | P197: 4.363115905 | AW197: 1022200000
A198: 166 | B198: =IF(A198>$B$30,NA(),IF($A198>$A$8,"",OFFSET(InputPriceData!$B$15,$A198+$A$11,0,1,1))) -> 2003-08-08 | C198: =IF(A198>$B$30,NA(),IF($A198>$A$8,"",OFFSET(InputPriceData!$G$15,CalculationsAndCharts!$A198+$A$11,IF($C$5,8,0),1,1))) -> 1086600000 | D198: =IF(A198>$B$30,NA(),IF(A198>$A$8,"",OFFSET(InputPriceData!$C$15,CalculationsAndCharts!$A198+$A$11,IF($C$5,8,0),1,1))) -> 974.12 | E198: =IF(A198>$B$30,NA(),IF(A198>$A$8,"",OFFSET(InputPriceData!$D$15,CalculationsAndCharts!$A198+$A$11,IF($C$5,8,0),1,1))) -> 980.57 | F198: =IF(A198>$B$30,NA(),IF(A198>$A$8,"",OFFSET(InputPriceData!$E$15,CalculationsAndCharts!$A198+$A$11,IF($C$5,8,0),1,1))) -> 973.83 | G198: =IF(A198>$B$30,NA(),IF(A198>$A$8,"",OFFSET(InputPriceData!$F$15,CalculationsAndCharts!$A198+$A$11,IF($C$5,8,0),1,1))) -> 977.59 | H198: 941.1566139 | I198: 976.1976241 | J198: -35.04101021 | K198: 879.514896 | L198: 29.65661639 | M198: 970.8132303 | N198: 911.4999975 | O198: 6.302163945 | P198: 4.363115905 | AW198: 1086600000
A199: 167 | B199: =IF(A199>$B$30,NA(),IF($A199>$A$8,"",OFFSET(InputPriceData!$B$15,$A199+$A$11,0,1,1))) -> 2003-08-07 | C199: =IF(A199>$B$30,NA(),IF($A199>$A$8,"",OFFSET(InputPriceData!$G$15,CalculationsAndCharts!$A199+$A$11,IF($C$5,8,0),1,1))) -> 1389300000 | D199: =IF(A199>$B$30,NA(),IF(A199>$A$8,"",OFFSET(InputPriceData!$C$15,CalculationsAndCharts!$A199+$A$11,IF($C$5,8,0),1,1))) -> 967.08 | E199: =IF(A199>$B$30,NA(),IF(A199>$A$8,"",OFFSET(InputPriceData!$D$15,CalculationsAndCharts!$A199+$A$11,IF($C$5,8,0),1,1))) -> 974.89 | F199: =IF(A199>$B$30,NA(),IF(A199>$A$8,"",OFFSET(InputPriceData!$E$15,CalculationsAndCharts!$A199+$A$11,IF($C$5,8,0),1,1))) -> 963.82 | G199: =IF(A199>$B$30,NA(),IF(A199>$A$8,"",OFFSET(InputPriceData!$F$15,CalculationsAndCharts!$A199+$A$11,IF($C$5,8,0),1,1))) -> 974.12 | H199: 940.7904492 | I199: 976.1407925 | J199: -35.35034323 | K199: 854.988741 | L199: 29.24019051 | M199: 970.0306397 | N199: 911.5502587 | O199: 6.216089998 | P199: 4.363115905 | AW199: 1389300000
A200: 168 | B200: =IF(A200>$B$30,NA(),IF($A200>$A$8,"",OFFSET(InputPriceData!$B$15,$A200+$A$11,0,1,1))) -> 2003-08-06 | C200: =IF(A200>$B$30,NA(),IF($A200>$A$8,"",OFFSET(InputPriceData!$G$15,CalculationsAndCharts!$A200+$A$11,IF($C$5,8,0),1,1))) -> 1491000000 | D200: =IF(A200>$B$30,NA(),IF(A200>$A$8,"",OFFSET(InputPriceData!$C$15,CalculationsAndCharts!$A200+$A$11,IF($C$5,8,0),1,1))) -> 965.46 | E200: =IF(A200>$B$30,NA(),IF(A200>$A$8,"",OFFSET(InputPriceData!$D$15,CalculationsAndCharts!$A200+$A$11,IF($C$5,8,0),1,1))) -> 975.74 | F200: =IF(A200>$B$30,NA(),IF(A200>$A$8,"",OFFSET(InputPriceData!$E$15,CalculationsAndCharts!$A200+$A$11,IF($C$5,8,0),1,1))) -> 960.84 | G200: =IF(A200>$B$30,NA(),IF(A200>$A$8,"",OFFSET(InputPriceData!$F$15,CalculationsAndCharts!$A200+$A$11,IF($C$5,8,0),1,1))) -> 967.08 | H200: 940.4554789 | I200: 976.2232738 | J200: -35.76779492 | K200: 830.1200257 | L200: 28.81180358 | M200: 969.2672825 | N200: 911.6436753 | O200: 6.127202027 | P200: 4.363115905 | AW200: 1491000000
A201: 169 | B201: =IF(A201>$B$30,NA(),IF($A201>$A$8,"",OFFSET(InputPriceData!$B$15,$A201+$A$11,0,1,1))) -> 2003-08-05 | C201: =IF(A201>$B$30,NA(),IF($A201>$A$8,"",OFFSET(InputPriceData!$G$15,CalculationsAndCharts!$A201+$A$11,IF($C$5,8,0),1,1))) -> 1351700000 | D201: =IF(A201>$B$30,NA(),IF(A201>$A$8,"",OFFSET(InputPriceData!$C$15,CalculationsAndCharts!$A201+$A$11,IF($C$5,8,0),1,1))) -> 982.82 | E201: =IF(A201>$B$30,NA(),IF(A201>$A$8,"",OFFSET(InputPriceData!$D$15,CalculationsAndCharts!$A201+$A$11,IF($C$5,8,0),1,1))) -> 982.82 | F201: =IF(A201>$B$30,NA(),IF(A201>$A$8,"",OFFSET(InputPriceData!$E$15,CalculationsAndCharts!$A201+$A$11,IF($C$5,8,0),1,1))) -> 964.97 | G201: =IF(A201>$B$30,NA(),IF(A201>$A$8,"",OFFSET(InputPriceData!$F$15,CalculationsAndCharts!$A201+$A$11,IF($C$5,8,0),1,1))) -> 965.46 | H201: 940.1878957 | I201: 976.5964686 | J201: -36.40857289 | K201: 804.8385043 | L201: 28.36967579 | M201: 968.5575715 | N201: 911.81822 | O201: 6.034894922 | P201: 4.363115905 | AX201: 1351700000
A202: 170 | B202: =IF(A202>$B$30,NA(),IF($A202>$A$8,"",OFFSET(InputPriceData!$B$15,$A202+$A$11,0,1,1))) -> 2003-08-04 | C202: =IF(A202>$B$30,NA(),IF($A202>$A$8,"",OFFSET(InputPriceData!$G$15,CalculationsAndCharts!$A202+$A$11,IF($C$5,8,0),1,1))) -> 1318700000 | D202: =IF(A202>$B$30,NA(),IF(A202>$A$8,"",OFFSET(InputPriceData!$C$15,CalculationsAndCharts!$A202+$A$11,IF($C$5,8,0),1,1))) -> 980.15 | E202: =IF(A202>$B$30,NA(),IF(A202>$A$8,"",OFFSET(InputPriceData!$D$15,CalculationsAndCharts!$A202+$A$11,IF($C$5,8,0),1,1))) -> 985.75 | F202: =IF(A202>$B$30,NA(),IF(A202>$A$8,"",OFFSET(InputPriceData!$E$15,CalculationsAndCharts!$A202+$A$11,IF($C$5,8,0),1,1))) -> 966.79 | G202: =IF(A202>$B$30,NA(),IF(A202>$A$8,"",OFFSET(InputPriceData!$F$15,CalculationsAndCharts!$A202+$A$11,IF($C$5,8,0),1,1))) -> 982.82 | H202: 939.9339047 | I202: 977.0510184 | J202: -37.11711363 | K202: 778.8966549 | L202: 27.90872005 | M202: 967.8426248 | N202: 912.0251847 | O202: 5.938443099 | P202: 4.363115905 | AW202: 1318700000
A203: 171 | B203: =IF(A203>$B$30,NA(),IF($A203>$A$8,"",OFFSET(InputPriceData!$B$15,$A203+$A$11,0,1,1))) -> 2003-08-01 | C203: =IF(A203>$B$30,NA(),IF($A203>$A$8,"",OFFSET(InputPriceData!$G$15,CalculationsAndCharts!$A203+$A$11,IF($C$5,8,0),1,1))) -> 1390600000 | D203: =IF(A203>$B$30,NA(),IF(A203>$A$8,"",OFFSET(InputPriceData!$C$15,CalculationsAndCharts!$A203+$A$11,IF($C$5,8,0),1,1))) -> 990.31 | E203: =IF(A203>$B$30,NA(),IF(A203>$A$8,"",OFFSET(InputPriceData!$D$15,CalculationsAndCharts!$A203+$A$11,IF($C$5,8,0),1,1))) -> 990.31 | F203: =IF(A203>$B$30,NA(),IF(A203>$A$8,"",OFFSET(InputPriceData!$E$15,CalculationsAndCharts!$A203+$A$11,IF($C$5,8,0),1,1))) -> 978.86 | G203: =IF(A203>$B$30,NA(),IF(A203>$A$8,"",OFFSET(InputPriceData!$F$15,CalculationsAndCharts!$A203+$A$11,IF($C$5,8,0),1,1))) -> 980.15 | H203: 939.5028887 | I203: 976.8155497 | J203: -37.31266102 | K203: 752.1314841 | L203: 27.42501566 | M203: 966.9279044 | N203: 912.077873 | O203: 5.838197198 | P203: 4.363115905 | AX203: 1390600000
A204: 172 | B204: =IF(A204>$B$30,NA(),IF($A204>$A$8,"",OFFSET(InputPriceData!$B$15,$A204+$A$11,0,1,1))) -> 2003-07-31 | C204: =IF(A204>$B$30,NA(),IF($A204>$A$8,"",OFFSET(InputPriceData!$G$15,CalculationsAndCharts!$A204+$A$11,IF($C$5,8,0),1,1))) -> 1608000000 | D204: =IF(A204>$B$30,NA(),IF(A204>$A$8,"",OFFSET(InputPriceData!$C$15,CalculationsAndCharts!$A204+$A$11,IF($C$5,8,0),1,1))) -> 987.49 | E204: =IF(A204>$B$30,NA(),IF(A204>$A$8,"",OFFSET(InputPriceData!$D$15,CalculationsAndCharts!$A204+$A$11,IF($C$5,8,0),1,1))) -> 1004.59 | F204: =IF(A204>$B$30,NA(),IF(A204>$A$8,"",OFFSET(InputPriceData!$E$15,CalculationsAndCharts!$A204+$A$11,IF($C$5,8,0),1,1))) -> 987.49 | G204: =IF(A204>$B$30,NA(),IF(A204>$A$8,"",OFFSET(InputPriceData!$F$15,CalculationsAndCharts!$A204+$A$11,IF($C$5,8,0),1,1))) -> 990.31 | H204: 939.094375 | I204: 976.6794497 | J204: -37.58507469 | K204: 725.3304263 | L204: 26.9319592 | M204: 966.0263342 | N204: 912.1624158 | O204: 5.735730064 | P204: 4.363115905 | AW204: 1608000000
A205: 173 | B205: =IF(A205>$B$30,NA(),IF($A205>$A$8,"",OFFSET(InputPriceData!$B$15,$A205+$A$11,0,1,1))) -> 2003-07-30 | C205: =IF(A205>$B$30,NA(),IF($A205>$A$8,"",OFFSET(InputPriceData!$G$15,CalculationsAndCharts!$A205+$A$11,IF($C$5,8,0),1,1))) -> 1391900000 | D205: =IF(A205>$B$30,NA(),IF(A205>$A$8,"",OFFSET(InputPriceData!$C$15,CalculationsAndCharts!$A205+$A$11,IF($C$5,8,0),1,1))) -> 989.28 | E205: =IF(A205>$B$30,NA(),IF(A205>$A$8,"",OFFSET(InputPriceData!$D$15,CalculationsAndCharts!$A205+$A$11,IF($C$5,8,0),1,1))) -> 992.62 | F205: =IF(A205>$B$30,NA(),IF(A205>$A$8,"",OFFSET(InputPriceData!$E$15,CalculationsAndCharts!$A205+$A$11,IF($C$5,8,0),1,1))) -> 985.96 | G205: =IF(A205>$B$30,NA(),IF(A205>$A$8,"",OFFSET(InputPriceData!$F$15,CalculationsAndCharts!$A205+$A$11,IF($C$5,8,0),1,1))) -> 987.49 | H205: 938.5796451 | I205: 976.1231007 | J205: -37.5434556 | K205: 698.3430722 | L205: 26.42618157 | M205: 965.0058267 | N205: 912.1534636 | O205: 5.631100504 | P205: 4.363115905 | AX205: 1391900000
A206: 174 | B206: =IF(A206>$B$30,NA(),IF($A206>$A$8,"",OFFSET(InputPriceData!$B$15,$A206+$A$11,0,1,1))) -> 2003-07-29 | C206: =IF(A206>$B$30,NA(),IF($A206>$A$8,"",OFFSET(InputPriceData!$G$15,CalculationsAndCharts!$A206+$A$11,IF($C$5,8,0),1,1))) -> 1508900000 | D206: =IF(A206>$B$30,NA(),IF(A206>$A$8,"",OFFSET(InputPriceData!$C$15,CalculationsAndCharts!$A206+$A$11,IF($C$5,8,0),1,1))) -> 996.52 | E206: =IF(A206>$B$30,NA(),IF(A206>$A$8,"",OFFSET(InputPriceData!$D$15,CalculationsAndCharts!$A206+$A$11,IF($C$5,8,0),1,1))) -> 998.64 | F206: =IF(A206>$B$30,NA(),IF(A206>$A$8,"",OFFSET(InputPriceData!$E$15,CalculationsAndCharts!$A206+$A$11,IF($C$5,8,0),1,1))) -> 984.15 | G206: =IF(A206>$B$30,NA(),IF(A206>$A$8,"",OFFSET(InputPriceData!$F$15,CalculationsAndCharts!$A206+$A$11,IF($C$5,8,0),1,1))) -> 989.28 | H206: 938.0880838 | I206: 975.6591457 | J206: -37.57106189 | K206: 671.6339366 | L206: 25.91590123 | M206: 964.003985 | N206: 912.1721825 | O206: 5.525259659 | P206: 4.363115905 | AX206: 1508900000
... 919 more rows

Sheet Follow
A1: Stocks and Indexes I wish to follow
A3: To ease following a stock, enter a Yahoo Finance acceptable symbol in column "A" anywhere below cell "A9".
A4: Thereafter you may doubleclick the cell containing a symbol of interest to initiate data retrieval and charting for that symbol.
A7: Symbol
A8: To | B8: Description | C8: Last Trade as of most recent check
A9: Follow | C9: Date | D9: Time | E9: Open | F9: High | G9: Low | H9: Close | I9: Volume | J9: Change | K9: Retrieved @
A10: A | B10: Agilent Technologies, Inc. (A) -NYSE (Daily) | C10: 2020-03-09 | D10: 16:04:00 | E10: 72.589996 | F10: 74.190002 | G10: 70.169998 | H10: 70.75 | I10: 4591093 | J10: -7.809998 | K10: 2020-03-09T16:59:21
A11: AA | B11: Alcoa Corporation (AA) -NYSE (Daily) | C11: 2020-01-31 | D11: 16:04:00 | E11: 14.01 | F11: 14.24 | G11: 13.62 | H11: 13.95 | I11: 9931500 | J11: -0.34 | K11: 2020-02-02T15:07:13
A12: AAL | B12: American Airlines Group Inc. (AAL) -NasdaqGS (Daily) | C12: 2020-03-09 | D12: 16:00:00 | E12: 14.87 | F12: 15.79 | G12: 14.46 | H12: 14.75 | I12: 41078614 | J12: -1.22 | K12: 2020-03-09T17:00:15
A13: AAPL | B13: Apple Inc. (AAPL) -NasdaqGS (Daily) | C13: 2020-06-17 | D13: 16:00:00 | E13: 355.149994 | F13: 355.369995 | G13: 351.089996 | H13: 351.589996 | I13: 27604481 | J13: -0.489991 | K13: 2020-06-17T17:45:34
A14: ADM | B14: Archer-Daniels-Midland Company (ADM) -NYSE (Weekly) | C14: 2018-07-13 | D14: 16:00:00 | E14: 47.5 | F14: 47.84 | G14: 47.169998 | H14: 47.57 | I14: 2402809 | J14: 0
A15: ADBE | B15: Adobe Inc. (ADBE) -NasdaqGS (Daily) | C15: 2020-06-17 | D15: 16:00:00 | E15: 414 | F15: 417.425995 | G15: 411.429993 | H15: 413.48999 | I15: 2026063 | J15: 1.819977 | K15: 2020-06-17T17:42:59
A16: ALGN | B16: Align Technology, Inc. (ALGN) -NasdaqGS (Daily) | C16: 2020-01-30 | D16: 16:00:00 | E16: 248.740005 | F16: 264.450012 | G16: 248.350006 | H16: 262.890015 | I16: 1833160 | J16: 1.290009
A17: AMC | B17: AMC Entertainment Holdings, Inc. (AMC) -NYSE (Weekly) | C17: 2018-07-13 | D17: 16:02:00 | E17: 17.049999 | F17: 17.15 | G17: 16.525 | H17: 17.049999 | I17: 1442776 | J17: 0
A18: AMD | B18: Advanced Micro Devices, Inc. (AMD) -NasdaqGS (Daily) | C18: 2020-08-19 | D18: 12:40:00 | E18: 81.775703 | F18: 81.849998 | G18: 80.449997 | H18: 80.760002 | I18: 18434143 | J18: -0.900002 | K18: 2020-08-19T12:40:49
A19: BSX | B19: Boston Scientific Corporation C (BSX) -NYQ (Daily) | C19: 2015-03-13 | D19: 16:01:00 | E19: 16.84 | F19: 16.91 | G19: 16.44 | H19: 16.61 | I19: 7262460 | J19: -0.28
A20: CASY | B20: Casey's General Stores, Inc. (CASY) -NasdaqGS (Daily) | C20: 2019-04-10 | D20: 16:00:00 | E20: 128.979996 | F20: 130.330002 | G20: 128.779999 | H20: 130.179993 | I20: 351300 | J20: 1.489991
A21: CAT | B21: Caterpillar Inc. (CAT) -NYSE (Daily) | C21: 2020-03-13 | D21: 11:48:00 | E21: 98.389999 | F21: 99.910004 | G21: 90.150101 | H21: 90.269997 | I21: 3568294 | J21: -1.990005 | K21: 2020-03-13T11:48:53
A22: CSCO | B22: Cisco Systems, In (CSCO) -NasdaqNM (Daily) | C22: 2015-02-19 | D22: 16:00:00 | E22: 29.32 | F22: 29.39 | G22: 29.13 | H22: 29.31 | I22: 21469012 | J22: -0.18
A23: CVS | B23: CVS Health Corporation (CVS) -NYSE (Daily) | C23: 2020-03-09 | D23: 16:07:00 | E23: 59.75 | F23: 63 | G23: 59.599998 | H23: 61.299999 | I23: 13065424 | J23: -2.850003 | K23: 2020-03-09T17:51:54
A24: DIS | B24: The Walt Disney Company (DIS) -NYSE (Daily) | C24: 2020-03-09 | D24: 16:07:00 | E24: 108.690002 | F24: 110.43 | G24: 104.279999 | H24: 104.349998 | I24: 26101127 | J24: -10.919999 | K24: 2020-03-09T16:59:51
A25: F | B25: Ford Motor Company (F) -NYSE (Daily) | C25: 2020-01-31 | D25: 16:03:00 | E25: 8.78 | F25: 8.84 | G25: 8.74 | H25: 8.82 | I25: 59781000 | J25: -0.02 | K25: 2020-02-02T15:09:03
A26: FAS | B26: Direxion Daily Financial Bull 3X ETF (FAS) -NYSEArca (Daily) | C26: 2017-10-13 | D26: 16:00:00 | E26: 58.099998 | F26: 58.939999 | G26: 57.43 | H26: 58.450001 | I26: 1709300 | J26: 0.07
A27: FB | B27: Facebook, Inc. (FB) -NasdaqGS (Daily) | C27: 2020-02-14 | D27: 16:00:00 | E27: 214 | F27: 214.929993 | G27: 212.649994 | H27: 214.179993 | I27: 10727400 | J27: 1.039994 | K27: 2020-02-15T17:19:34
A28: GSK | B28: GlaxoSmithKline plc (GSK) -NYSE (Daily) | C28: 2021-01-15 | D28: 16:00:00 | E28: 38.41 | F28: 38.66 | G28: 38.209999 | H28: 38.470001 | I28: 3100400 | J28: 0.310001 | K28: 2021-01-17T18:07:58
A29: GDX | B29: VanEck Vectors Gold Miners ETF (GDX) -NYSEArca (Daily) | C29: 2020-01-31 | D29: 16:00:00 | E29: 28.799999 | F29: 29.24 | G29: 28.76 | H29: 28.99 | I29: 41946000 | J29: 0.26 | K29: 2020-02-02T15:11:17
A30: GOOG | B30: Alphabet Inc. (GOOG) -NasdaqGS (Daily) | C30: 2021-06-10 | D30: 16:00:00 | E30: 2494.01001 | F30: 2523.26001 | G30: 2494.01001 | H30: 2521.600098 | I30: 1390763 | J30: 30.200196 | K30: 2021-06-10T16:45:42
A31: HAL | B31: Halliburton Company (HAL) -NYSE (Daily) | C31: 2020-09-17 | D31: 11:11:00 | E31: 14.73 | F31: 14.945 | G31: 14.57 | H31: 14.91 | I31: 4265279 | J31: -0.16 | K31: 2020-09-17T11:11:52
A32: HD | B32: The Home Depot, Inc. (HD) -NYSE (Daily) | C32: 2020-03-13 | D32: 11:54:00 | E32: 200.449997 | F32: 201.179993 | G32: 192.270096 | H32: 193.449997 | I32: 3274582 | J32: 2.860001 | K32: 2020-03-13T11:54:29
A33: HSY | B33: The Hershey Company (HSY) -NYSE (Daily) | C33: 2021-01-15 | D33: 16:00:00 | E33: 147.089996 | F33: 149.490005 | G33: 146.880005 | H33: 148.460007 | I33: 1193700 | J33: 1.040009 | K33: 2021-01-17T18:06:10
A34: HTLD | B34: Heartland Express, Inc. (HTLD) -NasdaqGS (Daily) | C34: 2020-03-09 | D34: 16:00:00 | E34: 17.33 | F34: 17.690001 | G34: 16.82 | H34: 16.879999 | I34: 284762 | J34: -1.280001 | K34: 2020-03-09T17:00:56
A35: IDEX | B35: Ideanomics, Inc. (IDEX) -NasdaqGS (Daily) | C35: 2021-02-19 | D35: 10:11:00 | E35: 3.99 | F35: 4.15 | G35: 3.88 | H35: 3.92 | I35: 8623006 | J35: 0.19 | K35: 2021-02-19T10:11:40
A36: IBM | B36: International Business Machines Corporation (IBM) -NYSE (Daily) | C36: 2021-02-09 | D36: 16:00:00 | E36: 121.900002 | F36: 122.565002 | G36: 121.050003 | H36: 122.099998 | I36: 4173266 | J36: -1.510003 | K36: 2021-02-09T17:01:49
A37: INTC | B37: Intel Corporation (INTC) -NasdaqGS (Daily) | C37: 2020-02-14 | D37: 16:00:00 | E37: 67.519997 | F37: 67.860001 | G37: 66.82 | H37: 67.269997 | I37: 13402800 | J37: -0.170005 | K37: 2020-02-15T17:21:41
A38: JAH | B38: Jarden Corporation Common Stock (JAH) -NYQ (Daily) | C38: 2016-01-08 | D38: 16:02:00 | E38: 53.82 | F38: 53.88 | G38: 52.65 | H38: 52.73 | I38: 4519480 | J38: -0.81
A39: JNJ | B39: Johnson & Johnson (JNJ) -NYSE (Daily) | C39: 2019-08-14 | D39: 10:33:00 | E39: 132.529999 | F39: 132.539993 | G39: 131.419998 | H39: 131.759995 | I39: 870520 | J39: -0.169998
A40: KO | B40: The Coca-Cola Company (KO) -NYSE (Daily) | C40: 2020-03-09 | D40: 16:07:00 | E40: 52.049999 | F40: 53.580002 | G40: 51.474998 | H40: 51.860001 | I40: 27771279 | J40: -3.399997 | K40: 2020-03-09T17:05:43
A41: LOW | B41: Lowe's Companies, Inc. (LOW) -NYSE (Daily) | C41: 2020-03-09 | D41: 16:03:00 | E41: 97.82 | F41: 99.82 | G41: 93.150101 | H41: 94.220001 | I41: 8167579 | J41: -11.089997 | K41: 2020-03-09T16:57:19
A42: LMT | B42: Lockheed Martin Corporation (LMT) -NYSE (Daily) | C42: 2021-02-09 | D42: 16:04:00 | E42: 338.540009 | F42: 344.48999 | G42: 336.570007 | H42: 342.339996 | I42: 1545066 | J42: 4.5 | K42: 2021-02-09T16:56:05
A43: MCD | B43: McDonald's Corporation (MCD) -NYSE (Daily) | C43: 2020-03-09 | D43: 16:01:00 | E43: 187.669998 | F43: 194.470001 | G43: 184.100006 | H43: 186.860001 | I43: 7601343 | J43: -12 | K43: 2020-03-09T16:58:16
A44: MDT | B44: Medtronic plc (MDT) -NYSE (Daily) | C44: 2020-03-09 | D44: 16:07:00 | E44: 94.019997 | F44: 95.470001 | G44: 91.709999 | H44: 92.400002 | I44: 9000931 | J44: -6.659996 | K44: 2020-03-09T17:48:45
A45: MGM | B45: MGM Resorts International (MGM) -NYSE (Daily) | C45: 2020-03-09 | D45: 16:02:00 | E45: 18.6 | F45: 19.58 | G45: 17.530001 | H45: 17.879999 | I45: 26050818 | J45: -2.51 | K45: 2020-03-09T17:13:53
A46: MO | B46: Altria Group, Inc. (MO) -NYSE (Daily) | C46: 2020-01-31 | D46: 16:05:00 | E46: 48.25 | F46: 48.799999 | G46: 47.240002 | H46: 47.529999 | I46: 11790800 | J46: -0.470001 | K46: 2020-02-02T15:20:55
A47: MSFT | B47: Microsoft Corporation (MSFT) -NasdaqGS (Daily) | C47: 2020-03-09 | D47: 16:00:00 | E47: 151 | F47: 157.75 | G47: 150 | H47: 150.619995 | I47: 69167627 | J47: -10.950012 | K47: 2020-03-09T17:06:41
A48: NFLX | B48: Netflix, Inc. (NFLX) -NasdaqGS (Daily) | C48: 2020-03-09 | D48: 16:00:00 | E48: 343.859985 | F48: 357.470001 | G48: 341.720886 | H48: 346.48999 | I48: 6746188 | J48: -22.480011 | K48: 2020-03-09T17:23:37
A49: NUGT | B49: Direxion Daily Gold Miners Index Bull 3X Shares (NUGT) -NYSEArca (Daily) | C49: 2020-01-31 | D49: 16:00:00 | E49: 32.439999 | F49: 33.830002 | G49: 32.240002 | H49: 33.02 | I49: 11325200 | J49: 0.84 | K49: 2020-02-02T15:21:51
A50: NVS | B50: Novartis AG (NVS) -NYSE (Daily) | C50: 2020-03-06 | D50: 16:02:00 | E50: 84.330002 | F50: 85.830002 | G50: 83.970001 | H50: 85.720001 | I50: 5624700 | J50: -0.089997 | K50: 2020-03-08T16:56:35
A51: NVDA | B51: NVIDIA Corporation (NVDA) -NasdaqGS (Daily) | C51: 2020-12-14 | D51: 16:00:00 | E51: 523.515015 | F51: 535.549988 | G51: 523.099976 | H51: 532.349976 | I51: 6580666 | J51: 11.819947 | K51: 2020-12-14T18:31:17
A52: PRU | B52: Prudential Financial, Inc. (PRU) -NYSE (Daily) | C52: 2020-03-09 | D52: 16:02:00 | E52: 63.75 | F52: 65.830002 | G52: 57.375 | H52: 58.240002 | I52: 7614493 | J52: -11.569996 | K52: 2020-03-09T17:11:43
A53: PSEC | B53: Prospect Capital Corporation (PSEC) -NasdaqGS (Daily) | C53: 2020-02-14 | D53: 16:00:00 | E53: 6.53 | F53: 6.56 | G53: 6.51 | H53: 6.52 | I53: 1235500 | J53: -0.04 | K53: 2020-02-15T14:43:16
A54: RPM | B54: RPM International Inc. (RPM) -NYSE (Daily) | C54: 2020-03-09 | D54: 16:02:00 | E54: 64.470001 | F54: 66.730003 | G54: 63.5 | H54: 65.290001 | I54: 1115882 | J54: -2.919998 | K54: 2020-03-09T17:10:08
A55: RSP | B55: Invesco S&P 500 Equal Weight ETF (RSP) -NYSEArca (Daily) | C55: 2020-01-31 | D55: 16:00:00 | E55: 115.279999 | F55: 115.32 | G55: 113.230003 | H55: 113.540001 | I55: 747600 | J55: -2.309997 | K55: 2020-02-02T15:28:52
A56: SPR | B56: Spirit AeroSystems Holdings, Inc. (SPR) -NYSE (Daily) | C56: 2020-03-09 | D56: 16:06:00 | E56: 43.700001 | F56: 43.880001 | G56: 41.5 | H56: 42.139999 | I56: 2091368 | J56: -5.23 | K56: 2020-03-09T17:09:37
A57: SQ | B57: Square, Inc. (SQ) -NYSE (Daily) | C57: 2020-10-02 | D57: 16:00:00 | E57: 164.050003 | F57: 171.240005 | G57: 163.800995 | H57: 169.610001 | I57: 11150500 | J57: 1.119996 | K57: 2020-10-04T20:00:52
A58: SWKS | B58: Skyworks Solutions, Inc. (SWKS) -NasdaqGS (Daily) | C58: 2020-01-31 | D58: 16:00:00 | E58: 115.5 | F58: 115.739998 | G58: 112.720001 | H58: 113.150002 | I58: 2444600 | J58: -3.080001 | K58: 2020-02-02T15:26:46
A59: TOL | B59: Toll Brothers, Inc. (TOL) -NYSE (Daily) | C59: 2020-03-09 | D59: 16:07:00 | E59: 34.759998 | F59: 35.314999 | G59: 32.060001 | H59: 34.110001 | I59: 3127968 | J59: -2.86 | K59: 2020-03-09T17:12:09
A60: TSLA | B60: Tesla, Inc. (TSLA) -NasdaqGS (Daily) | C60: 2020-03-13 | D60: 12:08:00 | E60: 595 | F60: 607.570007 | G60: 502.01001 | H60: 510 | I60: 12224537 | J60: -50.549988 | K60: 2020-03-13T12:08:39
A61: TXN | B61: Texas Instruments Incorporated (TXN) -NasdaqGS (Daily) | C61: 2020-06-19 | D61: 11:30:00 | E61: 128.059998 | F61: 128.179993 | G61: 126.07 | H61: 126.370003 | I61: 2078988 | J61: 0.39 | K61: 2020-06-19T11:31:00
A62: UNP | B62: Union Pacific Corporation (UNP) -NYSE (Daily) | C62: 2020-03-09 | D62: 16:07:00 | E62: 145.199997 | F62: 145.580002 | G62: 133.179993 | H62: 135.839996 | I62: 9380024 | J62: -20.25 | K62: 2020-03-09T17:11:21
A63: VZ | B63: Verizon Communications Inc. (VZ) -NYSE (Daily) | C63: 2019-04-10 | D63: 16:00:00 | E63: 58.400002 | F63: 58.700001 | G63: 58.360001 | H63: 58.610001 | I63: 8022000 | J63: 0.209999
A64: WBA | B64: Walgreens Boots Alliance, Inc. (WBA) -NasdaqGS (Daily) | C64: 2020-01-31 | D64: 16:00:00 | E64: 51.709999 | F64: 51.919998 | G64: 50.66 | H64: 50.849998 | I64: 6532300 | J64: -1.100003 | K64: 2020-02-02T15:28:06
A65: WMT | B65: Walmart Inc. (WMT) -NYSE (Daily) | C65: 2020-03-09 | D65: 16:01:00 | E65: 113.82 | F65: 120.629997 | G65: 112.730003 | H65: 117.160004 | I65: 19567750 | J65: -0.069999 | K65: 2020-03-09T17:10:39
A67: ^AEX | B67: AEX-INDEX (^AEX) -Amsterdam (Daily) | C67: 2020-03-09 | D67: 18:05:00 | E67: 506.950012 | F67: 506.950012 | G67: 485.730011 | H67: 490.660004 | I67: 0 | J67: -40.629974 | K67: 2020-03-09T17:41:58
A68: ^AORD | B68: ALL ORDINARIES (^AORD) -ASX (Daily) | C68: 2020-03-09 | D68: 16:17:00 | E68: 6472.399902 | F68: 6287.299805 | G68: 5822.399902 | H68: 5822.399902 | I68: 0 | J68: -465.100098 | K68: 2020-03-09T17:45:59
A69: ^DJI | B69: Dow Jones Industrial Average (^DJI) -DJI (Daily) | C69: 2021-01-15 | D69: 17:18:00 | E69: 30926.76953 | F69: 30941.98047 | G69: 30612.66992 | H69: 30814.25977 | I69: 433000000 | J69: -177.259765 | K69: 2021-01-18T09:45:18
A70: ^FTSE | B70: FTSE 100 (^FTSE) -FTSE Index (Daily) | C70: 2020-03-09 | D70: 16:45:00 | E70: 6462.549805 | F70: 6462.549805 | G70: 5891.560059 | H70: 5965.77002 | I70: 0 | J70: -496.830078 | K70: 2020-03-09T17:43:57
A71: ^GSPC | B71: S&P 500 (^GSPC) -SNP (Daily) | C71: 2021-06-18 | D71: 12:45:00 | E71: 4204.779785 | F71: 4204.779785 | G71: 4172.109863 | H71: 4181.169922 | I71: 1341384000 | J71: 4181.169922 | K71: 2021-06-18T12:45:53
A72: ^HSI | B72: HANG SENG INDEX (^HSI) -HKSE (Daily) | C72: 2020-03-09 | D72: 16:08:00 | E72: 25134.01953 | F72: 25321.2793 | G72: 24948.38086 | H72: 25040.46094 | I72: 0 | J72: -1106.208984 | K72: 2020-03-09T17:39:06
A73: ^MID | B73: S&P MID CAP 400 INDEX (^MID) -NYSE (Daily) | C73: 2020-02-14 | D73: 16:06:00 | E73: 2099.459961 | F73: 2100.51001 | G73: 2089.610107 | H73: 2096.610107 | I73: 0 | J73: -0.679932 | K73: 2020-02-14T21:04:41
A74: ^NDX | B74: NASDAQ 100 (^NDX) -Nasdaq GIDS (Daily) | C74: 2021-06-17 | D74: 17:15:00 | E74: 13946.70019 | F74: 14205.43457 | G74: 13946.52148 | H74: 14163.80859 | I74: 618547720 | J74: 180.798828 | K74: 2021-06-18T09:08:44
A75: ^NYA | B75: NYSE COMPOSITE (DJ) (^NYA) -NYSE (Weekly) | C75: 2021-01-11 | D75: 16:10:00 | E75: 14828.03027 | F75: 15129.12012 | G75: 14791.65039 | H75: 14894.16992 | I75: 24551330000 | J75: -72.660156 | K75: 2021-01-18T09:10:33
A76: ^OEX | B76: S&P 100 INDEX (^OEX) -Chicago Options (Daily) | C76: 2019-09-13 | D76: 16:56:00 | E76: 1332.27002 | F76: 1334.420044 | G76: 1328.73999 | H76: 1330.969971 | I76: 3520060000 | J76: -1.010009
A77: ^RUT | B77: Russell 2000 (^RUT) -Chicago Options (Daily) | C77: 2021-01-15 | D77: 16:00:00 | E77: 2154.689941 | F77: 2154.689941 | G77: 2102.530029 | H77: 2123.199951 | I77: 53530600 | J77: -32.150147 | K77: 2021-01-18T08:41:42
A78: ^SSEC | B78: SSE Composite Index (^SSEC) -Shanghai (Daily) | C78: 2020-03-09 | D78: 15:00:00 | E78: 3039.939453 | F78: 2989.205078 | G78: 2940.713867 | H78: 2943.290771 | I78: 2801367936 | J78: -388.231202 | K78: 2020-03-09T17:38:09
A79: ^VIX | B79: CBOE Volatility Index (^VIX) -Chicago Options (Daily) | C79: 2020-03-09 | D79: 16:14:00 | E79: 41.939999 | F79: 62.119999 | G79: 41.939999 | H79: 54.459999 | I79: 0 | J79: 12.52 | K79: 2020-03-09T17:38:36
A80: IWM | B80: iShares Russell 2000 ETF (IWM) -NYSEArca (Daily) | C80: 2021-02-19 | D80: 09:56:00 | E80: 222.460007 | F80: 223.080002 | G80: 222.169998 | H80: 222.970001 | I80: 3614630 | J80: 2.380005 | K80: 2021-02-19T09:56:07
A81: QQQ | B81: Invesco QQQ Trust (QQQ) -NasdaqGM (Daily) | C81: 2020-08-27 | D81: 15:01:00 | E81: 293.079987 | F81: 293.851013 | G81: 288.704987 | H81: 291.994995 | I81: 41822663 | J81: 0.035004 | K81: 2020-08-27T15:02:03
A82: XLE | B82: Energy Select Sector SPDR Fund (XLE) -NYSEArca (Daily) | C82: 2020-07-10 | D82: 16:00:00 | E82: 34.240002 | F82: 35.580002 | G82: 34.240002 | H82: 35.540001 | I82: 25223900 | J82: 1.100002 | K82: 2020-07-11T16:34:13
A83: SPY | B83: SPDR S&P 500 ETF Trust (SPY) -NYSEArca (Daily) | C83: 2021-04-14 | D83: 16:00:00 | E83: 412.829987 | F83: 413.954987 | G83: 410.869995 | H83: 411.450012 | I83: 61786318 | J83: -1.409973 | K83: 2021-04-14T21:34:13
A85: ACAD | B85: ACADIA Pharmaceut (ACAD) -NasdaqNM (Daily) | C85: 2014-07-21 | D85: 16:00:00 | E85: 20.13 | F85: 20.55 | G85: 19.8101 | H85: 20.31 | I85: 691016
A86: CLDX | B86: Celldex Therapeut (CLDX) -NasdaqNM (Daily) | C86: 2015-02-02 | D86: 16:00:00 | E86: 21.47 | F86: 21.69 | G86: 20.11 | H86: 21.02 | I86: 1570418 | J86: -0.4
A87: ICPT | B87: Intercept Pharmac (ICPT) -NasdaqNM (Daily) | C87: 2014-07-21 | D87: 16:00:00 | E87: 215.97 | F87: 218.43 | G87: 213.05 | H87: 218.14 | I87: 191276
A88: INO | B88: Inovio Pharmaceut (INO) -AMEX (Daily) | C88: 2014-07-21 | D88: 16:00:00 | E88: 10.3 | F88: 11.08 | G88: 10.1 | H88: 11.01 | I88: 1800796
A89: JCP | B89: J. C. Penney Company, Inc. (JCP) -NYSE (Daily) | C89: 2017-12-07 | D89: 16:01:00 | E89: 3.34 | F89: 3.4 | G89: 3.25 | H89: 3.27 | I89: 14485464 | J89: -0.07
A90: LCI | B90: Lannett Co Inc Co (LCI) -NYSE (Daily) | C90: 2014-07-21 | D90: 16:02:00 | E90: 38.09 | F90: 38.803 | G90: 36.5101 | H90: 37.76 | I90: 611367
A91: NPSP | B91: NPS Pharmaceutica (NPSP) -NasdaqNM (Daily) | C91: 2014-07-21 | D91: 15:59:00 | E91: 28.75 | F91: 29.43 | G91: 28.31 | H91: 29.29 | I91: 1126758
A92: PBYI | B92: Puma Biotechnolog (PBYI) -NYSE (Daily) | C92: 2014-07-21 | D92: 16:02:00 | E92: 58.27 | F92: 59.46 | G92: 57.39 | H92: 58.98 | I92: 348030
